Workbook

Sheet dash board
B1: Key Assumptions , Variables & Ratios | K1: Key Assumptions , Variables & Ratios | V1: General Information | AA1: Sensitivity Analaysis | AM1: 0
B2: Macro Economic Assumptions | E2: Unit | J2: Meezan Key Variables & IS Assumptions | N2: Unit | O2: =P2-1 -> 2009 | P2: =YEAR(Y3) -> 2010 | Q2: =P2+1 -> 2011 | R2: =Q2+1 -> 2012 | S2: =R2+1 -> 2013 | T2: =S2+1 -> 2014 | V2: Company Name | Y2: Meezan Bank
B3: Nominal GDP 2009 | E3: PKR MM | H3: =169000*'Assumption Sheet'!L12 -> 13520000 | J3: 6 monthly KIBOR | N3: % | O3: 0.125 | P3: =H13 -> 0.14 | Q3: =IF(P3+$H$14+$H$15>$H$16,P3+$H$14+$H$15,$H$16) -> 0.13 | R3: =IF(Q3+$H$14+$H$15>$H$16,Q3+$H$14+$H$15,$H$16) -> 0.12 | S3: 0.11 | T3: 0.1 | U3: 0.14 | V3: Last Fiscal Year End (dd/mm/yy) | Y3: 2010-12-31 | AA3: Share in Industry Deposits | AB3: Share Price
B4: Money supply (M2) 2010 | E4: PKR MM | H4: 5799709.659 | J4: GDP Growth Rate | N4: % | P4: =H5 -> 0.02 | Q4: =IF(P4+$H$7<=$H$6,P4+$H$7,$H$6) -> 0.03 | R4: =IF(Q4+$H$7<=$H$6,Q4+$H$7,$H$6) -> 0.04 | S4: 0.05 | T4: 0.06 | V4: Current Share Price | Y4: 18.64 | AB4: =Y18 -> 37.37688807
B5: GDP Growth rate 2010 | E5: % | H5: 0.02 | J5: Inflation | N5: % | P5: =H8 -> 0.15 | Q5: =IF(P5+$H$9>$H$10,P5+$H$9,$H$10) -> 0.14 | R5: =IF(Q5+$H$9>$H$10,Q5+$H$9,$H$10) -> 0.13 | S5: =IF(R5+$H$9>$H$10,R5+$H$9,$H$10) -> 0.12 | T5: =IF(S5+$H$9>$H$10,S5+$H$9,$H$10) -> 0.11 | V5: Current Date | Y5: 2011-04-17 | AA5: 0.01 | AB5: -17.24009333
B6: Terminal GDP Growth Rate | E6: % | H6: =AL6/100 -> 0.06 | J6: Velocity | N6: x | P6: =P63/100 -> 3.4 | Q6: =Q63/100 -> 4 | R6: 4.12 | S6: 4.24 | T6: 4.3 | V6: Valuation Assumptions | AA6: 0.015 | AB6: 4.705825479 | AJ6: DO NOT TOUCH | AL6: 6
B7: Increase in GDP Growth Rate | E7: % | H7: =AL7/100 -> 0.01 | J7: GDP | N7: PKR MM | P7: =H3*(1+P4) -> 13790400 | Q7: =P7*(1+Q4) -> 14204112 | R7: =Q7*(1+R4) -> 14772276.48 | S7: =R7*(1+S4) -> 15510890.3 | T7: =S7*(1+T4) -> 16441543.72 | V7: Valuation / deal date | Y7: =Y5 -> 2011-04-17 | AA7: 0.02 | AB7: 23.16285379 | AL7: 1
B8: Inflation 2010 | E8: % | H8: 0.15 | J8: Money Supply M2 | N8: PKRMM | P8: =H4 -> 5799709.659 | Q8: =(Q7*(Q4+Q5)/Q6)+P8 -> 6403384.419 | R8: =(R7*(R4+R5)/R6)+Q8 -> 7012920.099 | S8: =(S7*(S4+S5)/S6)+R8 -> 7634819.002 | T8: =(T7*(T4+T5)/T6)+S8 -> 8284833.522 | V8: Exit P/BV multiple | Y8: 1.2 | AA8: 0.025 | AB8: 40.15056736
B9: Change in Inflation per year | E9: % | H9: =-AK9/100 -> -0.01 | J9: M2 Growth | N9: % | Q9: =(Q8/P8)-1 -> 0.1040870656 | R9: =(R8/Q8)-1 -> 0.09518961226 | S9: =(S8/R8)-1 -> 0.08867902314 | T9: =(T8/S8)-1 -> 0.08513817014 | V9: Exit P/ E multiple | Y9: 11 | AA9: 0.03 | AB9: 56.37755307 | AK9: 1 | AL9: 10 | AM9: 70
B10: Minimum Inflation | E10: % | H10: =AM9/1000 -> 0.07 | J10: Share in industry deposits | N10: % | P10: =H23 -> 0.02416445354 | Q10: =P10+$H$24 -> 0.02716445354 | R10: =Q10+$H$24 -> 0.03016445354 | S10: =R10+$H$24 -> 0.03316445354 | T10: =S10+$H$24 -> 0.03616445354 | V10: Exit P/E = 1 ,Exit P/BV = 2 | Y10: 1 | AA10: 0.035 | AB10: 72.15868671 | AM10: 50
B11: PKR Devaluation 2010 | E11: % | H11: 0.02219290482 | J11: Industry Deposit | N11: PKRMM | P11: =P8*$H$20 -> 5424000 | Q11: =Q8*$H$20 -> 5988568.244 | R11: =R8*$H$20 -> 6558617.733 | S11: =S8*$H$20 -> 7140229.547 | T11: =T8*$H$20 -> 7748135.625 | V11: Calculated Discount Rate | Y11: =valuation!D9 -> 0.2203 | AM11: 80
B12: PKR Devaluation Long Term | E12: % | H12: =AM10/1000 -> 0.05 | J12: Meezan Depsit | N12: PKRMM | P12: =P11*P10 -> 131067.996 | Q12: =Q11*Q10 -> 162676.1838 | R12: =R11*R10 -> 197837.1199 | S12: =S11*S10 -> 236801.8111 | T12: =T11*T10 -> 280207.0908 | V12: Over Riding Discount Rate | AA12: Advances to Deposits % | AB12: Share price
B13: 6 Monthly Kibor 2010 | E13: % | H13: 0.14 | J13: Meezan Deposit growth rate | N13: % | P13: =(P12/'Assumption Sheet'!L27)-1 -> 0.3063500888 | Q13: =(Q12/'Assumption Sheet'!M27)-1 -> 0.2411587024 | R13: =(R12/'Assumption Sheet'!N27)-1 -> 0.2161406497 | S13: =(S12/'Assumption Sheet'!O27)-1 -> 0.1969533887 | T13: =(T12/'Assumption Sheet'!P27)-1 -> 0.1832979214 | V13: Discount Rate | Y13: =valuation!D9 -> 0.2203 | AB13: =Y18 -> 37.37688807
B14: Decrease in 6 Monthly KIBOR per Year | E14: % | H14: =-AK14/1000 -> -0.01 | J14: Interest Earned on Financing | N14: % | O14: 0.09630801493 | P14: =O14*(P$3/O$3) -> 0.1078649767 | Q14: 0.1001603355 | R14: 0.09245569433 | S14: 0.08475105314 | T14: 0.07704641194 | V14: Exit Year | Y14: 2014 | AA14: 0.4 | AB14: 38.00084848 | AK14: 10
B15: Increase in 6 Monthly KIBOR 2011 | E15: % | H15: =IF(H14<0,0,AM1/1000) -> 0 | J15: Interest Earned on Debt Investments | N15: % | O15: 0.06009933934 | P15: 0.06731126007 | Q15: 0.06250331292 | R15: 0.05769536577 | S15: 0.05288741862 | T15: 0.04807947148 | V15: Valuation Results | AA15: 0.41 | AB15: 37.47927267
B16: Terminal 6 Monthly KIBOR | E16: % | H16: =AM11/1000 -> 0.08 | J16: Interest Earned on Deposits | N16: % | O16: 0.1350539119 | P16: 0.1512603813 | Q16: 0.1404560683 | R16: 0.1296517554 | S16: 0.1188474424 | T16: 0.1080431295 | V16: Enterprice Value | Y16: =valuation!G28 -> 30050756.37 | AA16: 0.42 | AB16: 36.95769686
B17: Market Return | E17: % | H17: 0.02568318625 | J17: Fee, Comission Income Growth | N17: % | P17: =P64/100 -> 0.1881386683 | Q17: =Q64/100 -> 0.05 | R17: 0.05 | S17: 0.05 | T17: 0.05 | V17: No of Shares | Y17: =valuation!G29 -> 803993 | AA17: 0.43 | AB17: 36.43612106
B18: Banking Sector Assumptions | E18: Unit | J18: Return fromFX Exposure | N18: % | P18: =H11 -> 0.02219290482 | Q18: =$H$12 -> 0.05 | R18: =$H$12 -> 0.05 | S18: =$H$12 -> 0.05 | T18: =$H$12 -> 0.05 | V18: Share Price | Y18: =valuation!G30 -> 37.37688807 | AA18: 0.44 | AB18: 35.91454525
B19: Advance / Deposit 2010 | E19: % | H19: 0.66 | J19: Other Income Growth | N19: % | P19: =P65/100 -> 0.07 | Q19: =Q65/100 -> 0.07 | R19: 0.07 | S19: 0.07 | T19: 0.07 | AA19: 0.45 | AB19: 35.39296944
B20: Indutry Deposit as % of M2 | E20: % | H20: 0.9352192298 | J20: Share of result of Associate Growth | N20: % | P20: =P66/100 -> -0.710009575 | Q20: =Q66/100 -> 0.5 | R20: 0.2 | S20: 0.2 | T20: 0.2 | V20: Status | Y20: =IF(Y4>Y18,"Over Value",IF(Y4<Y18,"Under Value","PerfectlyValue")) -> Under Value
B21: Advance / Deposit Incremental | E21: % | H21: 0.005 | J21: Interest Spread on Financing | N21: % | O21: 0.05 | P21: =O21+P22 -> 0.043 | Q21: =P21+Q22+$H$15*0.58 -> 0.045 | R21: =Q21+R22+$H$15*0.58 -> 0.051 | S21: 0.057 | T21: 0.058 | V21: Recommendation | Y21: =IF(Y4>Y18,"Sell",IF(Y4<Y18,"Buy","Hold")) -> Buy | AA21: Interest Spread | AB21: Share Price
A22: Meezan Balance Sheet & ISAssumptions | B22: Meezan Balance Sheet & ISAssumptions | E22: Unit | J22: Change in Interest Spread | N22: % | P22: =-P67/1000 -> -0.007 | Q22: =Q67/1000 -> 0.002 | R22: =R67/1000 -> 0.006 | S22: =S67/1000 -> 0.006 | T22: =T67/1000 -> 0.001 | AB22: =Y18 -> 37.37688807
B23: Share in industry deposits 2010 | E23: % | H23: 0.02416445354 | J23: Interest Cost on Deposits & Other Accounts | N23: % | P23: =P14-P21 -> 0.06486497672 | Q23: =Q14-Q21 -> 0.05516033553 | R23: =R14-R21 -> 0.04145569433 | S23: =S14-S21 -> 0.02775105314 | T23: =T14-T21 -> 0.01904641194 | AA23: 0.05 | AB23: 49.31094164 | AM23: 3
B24: Increae in Market Share | E24: % | H24: =AM23/1000 -> 0.003 | J24: Rumenerative Deposits as % of Deposits | N24: % | P24: =P68/100 -> 0.7058 | Q24: =Q68/100 -> 0.7058 | R24: 0.7058 | S24: 0.7058 | T24: 0.7058 | AA24: 0.055 | AB24: 57.83526562
B25: Bills Payable / Deposits | E25: % | H25: 0.01348437493 | J25: Interest Cost on Dues to FI's | N25: % | O25: 0.08592298894 | P25: =O25*(P3/O3) -> 0.09623374761 | Q25: =P25*(Q3/P3) -> 0.08935990849 | R25: =Q25*(R3/Q3) -> 0.08248606938 | S25: =R25*(S3/R3) -> 0.07561223026 | T25: =S25*(T3/S3) -> 0.06873839115 | AA25: 0.06 | AB25: 66.3595896
B26: Other Liabilities / Deposits | E26: % | H26: 0.05889490368 | J26: Number of Branches | O26: 201 | P26: =O26*(1+P27) -> 268.0327117 | Q26: =P26*(1+Q27) -> 332.6711326 | R26: =Q26*(1+R27) -> 404.5748873 | S26: =R26*(1+S27) -> 484.2572824 | T26: =S26*(1+T27) -> 573.0206356 | AA26: 0.065 | AB26: 74.88391358 | AL26: 41.1962986
B27: Advance / Deposit | E27: % | H27: =AL26/100 -> 0.411962986 | J27: Branch Growth Rate | N27: % | P27: =(((P12/$H$34)-O26)/O26) -> 0.3334960779 | Q27: =(((Q12/$H$34)-P26)/P26) -> 0.2411587024 | R27: =(((R12/$H$34)-Q26)/Q26) -> 0.2161406497 | S27: =(((S12/$H$34)-R26)/R26) -> 0.1969533887 | T27: =(((T12/$H$34)-S26)/S26) -> 0.1832979214 | AA27: 0.07 | AB27: 83.40823756 | AL27: 38.54441019
B28: Investments / Deposit | E28: % | H28: =AL27/100 -> 0.3854441019 | J28: Admin Expenses Growth | N28: % | P28: 0.2 | Q28: =Q5*0.75+Q27*0.5 -> 0.2255793512 | R28: =R5*0.75+R27*0.5 -> 0.2055703248 | S28: =S5*0.75+S27*0.5 -> 0.1884766943 | T28: =T5*0.75+T27*0.5 -> 0.1741489607 | AA28: 0.075 | AB28: 91.93256154 | AL28: 85
B29: Debt Investment as % of Debt | E29: % | H29: =AL28/100 -> 0.85 | J29: Provisions / Deposits | N29: % | P29: =P69/10000 -> 0.0005 | Q29: =Q69/10000 -> 0.0005 | R29: 0.0005 | S29: 0.0005 | T29: 0.0004
B30: Equityt Investment as % of Debt | E30: % | H30: =1-H29 -> 0.15 | J30: Depriciation Expense | N30: % | P30: -0.2 | Q30: -0.2 | R30: -0.2 | S30: -0.2 | T30: -0.2 | AL30: 7.597397766
B31: Balance with Other Banks / Deposits | E31: % | H31: =AL30/100 -> 0.07597397766 | J31: Change in NPL Charge as % of Gross Advances | N31: % | P31: =P70/1000 -> -0.006514444416 | Q31: =-Q70/1000 -> 0 | R31: =-R70/1000 -> 0 | S31: =-S70/1000 -> 0 | T31: 0 | AB31: P/E MULTIPLE | AL31: 8.020153905
B32: Placement with FI's / Deposits | E32: % | H32: =AL31/100 -> 0.08020153905 | J32: NPL Charge as % of Gross Advances | N32: % | O32: 0.0388238882 | P32: =O32+P31 -> 0.03230944378 | Q32: =P32+Q31 -> 0.03230944378 | R32: =Q32+R31 -> 0.03230944378 | S32: =R32+S31 -> 0.03230944378 | T32: =S32+T31 -> 0.03230944378 | AB32: =Y18 -> 37.37688807 | AC32: 10 | AD32: 11 | AE32: 12 | AF32: 13 | AG32: 14 | AL32: 13.50997691
B33: Other Assets / Deposits | E33: % | H33: =AL32/100 -> 0.1350997691 | J33: Change in Reversals as % of Net Advances | N33: % | P33: =P71/1000 -> 0 | Q33: =Q71/1000 -> 0.002 | R33: =R71/1000 -> 0 | S33: 0 | T33: 0 | AB33: 1.2 | AC33: 34.82987794 | AD33: 37.37688807 | AE33: 39.9238982 | AF33: 42.47090833 | AG33: 45.01791847
B34: Deposit / Branch | E34: PKR MM | H34: 489 | J34: Reversals as % of Net Advances | N34: % | O34: -0.0033212361 | P34: =O34+P33 -> -0.0033212361 | Q34: =P34+Q33 -> -0.0013212361 | R34: =Q34+R33 -> -0.0013212361 | S34: =R34+S33 -> -0.0013212361 | T34: =S34+T33 -> -0.0013212361 | AA34: P/BV MULTIPLE | AB34: 1.5 | AC34: 34.82987794 | AD34: 37.37688807 | AE34: 39.9238982 | AF34: 42.47090833 | AG34: 45.01791847
B35: Cash as % of Deposits | E35: % | H35: 0.08 | J35: Assets Write off as % of Provisions | N35: % | P35: =-P72/1000 -> -0.001 | Q35: =-Q72/1000 -> -0.001 | R35: -0.001 | S35: -0.001 | T35: -0.001 | AB35: 2 | AC35: 34.82987794 | AD35: 37.37688807 | AE35: 39.9238982 | AF35: 42.47090833 | AG35: 45.01791847 | AL35: 12
B36: FX Exposure as % of Deposit | E36: % | H36: =AL35/100 -> 0.12 | J36: Lending / Deposit | N36: % | P36: ='Assumption Sheet'!M33 -> 0.04447535766 | Q36: ='Assumption Sheet'!N33 -> -0.002739746821 | R36: ='Assumption Sheet'!O33 -> -0.02443776398 | S36: ='Assumption Sheet'!P33 -> -0.04317477945 | T36: ='Assumption Sheet'!Q33 -> -0.06036783845 | AB36: 2.5 | AC36: 34.82987794 | AD36: 37.37688807 | AE36: 39.9238982 | AF36: 42.47090833 | AG36: 45.01791847
AB37: 3 | AC37: 34.82987794 | AD37: 37.37688807 | AE37: 39.9238982 | AF37: 42.47090833 | AG37: 45.01791847
AB38: 3.5 | AC38: 34.82987794 | AD38: 37.37688807 | AE38: 39.9238982 | AF38: 42.47090833 | AG38: 45.01791847
M49: =44+48+0.51 -> 92.51
M50: =M49/131.068 -> 0.7058168279
R55: 9
P60: DO NOT TOUCH
P61: 0 | Q61: =P61+1% -> 0.01 | R61: =Q61+1% -> 0.02 | S61: =R61+1% -> 0.03 | T61: =S61+1% -> 0.04
P63: 340 | Q63: 400 | R63: 412 | S63: 424 | T63: 430
M64: FEE | P64: 18.81386683 | Q64: 5 | R64: 5 | S64: 5 | T64: 5
M65: OTI | P65: 7 | Q65: 7 | R65: 7 | S65: 7 | T65: 7
M66: ASS | P66: -71.0009575 | Q66: 50 | R66: 20 | S66: 20 | T66: 20
M67: INT | P67: 7 | Q67: 2 | R67: 6 | S67: 6 | T67: 1 | U67: 0
M68: RIM | P68: 70.58 | Q68: 70.58 | R68: 70.58 | S68: 70.58 | T68: =S68 -> 70.58
M69: PROV | P69: 5 | Q69: 5 | R69: 5 | S69: 5 | T69: 4
M70: NPL | P70: -6.514444416 | Q70: 0 | R70: 0 | S70: 0 | T70: 0
M71: REV | P71: 0 | Q71: 2 | R71: 0 | S71: 0 | T71: 0
M72: ASSET | P72: 1 | Q72: 1 | R72: 1 | S72: 1 | T72: 1 | U72: 0.1
AK114: 3

Sheet Assumption Sheet
C2: ="Key Assumptions For " &'dash board'!Y2 -> Key Assumptions For Meezan Bank
C3: Company Name | D3: ='dash board'!Y2 -> Meezan Bank
C4: Last Fiscal Year End (dd/mm/yy) | D4: ='dash board'!Y3 -> 2010-12-31
C5: Current Share Price | D5: ='dash board'!Y4 -> 18.64
C6: Current Date | D6: ='dash board'!Y5 -> 2011-04-17
M7: 1 | N7: 2 | O7: 3 | P7: 4 | Q7: 5
C8: Macro Economic Assumptions | G8: Unit | J8: =K8-1 -> 2007 | K8: =L8-1 -> 2008 | L8: =M8-1 -> 2009 | M8: =YEAR(D4) -> 2010 | N8: =M8+1 -> 2011 | O8: =N8+1 -> 2012 | P8: =O8+1 -> 2013 | Q8: =P8+1 -> 2014
C9: Nominal GDP | G9: PKR MM | L9: ='dash board'!H3 -> 13520000 | M9: ='dash board'!P7 -> 13790400 | N9: =M9*(1+N10) -> 14204112 | O9: =N9*(1+O10) -> 14772276.48 | P9: =O9*(1+P10) -> 15510890.3 | Q9: =P9*(1+Q10) -> 16441543.72
C10: GDP Growth rate | G10: % | L10: 0.03 | M10: ='dash board'!P4 -> 0.02 | N10: =IF(M10+1%<6%,M10+1%,6%) -> 0.03 | O10: =IF(N10+1%<6%,N10+1%,6%) -> 0.04 | P10: =IF(O10+1%<6%,O10+1%,6%) -> 0.05 | Q10: =IF(P10+1%<6%,P10+1%,6%) -> 0.06
C11: Inflation | G11: % | L11: 0.2 | M11: ='dash board'!P5 -> 0.15 | N11: ='dash board'!Q5 -> 0.14 | O11: ='dash board'!R5 -> 0.13 | P11: ='dash board'!S5 -> 0.12 | Q11: ='dash board'!T5 -> 0.11
C12: Exchange Rate | G12: PKR/USD | L12: 80 | M12: 86 | N12: =M12*(1+N13) -> 90.3 | O12: =N12*(1+O13) -> 94.815 | P12: =O12*(1+P13) -> 99.55575 | Q12: =P12*(1+Q13) -> 104.5335375
C13: Devaluation | G13: % | M13: ='dash board'!H11 -> 0.02219290482 | N13: ='dash board'!$H$12 -> 0.05 | O13: ='dash board'!$H$12 -> 0.05 | P13: ='dash board'!$H$12 -> 0.05 | Q13: ='dash board'!$H$12 -> 0.05
C14: 6 monthly KIBOR | G14: % | J14: 0.1 | K14: =(10%*0.15+15%*0.85) -> 0.1425 | L14: 0.125 | M14: ='dash board'!P3 -> 0.14 | N14: ='dash board'!Q3 -> 0.13 | O14: ='dash board'!R3 -> 0.12 | P14: ='dash board'!S3 -> 0.11 | Q14: ='dash board'!T3 -> 0.1
C15: Money Velocity | G15: x | M15: ='dash board'!P6 -> 3.4 | N15: ='dash board'!Q6 -> 4 | O15: ='dash board'!R6 -> 4.12 | P15: ='dash board'!S6 -> 4.24 | Q15: ='dash board'!T6 -> 4.3
C16: Market Return | G16: % | M16: ='dash board'!$H$17 -> 0.02568318625 | N16: ='dash board'!$H$17 -> 0.02568318625 | O16: ='dash board'!$H$17 -> 0.02568318625 | P16: ='dash board'!$H$17 -> 0.02568318625 | Q16: ='dash board'!$H$17 -> 0.02568318625
C18: Banking Sector Assumptions | G18: Unit | J18: =K18-1 -> 2007 | K18: =L18-1 -> 2008 | L18: =M18-1 -> 2009 | M18: =YEAR($D$4) -> 2010 | N18: =M18+1 -> 2011 | O18: =N18+1 -> 2012 | P18: =O18+1 -> 2013 | Q18: =P18+1 -> 2014
C19: Money supply (M2) | G19: PKR MM | J19: 4074800 | K19: 4689143 | L19: 5137219 | M19: ='dash board'!P8 -> 5799709.659 | N19: ='dash board'!Q8 -> 6403384.419 | O19: ='dash board'!R8 -> 7012920.099 | P19: ='dash board'!S8 -> 7634819.002 | Q19: ='dash board'!T8 -> 8284833.522
C20: M2 Growth | G20: % | N20: ='dash board'!Q9 -> 0.1040870656 | O20: ='dash board'!R9 -> 0.09518961226 | P20: ='dash board'!S9 -> 0.08867902314 | Q20: ='dash board'!T9 -> 0.08513817014
C21: Industry deposit | G21: PKR MM | L21: 4769737 | M21: ='dash board'!P11 -> 5424000 | N21: ='dash board'!Q11 -> 5988568.244 | O21: ='dash board'!R11 -> 6558617.733 | P21: ='dash board'!S11 -> 7140229.547 | Q21: ='dash board'!T11 -> 7748135.625
C22: Deposit Growth | G22: % | N22: =N20 -> 0.1040870656 | O22: =O20 -> 0.09518961226 | P22: =P20 -> 0.08867902314 | Q22: =Q20 -> 0.08513817014
C23: Advances | G23: PKR MM | N23: =N21*N24 -> 3982397.882 | O23: =O21*O24 -> 4394273.881 | P23: =P21*P24 -> 4819654.944 | Q23: =Q21*Q24 -> 5268732.225 | V23: 79.29
C24: Advance / Deposit | G24: % | M24: 0.66 | N24: =M24+0.5% -> 0.665 | O24: =N24+0.5% -> 0.67 | P24: =O24+0.5% -> 0.675 | Q24: =P24+0.5% -> 0.68 | V24: 84.14
V25: =V24/V23 -> 1.061167865
C26: Balance Sheet Liabilities Assumptions | G26: Unit | J26: =K26-1 -> 2007 | K26: =L26-1 -> 2008 | L26: =M26-1 -> 2009 | M26: =YEAR($D$4) -> 2010 | N26: =M26+1 -> 2011 | O26: =N26+1 -> 2012 | P26: =O26+1 -> 2013 | Q26: =P26+1 -> 2014 | V26: =V25-1 -> 0.0611678648
C27: Total Deposits | G27: PKR MM | J27: ='financial statements'!E104/1000 -> 54580.452 | K27: ='financial statements'!F104/1000 -> 70231.95 | L27: ='financial statements'!G104/1000 -> 100331.448 | M27: ='dash board'!P12 -> 131067.996 | N27: ='dash board'!Q12 -> 162676.1838 | O27: ='dash board'!R12 -> 197837.1199 | P27: ='dash board'!S12 -> 236801.8111 | Q27: ='dash board'!T12 -> 280207.0908
C28: Share in industry deposits | G28: % | J28: =J27/J19 -> 0.01339463336 | K28: =K27/K19 -> 0.01497756626 | L28: =L27/L21 -> 0.02103500633 | M28: ='dash board'!P10 -> 0.02416445354 | N28: ='dash board'!Q10 -> 0.02716445354 | O28: ='dash board'!R10 -> 0.03016445354 | P28: ='dash board'!S10 -> 0.03316445354 | Q28: ='dash board'!T10 -> 0.03616445354 | T28: 0.0611678648
C29: Deposit growth rate | G29: % | L29: N/A | M29: ='dash board'!P13 -> 0.3063500888 | N29: ='dash board'!Q13 -> 0.2411587024 | O29: ='dash board'!R13 -> 0.2161406497 | P29: ='dash board'!S13 -> 0.1969533887 | Q29: ='dash board'!T13 -> 0.1832979214
C30: Bills Payable / Deposits | G30: % | J30: =J31/J27 -> 0.02184225224 | K30: =K31/K27 -> 0.01505037237 | L30: =L31/L27 -> 0.01245083197 | M30: ='dash board'!$H$25 -> 0.01348437493 | N30: ='dash board'!$H$25 -> 0.01348437493 | O30: ='dash board'!$H$25 -> 0.01348437493 | P30: ='dash board'!$H$25 -> 0.01348437493 | Q30: ='dash board'!$H$25 -> 0.01348437493
C31: Bills Payable | G31: PKR MM | J31: ='financial statements'!E102/1000 -> 1192.16 | K31: ='financial statements'!F102/1000 -> 1057.017 | L31: ='financial statements'!G102/1000 -> 1249.21 | M31: =M30*M27 -> 1767.37 | N31: =N30*N27 -> 2193.586656 | O31: =O30*O27 -> 2667.709901 | P31: =P30*P27 -> 3193.124406 | Q31: =Q30*Q27 -> 3778.417472
C32: Lending | G32: PKR MM | J32: ='financial statements'!E103/1000 -> 2565.606 | K32: ='financial statements'!F103/1000 -> 4133.496 | L32: ='financial statements'!G103/1000 -> 8593.425 | M32: 5829.296 | N32: =SUM(N40,N44,N46,N48,N50)-N27-N36 -> -445.6915575 | O32: =SUM(O40,O44,O46,O48,O50)-O27-O36 -> -4834.696843 | P32: =SUM(P40,P44,P46,P48,P50)-P27-P36 -> -10223.86597 | Q32: =SUM(Q40,Q44,Q46,Q48,Q50)-Q27-Q36 -> -16915.49639
C33: Lending / Deposits | G33: % | J33: =J32/J27 -> 0.04700595004 | K33: 0.05885492287 | L33: 0.08565036358 | M33: 0.04447535766 | N33: -0.002739746821 | O33: -0.02443776398 | P33: -0.04317477945 | Q33: -0.06036783845
C34: Other Liabilities | G34: PKR MM | J34: ='financial statements'!E108/1000 -> 2922.022 | K34: ='financial statements'!F108/1000 -> 3622.176 | L34: ='financial statements'!G108/1000 -> 5129.01 | M34: =M35*M27 -> 7719.237 | N34: =N35*N27 -> 9580.798178 | O34: =O35*O27 -> 11651.59812 | P34: =P35*P27 -> 13946.41985 | Q34: =Q35*Q27 -> 16502.76963
C35: Other Liabilities / Deposits | G35: % | J35: =J34/J27 -> 0.05353605353 | K35: =K34/K27 -> 0.05157447572 | L35: =L34/L27 -> 0.05112066159 | M35: ='dash board'!$H$26 -> 0.05889490368 | N35: ='dash board'!$H$26 -> 0.05889490368 | O35: ='dash board'!$H$26 -> 0.05889490368 | P35: ='dash board'!$H$26 -> 0.05889490368 | Q35: ='dash board'!$H$26 -> 0.05889490368
C36: Equity available to support financing | G36: PKR MM | M36: ='financial statements'!G110/1000-SUM('financial statements'!H96:H98)/1000+SUM('financial statements'!H102,'financial statements'!H108)/1000-L61 -> -8956.83587 | N36: ='financial statements'!H110/1000-SUM('financial statements'!I96:I98)/1000+SUM('financial statements'!I102,'financial statements'!I108)/1000-M61 -> -7105.313196 | O36: ='financial statements'!I110/1000-SUM('financial statements'!J96:J98)/1000+SUM('financial statements'!J102,'financial statements'!J108)/1000-N61 -> -4348.386984 | P36: ='financial statements'!J110/1000-SUM('financial statements'!K96:K98)/1000+SUM('financial statements'!K102,'financial statements'!K108)/1000-O61 -> -767.8573404 | Q36: ='financial statements'!K110/1000-SUM('financial statements'!L96:L98)/1000+SUM('financial statements'!L102,'financial statements'!L108)/1000-P61 -> 3909.013052
C38: Balance Sheet Assets Assumptions | G38: Unit | J38: =K38-1 -> 2007 | K38: =L38-1 -> 2008 | L38: =M38-1 -> 2009 | M38: =YEAR($D$4) -> 2010 | N38: =M38+1 -> 2011 | O38: =N38+1 -> 2012 | P38: =O38+1 -> 2013 | Q38: =P38+1 -> 2014
C39: Advance / Deposit | G39: % | J39: ='financial statements'!E95/'financial statements'!E104 -> 0.6334810126 | K39: ='financial statements'!F95/'financial statements'!F104 -> 0.5628311758 | L39: ='financial statements'!G95/'financial statements'!G104 -> 0.4404208938 | M39: ='dash board'!$H$27 -> 0.411962986 | N39: ='dash board'!$H$27 -> 0.411962986 | O39: ='dash board'!$H$27 -> 0.411962986 | P39: ='dash board'!$H$27 -> 0.411962986 | Q39: ='dash board'!$H$27 -> 0.411962986
C40: Advances | G40: PKR MM | J40: =J27*J39 -> 34575.68 | K40: 39528.731 | L40: 44188.066 | M40: 53995.163 | N40: 67016.56644 | O40: 81501.57065 | P40: 97553.58118 | Q40: 115434.9498
C41: Investments / Deposit | G41: % | J41: ='financial statements'!E93/'financial statements'!E104 -> 0.2081666528 | K41: ='financial statements'!F93/'financial statements'!F104 -> 0.2108679597 | L41: ='financial statements'!G93/'financial statements'!G104 -> 0.2428968233 | M41: ='dash board'!$H$28 -> 0.3854441019 | N41: ='dash board'!$H$28 -> 0.3854441019 | O41: ='dash board'!$H$28 -> 0.3854441019 | P41: ='dash board'!$H$28 -> 0.3854441019 | Q41: ='dash board'!$H$28 -> 0.3854441019 | R41: =SUM(N39,N41,M47,N49) -> 0.9535826046
C42: Investments | G42: PKR MM | J42: ='financial statements'!E93/1000 -> 11361.83 | K42: ='financial statements'!F93/1000 -> 14809.668 | L42: ='financial statements'!G93/1000 -> 24370.19 | M42: =M27*M41 -> 50519.386 | N42: =N27*N41 -> 62702.57557 | O42: =O27*O41 -> 76255.15099 | P42: =P27*P41 -> 91273.86139 | Q42: =Q27*Q41 -> 108004.1705
C43: Debt Investment | G43: % | J43: ='financial statements'!E82 -> 0.6359433296 | K43: ='financial statements'!F82 -> 0.7836213479 | L43: ='financial statements'!G82 -> 0.8269252312 | M43: ='dash board'!$H$29 -> 0.85 | N43: ='dash board'!$H$29 -> 0.85 | O43: ='dash board'!$H$29 -> 0.85 | P43: ='dash board'!$H$29 -> 0.85 | Q43: ='dash board'!$H$29 -> 0.85
C44: Debt Investment | G44: PKR MM | J44: =J43*J42 -> 7225.48 | K44: =K43*K42 -> 11605.172 | L44: =L43*L42 -> 20152.325 | M44: =M42*M43 -> 42941.4781 | N44: =N42*N43 -> 53297.18924 | O44: =O42*O43 -> 64816.87834 | P44: =P42*P43 -> 77582.78218 | Q44: =Q42*Q43 -> 91803.54489
C45: Equity Investment | G45: % | J45: 0.3640566704 | K45: 0.2163786521 | L45: 0.1730747688 | M45: ='dash board'!$H$30 -> 0.15 | N45: ='dash board'!$H$30 -> 0.15 | O45: ='dash board'!$H$30 -> 0.15 | P45: ='dash board'!$H$30 -> 0.15 | Q45: ='dash board'!$H$30 -> 0.15
C46: Equity Investment | G46: PKR MM | J46: =J42*J45 -> 4136.35 | K46: =K42*K45 -> 3204.496 | L46: =L42*L45 -> 4217.865 | M46: =M45*M42 -> 7577.9079 | N46: =N45*N42 -> 9405.386336 | O46: =O45*O42 -> 11438.27265 | P46: =P45*P42 -> 13691.07921 | Q46: =Q45*Q42 -> 16200.62557
C47: Balance with Other Banks / Deposits | G47: % | I47: =AVERAGE(J47:L47) -> 0.04695048867 | J47: =J48/J27 -> 0.06895523694 | K47: =K48/K27 -> 0.0194466621 | L47: =L48/L27 -> 0.05244956696 | M47: ='dash board'!$H$31 -> 0.07597397766 | N47: ='dash board'!$H$31 -> 0.07597397766 | O47: ='dash board'!$H$31 -> 0.07597397766 | P47: ='dash board'!$H$31 -> 0.07597397766 | Q47: ='dash board'!$H$31 -> 0.07597397766
C48: Balance with Other Banks | G48: PKR MM | J48: ='financial statements'!E91/1000 -> 3763.608 | K48: ='financial statements'!F91/1000 -> 1365.777 | L48: ='financial statements'!G91/1000 -> 5262.341 | M48: =M47*M27 -> 9957.757 | N48: =N47*N27 -> 12359.15676 | O48: =O47*O27 -> 15030.47293 | P48: =P47*P27 -> 17990.7755 | Q48: =Q47*Q27 -> 21288.44726
C49: Placement with FI's / Deposits | G49: % | J49: =J50/J27 -> 0.1621459639 | K49: =K50/K27 -> 0.2578313716 | L49: =L50/L27 -> 0.3438552985 | M49: ='dash board'!$H$32 -> 0.08020153905 | N49: ='dash board'!$H$32 -> 0.08020153905 | O49: ='dash board'!$H$32 -> 0.08020153905 | P49: ='dash board'!$H$32 -> 0.08020153905 | Q49: ='dash board'!$H$32 -> 0.08020153905
C50: Placement with FI's | G50: PKR MM | J50: ='financial statements'!E92/1000 -> 8850 | K50: ='financial statements'!F92/1000 -> 18108 | L50: ='financial statements'!G92/1000 -> 34499.5 | M50: =M49*M27 -> 10511.855 | N50: =N49*N27 -> 13046.88031 | O50: =O49*O27 -> 15866.8415 | P50: =P49*P27 -> 18991.8697 | Q50: =Q49*Q27 -> 22473.03994
C51: Other Assets / Deposits | G51: % | I51: =AVERAGE(J51:L51) -> 0.05969123058 | J51: =J52/J27 -> 0.05526806557 | K51: =K52/K27 -> 0.06165905973 | L51: =L52/L27 -> 0.06214656645 | M51: ='dash board'!$H$33 -> 0.1350997691 | N51: ='dash board'!$H$33 -> 0.1350997691 | O51: ='dash board'!$H$33 -> 0.1350997691 | P51: ='dash board'!$H$33 -> 0.1350997691 | Q51: ='dash board'!$H$33 -> 0.1350997691
C52: Other Assets | G52: PKR MM | J52: ='financial statements'!E98/1000 -> 3016.556 | K52: ='financial statements'!F98/1000 -> 4330.436 | L52: ='financial statements'!G98/1000 -> 6235.255 | M52: =M51*M27 -> 17707.256 | N52: =N51*N27 -> 21977.51488 | O52: =O51*O27 -> 26727.74922 | P52: =P51*P27 -> 31991.87001 | Q52: =Q51*Q27 -> 37855.91328
C53: Net Charge For the Year | G53: PKR MM | J53: ='financial statements'!E66/1000 -> 435.018 | K53: ='financial statements'!F66/1000 -> 424.916 | L53: ='financial statements'!G66/1000 -> 1430.355 | M53: ='financial statements'!H66/1000 -> 1330.057 | N53: ='financial statements'!I66/1000 -> 1778.933675 | O53: ='financial statements'!J66/1000 -> 2235.820957 | P53: ='financial statements'!K66/1000 -> 2752.219751 | Q53: ='financial statements'!L66/1000 -> 3332.996561
C54: Operating Assets
C55: Capital Expenditure | G55: PKR MM | J55: ='financial statements'!E96/1000 -> 1049.376 | K55: ='financial statements'!F96/1000 -> 1898.53 | L55: ='financial statements'!G96/1000 -> 2437.228 | M55: =(M58-L58)*$I$56*(1+M11)^M7 -> 875.1037871 | N55: =(N58-M58)*$I$56*(1+N11)^N7 -> 953.6200551 | O55: =(O58-N58)*$I$56*(1+O11)^O7 -> 1177.773652 | P55: =(P58-O58)*$I$56*(1+P11)^P7 -> 1423.342459 | Q55: =(Q58-P58)*$I$56*(1+Q11)^Q7 -> 1697.944652
C56: Operating Fixed Assets / Branch | G56: PKR MM | I56: =AVERAGE(J56:L56) -> 11.35206672 | J56: =J55/J58 -> 10.49376 | K56: =K55/K58 -> 11.43692771 | L56: =L55/L58 -> 12.12551244
C57: Deprciation
C58: Number of Branches | J58: 100 | K58: 166 | L58: 201 | M58: ='dash board'!P26 -> 268.0327117 | N58: ='dash board'!Q26 -> 332.6711326 | O58: ='dash board'!R26 -> 404.5748873 | P58: ='dash board'!S26 -> 484.2572824 | Q58: ='dash board'!T26 -> 573.0206356
C59: Branch Growth Rate | G59: % | K59: =(K58/J58)-1 -> 0.66 | L59: =(L58/K58)-1 -> 0.2108433735 | M59: ='dash board'!P27 -> 0.3334960779 | N59: ='dash board'!Q27 -> 0.2411587024 | O59: ='dash board'!R27 -> 0.2161406497 | P59: ='dash board'!S27 -> 0.1969533887 | Q59: ='dash board'!T27 -> 0.1832979214
C60: Deposits / Branch | G60: PKR MM | I60: =AVERAGE(J60:L60) -> 489.3499963 | J60: =('financial statements'!E104/1000)/'Assumption Sheet'!J58 -> 545.80452 | K60: =('financial statements'!F104/1000)/'Assumption Sheet'!K58 -> 423.0840361 | L60: =('financial statements'!G104/1000)/'Assumption Sheet'!L58 -> 499.1614328 | M60: =M27/M58 -> 489 | N60: =N27/N58 -> 489 | O60: =O27/O58 -> 489 | P60: =P27/P58 -> 489 | Q60: =Q27/Q58 -> 489
C61: Cash & balances with treasury banks | G61: PKR MM | J61: =J27*J62 -> 4366.43616 | K61: 5618.556 | L61: 8026.51584 | M61: 10485.43968 | N61: 13014.09471 | O61: 15826.96959 | P61: 18944.14489 | Q61: 22416.56727
C62: Cash as % of Deposits | G62: % | J62: 0.08 | K62: 0.08 | L62: 0.08 | M62: ='dash board'!$H$35 -> 0.08 | N62: ='dash board'!$H$35 -> 0.08 | O62: ='dash board'!$H$35 -> 0.08 | P62: ='dash board'!$H$35 -> 0.08 | Q62: ='dash board'!$H$35 -> 0.08
C63: Foreign Currency Exposure as % of Deposit | G63: % | J63: 0.1199663205 | K63: 0.09042823103 | L63: =L64/L27 -> 0.1226971783 | M63: ='dash board'!$H$36 -> 0.12 | N63: ='dash board'!$H$36 -> 0.12 | O63: ='dash board'!$H$36 -> 0.12 | P63: ='dash board'!$H$36 -> 0.12 | Q63: ='dash board'!$H$36 -> 0.12
C64: Foreign Currency Exposure | G64: PKR MM | J64: =J63*J27 -> 6547.816 | K64: 6350.951 | L64: =L79 -> 12310.38557 | M64: 15728.15952 | N64: 19521.14206 | O64: 23740.45439 | P64: 28416.21733 | Q64: 33624.8509
C67: Income Assumptions | G67: Unit | J67: =K67-1 -> 2007 | K67: =L67-1 -> 2008 | L67: =M67-1 -> 2009 | M67: =YEAR($D$4) -> 2010 | N67: =M67+1 -> 2011 | O67: =N67+1 -> 2012 | P67: =O67+1 -> 2013 | Q67: =P67+1 -> 2014
C68: Interest Earned on Financing | G68: % | J68: ='financial statements'!E16/'financial statements'!E95 -> 0.0949244093 | K68: ='financial statements'!F16/'financial statements'!F95 -> 0.1186365937 | L68: ='financial statements'!G16/'financial statements'!G95 -> 0.1152010138 | M68: ='dash board'!P14 -> 0.1078649767 | N68: ='dash board'!Q14 -> 0.1001603355 | O68: ='dash board'!R14 -> 0.09245569433 | P68: ='dash board'!S14 -> 0.08475105314 | Q68: ='dash board'!T14 -> 0.07704641194
C69: Interest Income on Financing | G69: PKR MM | J69: =J68*'Assumption Sheet'!J40 -> 3282.076 | K69: =K68*'Assumption Sheet'!K40 -> 4689.554 | L69: =L68*'Assumption Sheet'!L40 -> 5090.51 | M69: =M68*'Assumption Sheet'!M40 -> 5824.187 | N69: =N68*'Assumption Sheet'!N40 -> 6712.401781 | O69: =O68*'Assumption Sheet'!O40 -> 7535.284304 | P69: =P68*'Assumption Sheet'!P40 -> 8267.768742 | Q69: =Q68*'Assumption Sheet'!Q40 -> 8893.848698
C70: Interest Earned on Debt Investments | G70: % | J70: =('financial statements'!E17/1000)/'Assumption Sheet'!J44 -> 0.05242129243 | K70: =('financial statements'!F17/1000)/'Assumption Sheet'!K44 -> 0.07969093435 | L70: =('financial statements'!G17/1000)/'Assumption Sheet'!L44 -> 0.0978557561 | M70: ='dash board'!P15 -> 0.06731126007 | N70: ='dash board'!Q15 -> 0.06250331292 | O70: ='dash board'!R15 -> 0.05769536577 | P70: ='dash board'!S15 -> 0.05288741862 | Q70: ='dash board'!T15 -> 0.04807947148
C71: Interest Income on Debt Investment | G71: PKR MM | J71: =J70*J44 -> 378.769 | K71: 924.827 | L71: 1972.021 | M71: 2890.445 | N71: 3331.250896 | O71: 3739.633504 | P71: 4103.153079 | Q71: 4413.865918
C72: Interest Earned on Deposits | G72: % | J72: ='financial statements'!E18/SUM('financial statements'!E91:E92) -> 0.07242963314 | K72: ='financial statements'!F18/SUM('financial statements'!F91:F92) -> 0.06126495132 | L72: ='financial statements'!G18/SUM('financial statements'!G91:G92) -> 0.0765303347 | M72: ='dash board'!P16 -> 0.1512603813 | N72: ='dash board'!Q16 -> 0.1404560683 | O72: ='dash board'!R16 -> 0.1296517554 | P72: ='dash board'!S16 -> 0.1188474424 | Q72: ='dash board'!T16 -> 0.1080431295
C73: Interest Income on Deposits | G73: PKR MM | J73: =SUM(J48,J50)*J72 -> 913.599 | K73: 1193.06 | L73: 3042.987 | M73: 3096.241316 | N73: 3568.432078 | O73: 4005.891052 | P73: 4395.292797 | Q73: 4728.128028
C74: Fee, Comission Income Growth | G74: % | J74: =('financial statements'!E31/'financial statements'!D31)-1 -> 0.40176864 | K74: =('financial statements'!F31/'financial statements'!E31)-1 -> 0.2745793664 | L74: =('financial statements'!G31/'financial statements'!F31)-1 -> 0.0589203852 | M74: ='dash board'!P17 -> 0.1881386683 | N74: ='dash board'!Q17 -> 0.05 | O74: ='dash board'!R17 -> 0.05 | P74: ='dash board'!S17 -> 0.05 | Q74: ='dash board'!T17 -> 0.05
C75: Fee, Comission Income | G75: PKR MM | J75: ='financial statements'!D31*(1+'Assumption Sheet'!J74)/1000 -> 554.164 | K75: ='financial statements'!E31*(1+'Assumption Sheet'!K74)/1000 -> 706.326 | L75: ='financial statements'!G31/1000 -> 747.943 | M75: =L75*(1+M74) -> 888.66 | N75: =M75*(1+N74) -> 933.093 | O75: =N75*(1+O74) -> 979.74765 | P75: =O75*(1+P74) -> 1028.735032 | Q75: =P75*(1+Q74) -> 1080.171784
C76: Return on Equity Investments | G76: % | J76: 0.1590588321 | K76: 0.04367925565 | L76: 0.0363622354 | M76: ='dash board'!$H$17 -> 0.02568318625 | N76: ='dash board'!$H$17 -> 0.02568318625 | O76: ='dash board'!$H$17 -> 0.02568318625 | P76: ='dash board'!$H$17 -> 0.02568318625 | Q76: ='dash board'!$H$17 -> 0.02568318625
C77: Income from Equity Investments | G77: PKR MM | J77: =J46*J76 -> 657.923 | K77: 139.97 | L77: 153.371 | M77: 194.62482 | N77: 241.560289 | O77: 293.7712869 | P77: 351.6305373 | Q77: 416.0836839
C78: Return fromFX Exposure | G78: % | J78: 0.05991600864 | K78: 0.04797580709 | L78: 0.09701492537 | M78: ='dash board'!P3-3%-'dash board'!$H11 -> 0.08780709518 | N78: ='dash board'!Q3-3%-'dash board'!$H12 -> 0.05 | O78: ='dash board'!R3-3%-'dash board'!$H12 -> 0.04 | P78: ='dash board'!S3-3%-'dash board'!$H12 -> 0.03 | Q78: ='dash board'!T3-3%-'dash board'!$H12 -> 0.02 | T78: =80/67 -> 1.194029851
C79: Net Foreign Currency Exposure | G79: PKR MM | J79: =6547816/1000 -> 6547.816 | K79: =6350951/1000 -> 6350.951 | L79: =L80/0.0611678648001008 -> 12310.38557 | T79: =T78-1 -> 0.1940298507
C80: Income from FX Exposure | G80: PKR MM | J80: =J78*J64 -> 392.319 | K80: 304.692 | L80: 753 | M80: 1381.044 | N80: 976.057103 | O80: 949.6181755 | P80: 852.4865199 | Q80: 672.497018 | S80: =86/80 -> 1.075 | T80: =T79/2 -> 0.09701492537
C81: Other Income | G81: PKR MM | J81: ='financial statements'!E38/1000 -> 37.932 | K81: ='financial statements'!F38/1000 -> 109.361 | L81: ='financial statements'!G38/1000 -> 53.274 | M81: =L81*(1+M82) -> 57.00318 | N81: =M81*(1+N82) -> 60.9934026 | O81: =N81*(1+O82) -> 65.26294078 | P81: =O81*(1+P82) -> 69.83134664 | Q81: =P81*(1+Q82) -> 74.7195409 | S81: =S80-1 -> 0.075 | T81: =L80/T80 -> 7761.692308
C82: Other Income Growth | G82: % | M82: ='dash board'!P19 -> 0.07 | N82: ='dash board'!Q19 -> 0.07 | O82: ='dash board'!R19 -> 0.07 | P82: ='dash board'!S19 -> 0.07 | Q82: ='dash board'!T19 -> 0.07
C83: Share of Result of Assosiate | G83: PKR MM | J83: ='financial statements'!E48/1000 -> 62.245 | K83: ='financial statements'!F48/1000 -> -527.679 | L83: ='financial statements'!G48/1000 -> 842.986 | M83: =L83*(1+M84) -> 244.4578684 | N83: =M83*(1+N84) -> 366.6868026 | O83: =N83*(1+O84) -> 440.0241631 | P83: =O83*(1+P84) -> 528.0289957 | Q83: =P83*(1+Q84) -> 633.6347949
C84: Growth | G84: % | M84: ='dash board'!P20 -> -0.710009575 | N84: ='dash board'!Q20 -> 0.5 | O84: ='dash board'!R20 -> 0.2 | P84: ='dash board'!S20 -> 0.2 | Q84: ='dash board'!T20 -> 0.2
C86: Expense Assumptions | G86: Unit | J86: =K86-1 -> 2007 | K86: =L86-1 -> 2008 | L86: =M86-1 -> 2009 | M86: =YEAR($D$4) -> 2010 | N86: =M86+1 -> 2011 | O86: =N86+1 -> 2012 | P86: =O86+1 -> 2013 | Q86: =P86+1 -> 2014
C87: Interest Spread on Financing | G87: % | J87: =J68-J88 -> 0.04263473054 | K87: =K68-K88 -> 0.06023243245 | L87: =L68-L88 -> 0.0513283329 | M87: ='dash board'!P21 -> 0.043 | N87: ='dash board'!Q21 -> 0.045 | O87: ='dash board'!R21 -> 0.051 | P87: ='dash board'!S21 -> 0.057 | Q87: ='dash board'!T21 -> 0.058
C88: Interest Cost on Deposits & Other Accounts | G88: % | J88: 0.05228967875 | K88: 0.05840416127 | L88: 0.06387268088 | M88: ='dash board'!P23 -> 0.06486497672 | N88: ='dash board'!Q23 -> 0.05516033553 | O88: ='dash board'!R23 -> 0.04145569433 | P88: ='dash board'!S23 -> 0.02775105314 | Q88: ='dash board'!T23 -> 0.01904641194
C89: Interest Expense on Deposits & Other Accounts | G89: PKR MM | J89: =J90*J27*J88 -> 0 | K89: 0 | L89: 0 | M89: 6000.515747 | N89: 6333.336 | O89: 5788.601175 | P89: 4638.164447 | Q89: 3766.812027
C90: Rumenerative Deposits as % of Deposits | G90: % | J90: ='financial statements'!O127 -> 0 | K90: ='financial statements'!P127 -> 0 | L90: ='financial statements'!Q127 -> 0 | M90: ='dash board'!P$24 -> 0.7058 | N90: ='dash board'!Q$24 -> 0.7058 | O90: ='dash board'!R$24 -> 0.7058 | P90: ='dash board'!S$24 -> 0.7058 | Q90: ='dash board'!T$24 -> 0.7058
C91: Interest Cost on Dues to FI's | G91: % | J91: ='financial statements'!E22/'financial statements'!E103 -> 0.09274845787 | K91: ='financial statements'!F22/'financial statements'!F103 -> 0.04628333982 | L91: ='financial statements'!G22/'financial statements'!G103 -> 0.04574380995 | M91: ='dash board'!P25 -> 0.09623374761 | N91: ='dash board'!Q25 -> 0.08935990849 | O91: ='dash board'!R25 -> 0.08248606938 | P91: ='dash board'!S25 -> 0.07561223026 | Q91: ='dash board'!T25 -> 0.06873839115
C92: Interest Expense on Dues to FI's | G92: PKR MM | J92: =J91*J32 -> 237.956 | K92: 191.312 | L92: 393.096 | M92: 560.975 | N92: -39.82695679 | O92: -398.7951392 | P92: -773.0493076 | Q92: -1162.744008
C93: Admin Expenses | G93: PKR MM | J93: 1874.284 | K93: 2742.267 | L93: 3681.088 | M93: =L93*(1+M94) -> 4417.3056 | N93: =M93*(1+N94) -> 5413.758531 | O93: =N93*(1+O94) -> 6526.666631 | P93: =O93*(1+P94) -> 7756.791183 | Q93: =P93*(1+Q94) -> 9107.628306
C94: Admin Expenses Growth | G94: % | K94: =(K93/J93)-1 -> 0.4631011095 | L94: =(L95/K95)-1 -> 0.3308168932 | M94: ='dash board'!P28 -> 0.2 | N94: ='dash board'!Q28 -> 0.2255793512 | O94: ='dash board'!R28 -> 0.2055703248 | P94: ='dash board'!S28 -> 0.1884766943 | Q94: ='dash board'!T28 -> 0.1741489607
C95: Admin Expenses Less Dep. | G95: PKR MM | K95: 2511.087 | L95: 3341.797 | M95: =L95*(1+M94) -> 4010.1564 | N95: =M95*(1+N94) -> 4914.764879 | O95: =N95*(1+O94) -> 5925.094692 | P95: =O95*(1+P94) -> 7041.836953 | Q95: =P95*(1+Q94) -> 8268.165539
C96: Provisions / Deposits | G96: % | J96: 0.000108976745 | K96: 0.001228258649 | L96: -0.0006065795044 | M96: ='dash board'!P29 -> 0.0005 | N96: ='dash board'!Q29 -> 0.0005 | O96: ='dash board'!R29 -> 0.0005 | P96: ='dash board'!S29 -> 0.0005 | Q96: ='dash board'!T29 -> 0.0004
C97: Provision Expense | G97: PKR MM | J97: =J96*J27 -> 5.948 | K97: 86.263 | L97: -60.859 | M97: 65.533998 | N97: 81.33809192 | O97: 98.91855995 | P97: 118.4009055 | Q97: 112.0828363
C98: Depriciation Expense | G98: PKR MM | K98: ='financial statements'!F148/1000 -> -231.18 | L98: ='financial statements'!G148/1000 -> -339.291 | M98: ='financial statements'!H148/1000 -> -879.0277574 | N98: ='financial statements'!I148/1000 -> -1069.751768 | O98: ='financial statements'!J148/1000 -> -1305.306499 | P98: ='financial statements'!K148/1000 -> -1589.974991 | Q98: ='financial statements'!L148/1000 -> -1929.563921
C100: Equity Schedule | J100: =K100-1 -> 2007 | K100: =L100-1 -> 2008 | L100: =M100-1 -> 2009 | M100: =YEAR($D$4) -> 2010 | N100: =M100+1 -> 2011 | O100: =N100+1 -> 2012 | P100: =O100+1 -> 2013 | Q100: =P100+1 -> 2014
C101: Share CapitalOpening Balance | G101: PKR MM | K101: =3779897/1000 -> 3779.897 | L101: =K104 -> 4925.961 | M101: 6650.048 | N101: 6916.049736 | O101: 7607.654251 | P101: 8368.419217 | Q101: 9205.26068
C102: Right Issue | G102: PKR MM | L102: =1724087/1000 -> 1724.087
C103: Issuance of Bonus Shares | G103: PKR MM | K103: =1146064/1000 -> 1146.064 | M103: =M131 -> 266.0017364 | N103: =N131 -> 691.6045146 | O103: =O131 -> 760.7649661 | P103: =P131 -> 836.8414627 | Q103: =Q131 -> 920.525609
C104: Closing Balance | G104: PKR MM | K104: =SUM(K101:K103) -> 4925.961 | L104: =SUM(L101:L103) -> 6650.048 | M104: 6916.049736 | N104: 7607.654251 | O104: 8368.419217 | P104: 9205.26068 | Q104: 10125.78629
C106: Statutory Reserve Opening Balance | G106: PKR MM | K106: =654019/1000 -> 654.019 | L106: =K108 -> 778.256 | M106: 983.326 | N106: 1315.444593 | O106: 1838.069634 | P106: 2519.376786 | Q106: 3403.533502
C107: Transfer to the Reserve | G107: PKR MM | K107: =124237/1000 -> 124.237 | L107: =-L118 -> 205.07 | M107: 332.1185932 | N107: 522.6250409 | O107: 681.3071518 | P107: 884.156716 | Q107: 981.9473604
C108: Closing Balance | G108: PKR MM | K108: =SUM(K106:K107) -> 778.256 | L108: =SUM(L106:L107) -> 983.326 | M108: 1315.444593 | N108: 1838.069634 | O108: 2519.376786 | P108: 3403.533502 | Q108: 4385.480862
C110: General Reserves Opening Balance | G110: PKR MM | K110: =91082/1000 -> 91.082 | L110: =K112 -> 91.082 | M110: 91.082 | N110: 91.082 | O110: 91.082 | P110: 91.082 | Q110: 91.082
C111: Changes During the Year | G111: PKR MM
C112: Closing Balance | G112: PKR MM | K112: =SUM(K110:K111) -> 91.082 | L112: =SUM(L110:L111) -> 91.082 | M112: 91.082 | N112: 91.082 | O112: 91.082 | P112: 91.082 | Q112: 91.082
C114: Retained Earnings Opening Balance | G114: PKR MM | K114: =1774988/1000 -> 1774.988 | L114: =K119 -> 717.684 | M114: 2089.956 | N114: 3078.401636 | O114: 4399.568935 | P114: 6282.417809 | Q114: 8896.507704
C115: Profit After Tax | G115: PKR MM | K115: ='financial statements'!F51/1000 -> 156 | L115: ='financial statements'!G51/1000 -> 1676.242 | M115: ='financial statements'!H51/1000 -> 1660.592966 | N115: ='financial statements'!I51/1000 -> 2613.125205 | O115: ='financial statements'!J51/1000 -> 3406.535759 | P115: ='financial statements'!K51/1000 -> 4420.78358 | Q115: ='financial statements'!L51/1000 -> 4909.736802
C116: Minority Stake | G116: PKR MM | K116: =('financial statements'!F52)/1000 -> 56.997 | L116: =('financial statements'!G52)/1000 -> -98.9 | M116: =('financial statements'!H52)/1000 -> -74.027 | N116: =('financial statements'!I52)/1000 -> -77.72835 | O116: =('financial statements'!J52)/1000 -> -81.6147675 | P116: =('financial statements'!K52)/1000 -> -85.69550588 | Q116: =('financial statements'!L52)/1000 -> -89.98028117
C117: Bonus Issue | G117: PKR MM | K117: =-1146064/1000 -> -1146.064 | M117: =-M131 -> -266.0017364 | N117: =-N131 -> -691.6045146 | O117: =-O131 -> -760.7649661 | P117: =-P131 -> -836.8414627 | Q117: =-Q131 -> -920.525609
C118: Transfer to Statutory Reserve | G118: PKR MM | K118: =-124237/1000 -> -124.237 | L118: =-205070/1000 -> -205.07 | M118: =-(0.2*'financial statements'!H51)/1000 -> -332.1185932 | N118: =-(0.2*'financial statements'!I51)/1000 -> -522.6250409 | O118: =-(0.2*'financial statements'!J51)/1000 -> -681.3071518 | P118: =-(0.2*'financial statements'!K51)/1000 -> -884.156716 | Q118: =-(0.2*'financial statements'!L51)/1000 -> -981.9473604
C119: Closing Balances | G119: PKR MM | K119: =SUM(K114:K118) -> 717.684 | L119: =SUM(L114:L118) -> 2089.956 | M119: 3078.401636 | N119: 4399.568935 | O119: 6282.417809 | P119: 8896.507704 | Q119: 11813.79126
C121: Non Controlling Interest Opening Balance | G121: PKR MM | K121: =261084/1000 -> 261.084 | L121: =K124 -> 204.087 | M121: 302.987 | N121: 377.014 | O121: 454.74235 | P121: 536.3571175 | Q121: 622.0526234
C122: Profit/(Loss) During the Year | G122: PKR MM | K122: =-('financial statements'!F52/1000) -> -56.997 | L122: =-('financial statements'!G52/1000) -> 98.9 | M122: =L122*(1+M123) -> 74.027 | N122: =M122*(1+N123) -> 77.72835 | O122: =N122*(1+O123) -> 81.6147675 | P122: =O122*(1+P123) -> 85.69550588 | Q122: =P122*(1+Q123) -> 89.98028117
C123: Growth During a Year | G123: % | M123: -0.2514964611 | N123: 0.05 | O123: 0.05 | P123: 0.05 | Q123: 0.05
C124: Closing Balance | G124: PKR MM | K124: =SUM(K121:K122) -> 204.087 | L124: =SUM(L121:L122) -> 302.987 | M124: 377.014 | N124: 454.74235 | O124: 536.3571175 | P124: 622.0526234 | Q124: 712.0329045
C125: Total Change in the Equity During the Year | G125: PKR MM | K125: =K104+K108+K112+K119+K124 -> 6717.07 | L125: 10117.399 | M125: 11777.99197 | N125: 14391.11717 | O125: 17797.65293 | P125: 22218.43651 | Q125: 27128.17331
C127: Weighted average basic shares outstanding | J127: =K127-1 -> 2007 | K127: =L127-1 -> 2008 | L127: =M127-1 -> 2009 | M127: =YEAR($D$4) -> 2010 | N127: =M127+1 -> 2011 | O127: =N127+1 -> 2012 | P127: =O127+1 -> 2013 | Q127: =P127+1 -> 2014
C128: Opening Balance | K128: =377989.686/1000 -> 377.989686 | L128: =K135 -> 492.595686 | M128: 665.004341 | N128: 691.6045146 | O128: 760.7649661 | P128: 836.8414627 | Q128: 920.525609
C129: Bonus Share Perncentage | G129: % | M129: 0.04 | N129: 0.1 | O129: 0.1 | P129: 0.1 | Q129: 0.1
C130: Right Share Percentage | G130: % | M130: 0 | N130: 0 | O130: 0 | P130: 0 | Q130: 0
C131: Value of Bonus Shares | G131: PKR MM | K131: =1146065/1000 -> 1146.065 | M131: =M133*10 -> 266.0017364 | N131: 691.6045146 | O131: 760.7649661 | P131: 836.8414627 | Q131: 920.525609
C132: Value of Right Shares | G132: PKR MM | L132: 1724.087 | M132: 0 | N132: 0 | O132: 0 | P132: 0 | Q132: 0
C133: Bonus Shares Issued | K133: =114606/1000 -> 114.606 | M133: =M128*M129 -> 26.60017364 | N133: =N128*N129 -> 69.16045146 | O133: =O128*O129 -> 76.07649661 | P133: =P128*P129 -> 83.68414627 | Q133: =Q128*Q129 -> 92.0525609
C134: Right Shares Issued | L134: =172.408655 -> 172.408655 | M134: =M128*M130 -> 0 | N134: =N128*N130 -> 0 | O134: =O128*O130 -> 0 | P134: =P128*P130 -> 0 | Q134: =Q128*Q130 -> 0
C135: End of the Basic Shares Outstanding | K135: =K128+K133+K134 -> 492.595686 | L135: =L128+L133+L134 -> 665.004341 | M135: 691.6045146 | N135: 760.7649661 | O135: 836.8414627 | P135: 920.525609 | Q135: 1012.57817
C136: Weighted average basic shares outstanding | J136: =377989.686/1000 -> 377.989686 | K136: 509.004 | L136: 599.185 | M136: =AVERAGE(L135:M135) -> 678.3044278 | N136: =AVERAGE(M135:N135) -> 726.1847404 | O136: =AVERAGE(N135:O135) -> 798.8032144 | P136: =AVERAGE(O135:P135) -> 878.6835359 | Q136: =AVERAGE(P135:Q135) -> 966.5518894
C139: State Bank Paid up Capital Requirement
C140: paid up capital required | K140: 13000
C141: curren paid up capital | K141: =SUM('financial statements'!G111,'financial statements'!G113)/1000 -> 8740.004
C142: Remaining Required | K142: =(K140-K141)/3 -> 1419.998667

Sheet financial statements
C2: ="Financial Statement Model for "&D6 -> Financial Statement Model for Meezan Bank
C5: General Information
C6: Company Name | D6: ='dash board'!Y2 -> Meezan Bank
C7: Last Fiscal Year End (dd/mm/yy) | D7: ='dash board'!Y3 -> 2010-12-31
C8: Current Share Price | D8: ='dash board'!Y4 -> 18.64
C9: Current Date | D9: ='dash board'!Y5 -> 2011-04-17
C11: ="Income Statement of "&D6 -> Income Statement of Meezan Bank
D12: ACTUAL | H12: PROJECTED
D13: =E13-1 -> 2006 | E13: =F13-1 -> 2007 | F13: =G13-1 -> 2008 | G13: =H13-1 -> 2009 | H13: =YEAR(D7) -> 2010 | I13: =H13+1 -> 2011 | J13: =I13+1 -> 2012 | K13: =J13+1 -> 2013 | L13: =K13+1 -> 2014
D14: =DATE(YEAR(E14)-1,MONTH(E14),DAY(E14)) -> 2006-12-31 | E14: =DATE(YEAR(F14)-1,MONTH(F14),DAY(F14)) -> 2007-12-31 | F14: =DATE(YEAR(G14)-1,MONTH(G14),DAY(G14)) -> 2008-12-31 | G14: =DATE(YEAR(H14)-1,MONTH(H14),DAY(H14)) -> 2009-12-31 | H14: =D7 -> 2010-12-31 | I14: =DATE(YEAR(H14)+1,MONTH(H14),DAY(H14)) -> 2011-12-31 | J14: =DATE(YEAR(I14)+1,MONTH(I14),DAY(I14)) -> 2012-12-31 | K14: =DATE(YEAR(J14)+1,MONTH(J14),DAY(J14)) -> 2013-12-31 | L14: =DATE(YEAR(K14)+1,MONTH(K14),DAY(K14)) -> 2014-12-31
C16: On Financing to Customers | D16: 2349049 | E16: 3282076 | F16: 4689554 | G16: 5090510 | H16: ='Assumption Sheet'!M69*1000 -> 5824187 | I16: ='Assumption Sheet'!N69*1000 -> 6712401.781 | J16: ='Assumption Sheet'!O69*1000 -> 7535284.304 | K16: ='Assumption Sheet'!P69*1000 -> 8267768.742 | L16: ='Assumption Sheet'!Q69*1000 -> 8893848.698
C17: Interest Earned on Investments | D17: 130242 | E17: 378769 | F17: 924827 | G17: 1972021 | H17: ='Assumption Sheet'!M71*1000 -> 2890445 | I17: ='Assumption Sheet'!N71*1000 -> 3331250.896 | J17: ='Assumption Sheet'!O71*1000 -> 3739633.504 | K17: ='Assumption Sheet'!P71*1000 -> 4103153.079 | L17: ='Assumption Sheet'!Q71*1000 -> 4413865.918
C18: On Deposits/Placements with Financial Institutions | D18: 224756 | E18: 913599 | F18: 1193060 | G18: 3042987 | H18: ='Assumption Sheet'!M73*1000 -> 3096241.316 | I18: ='Assumption Sheet'!N73*1000 -> 3568432.078 | J18: ='Assumption Sheet'!O73*1000 -> 4005891.052 | K18: ='Assumption Sheet'!P73*1000 -> 4395292.797 | L18: ='Assumption Sheet'!Q73*1000 -> 4728128.028
C19: Return Earned on Cash | H19: =IF(G90>'Assumption Sheet'!L61,('financial statements'!G90-'Assumption Sheet'!L61)*('Assumption Sheet'!L72-2%),0) -> 473695.6843 | I19: =IF(H90>'Assumption Sheet'!M61,('financial statements'!H90-'Assumption Sheet'!M61)*('Assumption Sheet'!M72-2%),0) -> 1680858.112 | J19: =IF(I90>'Assumption Sheet'!N61,('financial statements'!I90-'Assumption Sheet'!N61)*'Assumption Sheet'!N72,0) -> 1812193.323 | K19: =IF(J90>'Assumption Sheet'!O61,('financial statements'!J90-'Assumption Sheet'!O61)*'Assumption Sheet'!O72,0) -> 2086025.805 | L19: =IF(K90>'Assumption Sheet'!P61,('financial statements'!K90-'Assumption Sheet'!P61)*'Assumption Sheet'!P72,0) -> 2347837.129
C20: Profit /return on financings, investments and placements | D20: =SUM(D17:D18,D16) -> 2704047 | E20: =SUM(E17:E18,E16) -> 4574444 | F20: =SUM(F17:F18,F16) -> 6807441 | G20: =SUM(G17:G18,G16) -> 10105518 | H20: =SUM(H17:H18,H16,H19) -> 12284569 | I20: =SUM(I17:I18,I16,I19) -> 15292942.87 | J20: =SUM(J17:J18,J16,J19) -> 17093002.18 | K20: =SUM(K17:K18,K16,K19) -> 18852240.42 | L20: =SUM(L17:L18,L16,L19) -> 20383679.77
C21: Deposits and Other Accounts | D21: 1226075 | E21: 2213494 | F21: 2896861 | G21: 4576747 | H21: ='Assumption Sheet'!M89*1000 -> 6000515.747 | I21: ='Assumption Sheet'!N89*1000 -> 6333336 | J21: ='Assumption Sheet'!O89*1000 -> 5788601.175 | K21: ='Assumption Sheet'!P89*1000 -> 4638164.447 | L21: ='Assumption Sheet'!Q89*1000 -> 3766812.027
C22: Other Short Term Borrowings | D22: 237034 | E22: 237956 | F22: 191312 | G22: 393096 | H22: ='Assumption Sheet'!M92*1000 -> 560975 | I22: ='Assumption Sheet'!N92*1000 -> -39826.95679 | J22: ='Assumption Sheet'!O92*1000 -> -398795.1392 | K22: ='Assumption Sheet'!P92*1000 -> -773049.3076 | L22: ='Assumption Sheet'!Q92*1000 -> -1162744.008
C23: Return on deposits and other dues expensed | D23: =SUM(D21:D22) -> 1463109 | E23: 2451450 | F23: 3088173 | G23: 4969843 | H23: 6561490.747 | I23: 6293509.044 | J23: 5389806.036 | K23: 3865115.14 | L23: 2604068.02
C25: Net spread earned | D25: =D20-D23 -> 1240938 | E25: 2122994 | F25: 3719268 | G25: 5135675 | H25: 5723078.253 | I25: 8999433.824 | J25: 11703196.15 | K25: 14987125.28 | L25: 17779611.75
C26: Provision against non- performing financings (net) | D26: 121581 | E26: 435018 | F26: 428436 | G26: 1430536 | H26: ='Assumption Sheet'!M53*1000 -> 1330057 | I26: ='Assumption Sheet'!N53*1000 -> 1778933.675 | J26: ='Assumption Sheet'!O53*1000 -> 2235820.957 | K26: ='Assumption Sheet'!P53*1000 -> 2752219.751 | L26: ='Assumption Sheet'!Q53*1000 -> 3332996.561
C27: Provision for impairment in value of available for sale investments | D27: 1297 | E27: 0 | F27: 288884 | G27: 88890 | H27: 0 | I27: 0 | J27: 0 | K27: 0 | L27: 0
D28: =SUM(D26:D27) -> 122878 | E28: 435018 | F28: 717320 | G28: 1519426 | H28: 1330057 | I28: 1778933.675 | J28: 2235820.957 | K28: 2752219.751 | L28: 3332996.561
C29: Net spread after provisions | D29: =D25-D28 -> 1118060 | E29: 1687976 | F29: 3001948 | G29: 3616249 | H29: 4393021.253 | I29: 7220500.149 | J29: 9467375.19 | K29: 12234905.53 | L29: 14446615.19
C30: OTHER INCOME
C31: Fee, commission and brokerage income | D31: 395332 | E31: 554164 | F31: 706326 | G31: 747943 | H31: ='Assumption Sheet'!M75*1000 -> 888660 | I31: ='Assumption Sheet'!N75*1000 -> 933093 | J31: ='Assumption Sheet'!O75*1000 -> 979747.65 | K31: ='Assumption Sheet'!P75*1000 -> 1028735.032 | L31: ='Assumption Sheet'!Q75*1000 -> 1080171.784
C32: Dividend income | D32: 70773 | E32: 112119 | F32: 125048 | G32: 88101
C33: Income from dealing in foreign currencies | D33: 201519 | E33: 392319 | F33: 304692 | G33: 752904 | H33: ='Assumption Sheet'!M80*1000 -> 1381044 | I33: ='Assumption Sheet'!N80*1000 -> 976057.103 | J33: ='Assumption Sheet'!O80*1000 -> 949618.1755 | K33: ='Assumption Sheet'!P80*1000 -> 852486.5199 | L33: ='Assumption Sheet'!Q80*1000 -> 672497.018
C34: Capital gain/(loss) on sale of investments | D34: 128131 | E34: 570699 | F34: 37903 | G34: 66585
C35: Un-Realised Loss on Held for Trading | D35: -35389 | E35: -24895 | F35: -22981 | G35: -1315 | H35: 0 | I35: 0 | J35: 0 | K35: 0 | L35: 0
C36: Income on Equity Investment | E36: =SUM(E32,E34,E35) -> 657923 | F36: =SUM(F32,F34,F35) -> 139970 | G36: =SUM(G32,G34,G35) -> 153371 | H36: ='Assumption Sheet'!M77*1000 -> 194624.82 | I36: ='Assumption Sheet'!N77*1000 -> 241560.289 | J36: ='Assumption Sheet'!O77*1000 -> 293771.2869 | K36: ='Assumption Sheet'!P77*1000 -> 351630.5373 | L36: ='Assumption Sheet'!Q77*1000 -> 416083.6839
C37: Impairment on Reclassification from HTM to AVS | D37: 0 | E37: 0 | F37: -362751 | G37: 0 | H37: 0 | I37: 0 | J37: 0 | K37: 0 | L37: 0
C38: Other income | D38: 34299 | E38: 37932 | F38: 109361 | G38: 53274 | H38: ='Assumption Sheet'!M81*1000 -> 57003.18 | I38: ='Assumption Sheet'!N81*1000 -> 60993.4026 | J38: ='Assumption Sheet'!O81*1000 -> 65262.94078 | K38: ='Assumption Sheet'!P81*1000 -> 69831.34664 | L38: ='Assumption Sheet'!Q81*1000 -> 74719.5409
C39: Total other income | D39: =SUM(D31:D38) -> 794665 | E39: =SUM(E31,E33,E36,E37,E38) -> 1642338 | F39: =SUM(F31,F33,F36,F37,F38) -> 897598 | G39: 1707492 | H39: 2521332 | I39: 2211703.795 | J39: 2288400.053 | K39: 2302683.436 | L39: 2243472.027
C40: Earning Before Expenses and Taxes | D40: =D29+D39 -> 1912725 | E40: 3330314 | F40: 3899546 | G40: 5323741 | H40: 6914353.253 | I40: 9432203.943 | J40: 11755775.24 | K40: 14537588.97 | L40: 16690087.22
C41: OTHER EXPENSES
C42: Administrative expenses | D42: 1088883 | E42: 1874284 | F42: 2742267 | G42: 3681088 | H42: ='Assumption Sheet'!M95*1000 -> 4010156.4 | I42: ='Assumption Sheet'!N95*1000 -> 4914764.879 | J42: ='Assumption Sheet'!O95*1000 -> 5925094.692 | K42: ='Assumption Sheet'!P95*1000 -> 7041836.953 | L42: ='Assumption Sheet'!Q95*1000 -> 8268165.539
C43: Depriciation Expense | H43: =-'Assumption Sheet'!M98*1000 -> 879027.7574 | I43: =-'Assumption Sheet'!N98*1000 -> 1069751.768 | J43: =-'Assumption Sheet'!O98*1000 -> 1305306.499 | K43: =-'Assumption Sheet'!P98*1000 -> 1589974.991 | L43: =-'Assumption Sheet'!Q98*1000 -> 1929563.921
C44: Provisions/ Write Offs/( Reversals) | D44: 0 | E44: 5948 | F44: 86263 | G44: -60859 | H44: ='Assumption Sheet'!M97*1000 -> 65533.998 | I44: ='Assumption Sheet'!N97*1000 -> 81338.09192 | J44: ='Assumption Sheet'!O97*1000 -> 98918.55995 | K44: ='Assumption Sheet'!P97*1000 -> 118400.9055 | L44: ='Assumption Sheet'!Q97*1000 -> 112082.8363
C45: Other charges | D45: 4776 | E45: 2884 | F45: 20034 | G45: 19093 | H45: 0 | I45: 0 | J45: 0 | K45: 0 | L45: 0
C46: Total other expenses | D46: =SUM(D42:D45) -> 1093659 | E46: 1883116 | F46: 2848564 | G46: 3639322 | H46: 4954718.155 | I46: 6065854.739 | J46: 7329319.75 | K46: 8750212.849 | L46: 10309812.3
C47: Earning after Expenses and Before Taxes | D47: =D40-D46 -> 819066 | E47: 1447198 | F47: 1050982 | G47: 1684419 | H47: 1959635.098 | I47: 3366349.204 | J47: 4426455.493 | K47: 5787376.119 | L47: 6380274.922
C48: Share of results of associates before taxation | D48: 102187 | E48: 62245 | F48: -527679 | G48: 842986 | H48: ='Assumption Sheet'!M83*1000 -> 244457.8684 | I48: ='Assumption Sheet'!N83*1000 -> 366686.8026 | J48: ='Assumption Sheet'!O83*1000 -> 440024.1631 | K48: ='Assumption Sheet'!P83*1000 -> 528028.9957 | L48: ='Assumption Sheet'!Q83*1000 -> 633634.7949
C49: PROFIT BEFORE TAXATION | D49: =SUM(D47:D48) -> 921253 | E49: 1509443 | F49: 523303 | G49: 2527405 | H49: 2204092.966 | I49: 3733036.007 | J49: 4866479.656 | K49: 6315405.114 | L49: 7013909.717
C50: Taxes | D50: 222651 | E50: 385392 | F50: 367303 | G50: 851163 | H50: 543500 | I50: =I49*0.3 -> 1119910.802 | J50: =J49*0.3 -> 1459943.897 | K50: =K49*0.3 -> 1894621.534 | L50: =L49*0.3 -> 2104172.915
C51: PROFIT AFTER TAXATION | D51: =D49-D50 -> 698602 | E51: 1124051 | F51: 156000 | G51: 1676242 | H51: 1660592.966 | I51: 2613125.205 | J51: 3406535.759 | K51: 4420783.58 | L51: 4909736.802
C52: Share of profit attributable to non controlling interest | D52: -47134 | E52: -75220 | F52: 56997 | G52: -98900 | H52: =-(1000*'Assumption Sheet'!M122) -> -74027 | I52: =-(1000*'Assumption Sheet'!N122) -> -77728.35 | J52: =-(1000*'Assumption Sheet'!O122) -> -81614.7675 | K52: =-(1000*'Assumption Sheet'!P122) -> -85695.50588 | L52: =-(1000*'Assumption Sheet'!Q122) -> -89980.28117
C53: PROFIT ATTRIBUTABLE TO SHAREHOLDERS | D53: =SUM(D51:D52) -> 651468 | E53: 1048831 | F53: 212997 | G53: 1577342 | H53: 1586565.966 | I53: 2535396.855 | J53: 3324920.992 | K53: 4335088.074 | L53: 4819756.521
C55: Pro Forma EBITDA Reconciliation
C56: EBIT | F56: =F49 -> 523303 | G56: 2527405 | H56: 2204092.966 | I56: 3733036.007 | J56: 4866479.656 | K56: 6315405.114 | L56: 7013909.717
C57: Depreciation & Amortization | F57: 231180 | G57: 339291 | H57: =H43 -> 879027.7574 | I57: =I43 -> 1069751.768 | J57: =J43 -> 1305306.499 | K57: =K43 -> 1589974.991 | L57: =L43 -> 1929563.921
C58: EBITDA | F58: =SUM(F56:F57) -> 754483 | G58: 2866696 | H58: 3083120.723 | I58: 4802787.775 | J58: 6171786.155 | K58: 7905380.105 | L58: 8943473.638
C60: Pro Forma Basic EPS Reconciliation
C61: Net Income for Basic EPS | D61: =D53 -> 651468 | E61: =E53 -> 1048831 | F61: =F53 -> 212997 | G61: 1577342 | H61: 1586565.966 | I61: 2535396.855 | J61: 3324920.992 | K61: 4335088.074 | L61: 4819756.521
C62: Basic Shares Outstanding | D62: 881.592 | E62: ='Assumption Sheet'!J136*1000 -> 377989.686 | F62: ='Assumption Sheet'!K136*1000 -> 509004 | G62: ='Assumption Sheet'!L136*1000 -> 599185 | H62: ='Assumption Sheet'!M135*1000 -> 691604.5146 | I62: ='Assumption Sheet'!N136*1000 -> 726184.7404 | J62: ='Assumption Sheet'!O136*1000 -> 798803.2144 | K62: ='Assumption Sheet'!P136*1000 -> 878683.5359 | L62: ='Assumption Sheet'!Q136*1000 -> 966551.8894
C63: Basic EPS | D63: =D61/D62 -> 738.9676857 | E63: =E61/E62 -> 2.774760897 | F63: =F61/F62 -> 0.4184584011 | G63: =G61/G62 -> 2.632479117 | H63: =H61/$H$62 -> 2.29403645 | I63: =I61/$H$62 -> 3.665963424 | J63: 4.807546685 | K63: 6.268160462 | L63: 6.968948899
C65: Provisions Schedule
C66: Net Charge For the Year | E66: =SUM(E68:E70) -> 435018 | F66: =SUM(F68:F70) -> 424916 | G66: 1430355 | H66: =SUM(H68:H69) -> 1330057 | I66: =SUM(I68:I69) -> 1778933.675 | J66: 2235820.957 | K66: 2752219.751 | L66: 3332996.561
C67: Opening balance | D67: 116674 | E67: =D71 -> 238255 | F67: 673273 | G67: 1098189 | H67: 2528544 | I67: 3804605.837 | J67: 5516522.946 | K67: 7670842.332 | L67: 10325508.5
C68: Charge for the year | D68: 123118 | E68: 458230 | F68: 784704 | G68: 1577295 | H68: =H74*G73 -> 1509387.685 | I68: =I74*H73 -> 1867478.382 | J68: =J74*I73 -> 2343503.774 | K68: =K74*J73 -> 2881111.064 | L68: =L74*K73 -> 3485513.384
C69: Less: Reversals | D69: -1537 | E69: -23212 | F69: -356268 | G69: -146759 | H69: =H75*H$72 -> -179330.6846 | I69: -88544.7069 | J69: -107682.8174 | K69: -128891.3132 | L69: -152516.823
C70: Assets Write off | F70: -3520 | G70: -181 | H70: -53995.163 | I70: -67016.56644 | J70: -81501.57065 | K70: -97553.58118 | L70: -115434.9498
C71: Closing balance | D71: =SUM(D67:D70) -> 238255 | E71: 673273 | F71: 1098189 | G71: 2528544 | H71: 3804605.837 | I71: 5516522.946 | J71: 7670842.332 | K71: 10325508.5 | L71: 13543070.11
C72: Net Advances | D72: =D95 -> 0 | E72: ='Assumption Sheet'!J40*1000 -> 34575680 | F72: ='Assumption Sheet'!K40*1000 -> 39528731 | G72: ='Assumption Sheet'!L40*1000 -> 44188066 | H72: ='Assumption Sheet'!M40*1000 -> 53995163 | I72: ='Assumption Sheet'!N40*1000 -> 67016566.44 | J72: ='Assumption Sheet'!O40*1000 -> 81501570.65 | K72: ='Assumption Sheet'!P40*1000 -> 97553581.18 | L72: ='Assumption Sheet'!Q40*1000 -> 115434949.8
C73: Gross Advances | E73: =SUM(E71:E72) -> 35248953 | F73: =SUM(F71:F72) -> 40626920 | G73: 46716610 | H73: 57799768.84 | I73: 72533089.39 | J73: 89172412.99 | K73: 107879089.7 | L73: 128978019.9
C74: Charge for the year as % of Gross Advances | F74: =F68/E73 -> 0.0222617676 | G74: =G68/F73 -> 0.0388238882 | H74: ='dash board'!P32 -> 0.03230944378 | I74: ='dash board'!Q32 -> 0.03230944378 | J74: ='dash board'!R32 -> 0.03230944378 | K74: ='dash board'!S32 -> 0.03230944378 | L74: ='dash board'!T32 -> 0.03230944378
C75: Reversals as % of Net Advances | E75: =E69/E72 -> -0.0006713389296 | F75: =F69/F72 -> -0.00901288736 | G75: =G69/G72 -> -0.0033212361 | H75: ='dash board'!P34 -> -0.0033212361 | I75: ='dash board'!Q34 -> -0.0013212361 | J75: ='dash board'!R34 -> -0.0013212361 | K75: ='dash board'!S34 -> -0.0013212361 | L75: ='dash board'!T34 -> -0.0013212361
C76: Assets Write off as % of Provisions | E76: =E70/E67 -> 0 | F76: =F70/F67 -> -0.005228191239 | G76: =G70/G67 -> -0.0001648168029 | H76: ='dash board'!P35 -> -0.001 | I76: ='dash board'!Q35 -> -0.001 | J76: ='dash board'!R35 -> -0.001 | K76: ='dash board'!S35 -> -0.001 | L76: ='dash board'!T35 -> -0.001
C78: Investement Details
C79: Equity Investements | E79: 4136350 | F79: 3204496 | G79: 4217865
C80: Debt Investements | E80: 7225480 | F80: 11605172 | G80: 20152325
C81: Total Investements | E81: =E93 -> 11361830 | F81: =F93 -> 14809668 | G81: =G93 -> 24370190
C82: Debt Investements | E82: =E80/E81 -> 0.6359433296 | F82: =F80/F81 -> 0.7836213479 | G82: =G80/G81 -> 0.8269252312
C83: Equity Investements | E83: =E79/E81 -> 0.3640566704 | F83: =F79/F81 -> 0.2163786521 | G83: =G79/G81 -> 0.1730747688
C85: Balance Sheet
D86: ACTUAL | H86: PROJECTED
D87: =E87-1 -> 2006 | E87: =F87-1 -> 2007 | F87: =G87-1 -> 2008 | G87: =H87-1 -> 2009 | H87: =YEAR(D7) -> 2010 | I87: =H87+1 -> 2011 | J87: =I87+1 -> 2012 | K87: =J87+1 -> 2013 | L87: =K87+1 -> 2014
D88: =DATE(YEAR(E88)-1,MONTH(E88),DAY(E88)) -> 2006-12-31 | E88: =DATE(YEAR(F88)-1,MONTH(F88),DAY(F88)) -> 2007-12-31 | F88: =DATE(YEAR(G88)-1,MONTH(G88),DAY(G88)) -> 2008-12-31 | G88: =DATE(YEAR(H88)-1,MONTH(H88),DAY(H88)) -> 2009-12-31 | H88: =D7 -> 2010-12-31 | I88: =DATE(YEAR(H88)+1,MONTH(H88),DAY(H88)) -> 2011-12-31 | J88: =DATE(YEAR(I88)+1,MONTH(I88),DAY(I88)) -> 2012-12-31 | K88: =DATE(YEAR(J88)+1,MONTH(J88),DAY(J88)) -> 2013-12-31 | L88: =DATE(YEAR(K88)+1,MONTH(K88),DAY(K88)) -> 2014-12-31
C89: ASSETS
C90: Cash and balances with treasury banks | E90: 5644137 | F90: 5763788 | G90: 8387522 | H90: =H186 -> 12816010.58 | I90: =I186 -> 12915221.48 | J90: =J186 -> 16105279.82 | K90: =K186 -> 19773993.82 | L90: =L186 -> 23190031.9
C91: Balances with other banks | E91: 3763608 | F91: 1365777 | G91: 5262341 | H91: =1000*'Assumption Sheet'!M48 -> 9957757 | I91: =1000*'Assumption Sheet'!N48 -> 12359156.76 | J91: =1000*'Assumption Sheet'!O48 -> 15030472.93 | K91: =1000*'Assumption Sheet'!P48 -> 17990775.5 | L91: =1000*'Assumption Sheet'!Q48 -> 21288447.26
C92: Due from financial institutions | E92: 8850000 | F92: 18108000 | G92: 34499500 | H92: ='Assumption Sheet'!M50*1000 -> 10511855 | I92: ='Assumption Sheet'!N50*1000 -> 13046880.31 | J92: ='Assumption Sheet'!O50*1000 -> 15866841.5 | K92: ='Assumption Sheet'!P50*1000 -> 18991869.7 | L92: ='Assumption Sheet'!Q50*1000 -> 22473039.94
C93: Investments | E93: 11361830 | F93: 14809668 | G93: 24370190 | H93: ='Assumption Sheet'!M42*1000 -> 50519386 | I93: ='Assumption Sheet'!N42*1000 -> 62702575.57 | J93: ='Assumption Sheet'!O42*1000 -> 76255150.99 | K93: ='Assumption Sheet'!P42*1000 -> 91273861.39 | L93: ='Assumption Sheet'!Q42*1000 -> 108004170.5
C94: Investment In Associates | H94: =-H157 -> 73337.36052 | I94: =H94-I157 -> 183343.4013 | J94: =I94-J157 -> 315350.6502 | K94: =J94-K157 -> 473759.349 | L94: =K94-L157 -> 663849.7874
C95: Financings | E95: 34575680 | F95: 39528731 | G95: 44188066 | H95: ='Assumption Sheet'!M40*1000 -> 53995163 | I95: ='Assumption Sheet'!N40*1000 -> 67016566.44 | J95: ='Assumption Sheet'!O40*1000 -> 81501570.65 | K95: ='Assumption Sheet'!P40*1000 -> 97553581.18 | L95: ='Assumption Sheet'!Q40*1000 -> 115434949.8
C96: Operating fixed assets | E96: 1049376 | F96: 1898530 | G96: 2437228 | H96: =H144 -> 2679248.03 | I96: =I144 -> 2563116.316 | J96: =J144 -> 2435583.47 | K96: =K144 -> 2268950.938 | L96: =L144 -> 2037331.669
C97: Deferred tax assets | F97: - | G97: 134314 | H97: 241746 | I97: 241746 | J97: 241746 | K97: 241746 | L97: 241746
C98: Other assets | E98: 3016556 | F98: 4330436 | G98: 6235255 | H98: ='Assumption Sheet'!M52*1000 -> 17707256 | I98: =H98 -> 17707256 | J98: =I98 -> 17707256 | K98: =J98 -> 17707256 | L98: =K98 -> 17707256
C99: Total Asset | E99: =SUM(E90:E98) -> 68261187 | F99: 85804930 | G99: 125514416 | H99: 158501759 | I99: 188735862.3 | J99: 225459252 | K99: 266275793.9 | L99: 311040822.8
C101: Liabilities
C102: Bills payable | E102: 1192160 | F102: 1057017 | G102: 1249210 | H102: ='Assumption Sheet'!M31*1000 -> 1767370 | I102: ='Assumption Sheet'!N31*1000 -> 2193586.656 | J102: ='Assumption Sheet'!O31*1000 -> 2667709.901 | K102: ='Assumption Sheet'!P31*1000 -> 3193124.406 | L102: ='Assumption Sheet'!Q31*1000 -> 3778417.472
C103: Due to financial institutions | E103: 2565606 | F103: 4133496 | G103: 8593425 | H103: ='Assumption Sheet'!M32*1000 -> 5829296 | I103: ='Assumption Sheet'!N32*1000 -> -445691.5575 | J103: ='Assumption Sheet'!O32*1000 -> -4834696.843 | K103: ='Assumption Sheet'!P32*1000 -> -10223865.97 | L103: ='Assumption Sheet'!Q32*1000 -> -16915496.39
C104: Deposits and other accounts | E104: 54580452 | F104: 70231950 | G104: 100331448 | H104: ='Assumption Sheet'!M27*1000 -> 131067996 | I104: ='Assumption Sheet'!N27*1000 -> 162676183.8 | J104: ='Assumption Sheet'!O27*1000 -> 197837119.9 | K104: ='Assumption Sheet'!P27*1000 -> 236801811.1 | L104: ='Assumption Sheet'!Q27*1000 -> 280207090.8
C105: Sub-ordinated loan | F105: - | G105: -
C106: Liabilities against assets subject to finance leases | F106: - | G106: -
C107: Deferred tax liabilities | E107: 453131 | F107: 409340 | G107: -
C108: Other liabilities | E108: 2922022 | F108: 3622176 | G108: 5129010 | H108: ='Assumption Sheet'!M34*1000 -> 7719237 | I108: ='Assumption Sheet'!N34*1000 -> 9580798.178 | J108: ='Assumption Sheet'!O34*1000 -> 11651598.12 | K108: ='Assumption Sheet'!P34*1000 -> 13946419.85 | L108: ='Assumption Sheet'!Q34*1000 -> 16502769.63
E109: =SUM(E102:E108) -> 61713371 | F109: 79453979 | G109: 115303093 | H109: 146383899 | I109: 174004877.1 | J109: 207321731.1 | K109: 243717489.4 | L109: 283572781.5
C110: Net Assets | E110: =E99-E109 -> 6547816 | F110: 6350951 | G110: 10211323 | H110: 12117859.97 | I110: 14730985.17 | J110: 18137520.93 | K110: 22558304.51 | L110: 27468041.31
C111: Share capital | E111: 3779897 | F111: 4925961 | G111: 6650048 | H111: ='Assumption Sheet'!M104*1000 -> 6916049.736 | I111: ='Assumption Sheet'!N104*1000 -> 7607654.251 | J111: ='Assumption Sheet'!O104*1000 -> 8368419.217 | K111: ='Assumption Sheet'!P104*1000 -> 9205260.68 | L111: ='Assumption Sheet'!Q104*1000 -> 10125786.29
C112: Reserves | E112: 745101 | F112: 869338 | G112: 1074408 | H112: =1000*('Assumption Sheet'!M112+'Assumption Sheet'!M108) -> 1406526.593 | I112: =1000*('Assumption Sheet'!N112+'Assumption Sheet'!N108) -> 1929151.634 | J112: =1000*('Assumption Sheet'!O112+'Assumption Sheet'!O108) -> 2610458.786 | K112: =1000*('Assumption Sheet'!P112+'Assumption Sheet'!P108) -> 3494615.502 | L112: =1000*('Assumption Sheet'!Q112+'Assumption Sheet'!Q108) -> 4476562.862
C113: Unappropriated profit | E113: 1774988 | F113: 717684 | G113: 2089956 | H113: ='Assumption Sheet'!M119*1000 -> 3078401.636 | I113: ='Assumption Sheet'!N119*1000 -> 4399568.935 | J113: ='Assumption Sheet'!O119*1000 -> 6282417.809 | K113: ='Assumption Sheet'!P119*1000 -> 8896507.704 | L113: ='Assumption Sheet'!Q119*1000 -> 11813791.26
E114: =SUM(E111:E113) -> 6299986 | F114: 6512983 | G114: 9814412 | H114: 11400977.97 | I114: 13936374.82 | J114: 17261295.81 | K114: 21596383.89 | L114: 26416140.41
C115: NON CONTROLLING INTEREST | E115: 261084 | F115: 204087 | G115: 302987 | H115: ='Assumption Sheet'!M124*1000 -> 377014 | I115: ='Assumption Sheet'!N124*1000 -> 454742.35 | J115: ='Assumption Sheet'!O124*1000 -> 536357.1175 | K115: ='Assumption Sheet'!P124*1000 -> 622052.6234 | L115: ='Assumption Sheet'!Q124*1000 -> 712032.9045
E116: =SUM(E114:E115) -> 6561070 | F116: 6717070 | G116: 10117399 | H116: 11777991.97 | I116: 14391117.17 | J116: 17797652.93 | K116: 22218436.51 | L116: 27128173.31
C117: Surplus on revaluation of investments | E117: -13254 | F117: -366119 | G117: 93924 | H117: 339868 | I117: 339868 | J117: 339868 | K117: 339868 | L117: 339868
C118: Total equity | E118: =SUM(E116:E117) -> 6547816 | F118: 6350951 | G118: 10211323 | H118: 12117859.97 | I118: 14730985.17 | J118: 18137520.93 | K118: 22558304.51 | L118: 27468041.31
C119: check | E119: =E110-E118 -> 0 | F119: 0 | G119: 0 | H119: 0 | I119: 0 | J119: 0 | K119: 0 | L119: 4.842877388e-08
C122: Balance Sheet Schedules
D124: % | E124: 2007 | F124: =E124+1 -> 2008 | G124: 2009 | H124: 2010 | I124: 2011 | J124: 2012 | K124: 2013 | L124: 2014
C125: Deposits and Other Accounts
C127: Customers - Fixed deposits | D127: 0.3601680018 | E127: 21223117 | F127: 23455160 | G127: 32351628
C128: - Savings deposits | D128: 0.3551100584 | E128: 17644610 | F128: 24562979 | G128: 36107257
C129: - Current accounts - non-remunerative | D129: 0.2758233259 | E129: 12238793 | F129: 20615241 | G129: 28666058
C130: - Current accounts - remunerative | D130: 0.001649058938 | F130: 165787 | G130: 250512
C131: - Margin | D131: 0.007249554971 | E131: 386674 | F131: 615994 | G131: 525275
D132: 1 | E132: =SUM(E127:E131) -> 51493194 | F132: =SUM(F127:F131) -> 69415161 | G132: =SUM(G127:G131) -> 97900730
C133: Financial institutions
C134: - Remunerative deposits | E134: 3076974 | F134: 800330 | G134: 2419546
C135: - Non-remunerative deposits | E135: 10284 | F135: 18384 | G135: 12775
E136: =SUM(E134:E135) -> 3087258 | F136: =SUM(F134:F135) -> 818714 | G136: =SUM(G134:G135) -> 2432321
C137: Total Deposits | E137: =E132+E136 -> 54580452 | F137: =F132+F136 -> 70233875 | G137: =G132+G136 -> 100333051
C139: Fixed Assets Details
C140: Cost of Operating Fixed Assets | F140: =2246964+141728+70228 -> 2458920 | G140: =2827958+141728+304405 -> 3274091 | H140: =G142+H117-G117 -> 3520035 | I140: =H142 -> 4395138.787 | J140: =I142 -> 5348758.842 | K140: =J142 -> 6526532.494 | L140: =K142 -> 7949874.954
C141: Additions | H141: ='Assumption Sheet'!M55*1000 -> 875103.7871 | I141: ='Assumption Sheet'!N55*1000 -> 953620.0551 | J141: ='Assumption Sheet'!O55*1000 -> 1177773.652 | K141: ='Assumption Sheet'!P55*1000 -> 1423342.459 | L141: ='Assumption Sheet'!Q55*1000 -> 1697944.652
C142: Gross Fixed Assets | F142: =SUM(F140:F141) -> 2458920 | G142: 3274091 | H142: 4395138.787 | I142: 5348758.842 | J142: 6526532.494 | K142: 7949874.954 | L142: 9647819.605
C143: Accumulated Dep. | F143: =-(F140-F144) -> -560390 | G143: =-(G140-G144) -> -836863 | H143: =G143+H148 -> -1715890.757 | I143: =H143+I148 -> -2785642.526 | J143: =I143+J148 -> -4090949.025 | K143: =J143+K148 -> -5680924.016 | L143: =K143+L148 -> -7610487.937
C144: Net Operating Fixed Assets | F144: =F96 -> 1898530 | G144: =G96 -> 2437228 | H144: =SUM(H142:H143) -> 2679248.03 | I144: =SUM(I142:I143) -> 2563116.316 | J144: =SUM(J142:J143) -> 2435583.47 | K144: =SUM(K142:K143) -> 2268950.938 | L144: =SUM(L142:L143) -> 2037331.669
C146: Depreciation Schedule
C147: Admin Expenses | E147: =E42 -> 1874284 | F147: =F42 -> 2742267 | G147: =G42 -> 3681088
C148: Depriciation | F148: -231180 | G148: -339291 | H148: =H149*H142 -> -879027.7574 | I148: =I149*I142 -> -1069751.768 | J148: =J149*J142 -> -1305306.499 | K148: =K149*K142 -> -1589974.991 | L148: =L149*L142 -> -1929563.921
C149: Depriciation as % of Fixed Assets | F149: =F148/F142 -> -0.09401688546 | G149: =G148/G142 -> -0.1036290683 | H149: ='dash board'!P30 -> -0.2 | I149: ='dash board'!Q30 -> -0.2 | J149: ='dash board'!R30 -> -0.2 | K149: ='dash board'!S30 -> -0.2 | L149: ='dash board'!T30 -> -0.2
C150: Admin less Depriciation | F150: =F147+F148 -> 2511087 | G150: 3341797 | H150: -879027.7574 | I150: -1069751.768 | J150: -1305306.499 | K150: -1589974.991 | L150: -1929563.921
C152: Cash Flow Statement
H153: =YEAR(D7) -> 2010 | I153: =H153+1 -> 2011 | J153: =I153+1 -> 2012 | K153: =J153+1 -> 2013 | L153: =K153+1 -> 2014
H154: =D7 -> 2010-12-31 | I154: =DATE(YEAR(H154)+1,MONTH(H154),DAY(H154)) -> 2011-12-31 | J154: =DATE(YEAR(I154)+1,MONTH(I154),DAY(I154)) -> 2012-12-31 | K154: =DATE(YEAR(J154)+1,MONTH(J154),DAY(J154)) -> 2013-12-31 | L154: =DATE(YEAR(K154)+1,MONTH(K154),DAY(K154)) -> 2014-12-31
C155: Cash Flows From Operations
C156: Net Income | H156: =H53 -> 1586565.966 | I156: =I53 -> 2535396.855 | J156: =J53 -> 3324920.992 | K156: =K53 -> 4335088.074 | L156: =L53 -> 4819756.521
C157: Share of Associate | H157: =-H48*0.3 -> -73337.36052 | I157: =-I48*0.3 -> -110006.0408 | J157: =-J48*0.3 -> -132007.2489 | K157: =-K48*0.3 -> -158408.6987 | L157: =-L48*0.3 -> -190090.4385
C158: Dep and Ammortization | H158: =H43 -> 879027.7574 | I158: =I43 -> 1069751.768 | J158: =J43 -> 1305306.499 | K158: =K43 -> 1589974.991 | L158: =L43 -> 1929563.921
C159: Balances with other banks | H159: =-(H91-G91) -> -4695416 | I159: -2401399.757 | J159: -2671316.171 | K159: -2960302.577 | L159: -3297671.755
C160: Due from financial institutions | H160: 23987645 | I160: -2535025.311 | J160: -2819961.187 | K160: -3125028.201 | L160: -3481170.24
C161: Financings | H161: =-(H95-G95) -> -9807097 | I161: =-(I95-H95) -> -13021403.44 | J161: =-(J95-I95) -> -14485004.21 | K161: =-(K95-J95) -> -16052010.52 | L161: =-(L95-K95) -> -17881368.66
C162: Deferred tax assets | H162: =-(H97-G97) -> -107432 | I162: =-(I97-H97) -> 0 | J162: 0 | K162: 0 | L162: 0
C163: Other assets | H163: =-(H98-G98) -> -11472001 | I163: 0 | J163: 0 | K163: 0 | L163: 0
C164: Bills payable | H164: =H102-G102 -> 518160 | I164: 426216.6558 | J164: 474123.2449 | K164: 525414.505 | L164: 585293.0664
C165: Due to financial institutions | H165: -2764129 | I165: -6274987.557 | J165: -4389005.285 | K165: -5389169.123 | L165: -6691630.427
C166: Deposits and other accounts | H166: 30736548 | I166: 31608187.84 | J166: 35160936.06 | K166: 38964691.17 | L166: 43405279.76
C167: Sub-ordinated loan | H167: 0 | I167: =I105-H105 -> 0 | J167: 0 | K167: 0 | L167: 0
C168: Liabilities against assets subject to finance leases | H168: 0 | I168: 0 | J168: 0 | K168: 0 | L168: 0
C169: Deferred tax liabilities | H169: 0 | I169: 0 | J169: 0 | K169: 0 | L169: 0
C170: Other liabilities | H170: =H108-G108 -> 2590227 | I170: =I108-H108 -> 1861561.178 | J170: =J108-I108 -> 2070799.943 | K170: =K108-J108 -> 2294821.734 | L170: =L108-K108 -> 2556349.77
C171: Share of Associate | H171: =H115-G115 -> 74027 | I171: =I115-H115 -> 77728.35 | J171: =J115-I115 -> 81614.7675 | K171: =K115-J115 -> 85695.50588 | L171: =L115-K115 -> 89980.28117
C172: Net Cash Flows from Operations | H172: =SUM(H156:H171) -> 31452788.36 | I172: =SUM(I156:I171) -> 13236020.53 | J172: =SUM(J156:J171) -> 17920407.41 | K172: =SUM(K156:K171) -> 20110766.86 | L172: =SUM(L156:L171) -> 21844291.8
C174: Cash Flows from Investing
C175: Investments | H175: =G93-H93 -> -26149196 | I175: =H93-I93 -> -12183189.57 | J175: =I93-J93 -> -13552575.42 | K175: =J93-K93 -> -15018710.39 | L175: =K93-L93 -> -16730309.07
C176: Fixed Capital Investments | H176: =-H141 -> -875103.7871 | I176: =-I141 -> -953620.0551 | J176: =-J141 -> -1177773.652 | K176: =-K141 -> -1423342.459 | L176: =-L141 -> -1697944.652
C177: Net Cash Flows From Investing | H177: =SUM(H175:H176) -> -27024299.79 | I177: =SUM(I175:I176) -> -13136809.63 | J177: =SUM(J175:J176) -> -14730349.07 | K177: =SUM(K175:K176) -> -16442052.85 | L177: =SUM(L175:L176) -> -18428253.72
C179: Cash Flows from Financing
C180: Amount received against issue of right shares
C181: Dividend paid
C182: Net Cash Flows from Financing
C184: Operning Cash & Cash Equivalents | H184: =G90 -> 8387522 | I184: =H90 -> 12816010.58 | J184: =I90 -> 12915221.48 | K184: =J90 -> 16105279.82 | L184: =K90 -> 19773993.82
C185: Net Increase / (Decrease) in C&C Equivalents | H185: =SUM(H182,H177,H172) -> 4428488.576 | I185: =SUM(I182,I177,I172) -> 99210.90761 | J185: =SUM(J182,J177,J172) -> 3190058.332 | K185: =SUM(K182,K177,K172) -> 3668714.007 | L185: =SUM(L182,L177,L172) -> 3416038.077
C186: Closing Cash & Cash Equivalents | H186: =SUM(H184:H185) -> 12816010.58 | I186: =SUM(I184:I185) -> 12915221.48 | J186: =SUM(J184:J185) -> 16105279.82 | K186: =SUM(K184:K185) -> 19773993.82 | L186: =SUM(L184:L185) -> 23190031.9

Sheet valuation
C2: ="Discounted Cash Flow Model for "&'dash board'!Y2 -> Discounted Cash Flow Model for Meezan Bank
C3: All figures in thousands, except per share data
C5: Operating scenario:
C6: Last fiscal year end date: | D6: ='dash board'!Y3 -> 2010-12-31
C7: Valuation / deal date | D7: ='dash board'!Y5 -> 2011-04-17
C8: Sub year fraction | D8: =1-(D7-D6)/365 -> 0.7068493151
C9: Cost of Equity | D9: =IF(ISNUMBER('dash board'!Y12),'dash board'!Y12,valuation!D10) -> 0.2203 | E9: =IF(ISNUMBER('dash board'!Z12),'dash board'!Z12,valuation!E10) -> 0.2103 | F9: =IF(ISNUMBER('dash board'!AA12),'dash board'!AA12,valuation!F10) -> 0.2003 | G9: =IF(ISNUMBER('dash board'!AB12),'dash board'!AB12,valuation!G10) -> 0.1903
C10: Discount Rate | D10: =D53 -> 0.2203 | E10: =E53 -> 0.2103 | F10: 0.2003 | G10: 0.1903
C11: Free cash flow buildup
D12: Projected Annual Forecast
D13: =YEAR(D6)+1 -> 2011 | E13: =D13+1 -> 2012 | F13: =E13+1 -> 2013 | G13: =F13+1 -> 2014
D14: =DATE(YEAR(D6)+1,MONTH(D6),DAY(D6)) -> 2011-12-31 | E14: =DATE(YEAR(D14)+1,MONTH(D14),DAY(D14)) -> 2012-12-31 | F14: =DATE(YEAR(E14)+1,MONTH(E14),DAY(E14)) -> 2013-12-31 | G14: =DATE(YEAR(F14)+1,MONTH(F14),DAY(F14)) -> 2014-12-31
C16: Net Income | D16: ='financial statements'!I53 -> 2535396.855 | E16: ='financial statements'!J53 -> 3324920.992 | F16: ='financial statements'!K53 -> 4335088.074 | G16: ='financial statements'!L53 -> 4819756.521
C17: Depriciation & Amortization | D17: ='financial statements'!I43 -> 1069751.768 | E17: ='financial statements'!J43 -> 1305306.499 | F17: ='financial statements'!K43 -> 1589974.991 | G17: ='financial statements'!L43 -> 1929563.921
C18: Capital Required As per state bank requirement | D18: =-'Assumption Sheet'!$K$142*1000 -> -1419998.667 | E18: =-'Assumption Sheet'!$K$142*1000 -> -1419998.667 | F18: =-'Assumption Sheet'!$K$142*1000 -> -1419998.667 | G18: =-'Assumption Sheet'!$K$142*1000 -> -1419998.667
C19: Capital expenditures | D19: ='financial statements'!H176 -> -875103.7871 | E19: ='financial statements'!I176 -> -953620.0551 | F19: ='financial statements'!J176 -> -1177773.652 | G19: ='financial statements'!K176 -> -1423342.459
C20: Unlevered free cash flows | D20: =SUM(D16:D19) -> 1310046.169 | E20: =SUM(E16:E19) -> 2256608.769 | F20: =SUM(F16:F19) -> 3327290.746 | G20: =SUM(G16:G19) -> 3905979.316
C21: Discount factor | D21: =1/((1+$D$9)^D8) -> 0.8687226303 | E21: =1/((1+E9)^((E13-$D$13)+$D$8)) -> 0.7219615737 | F21: =1/((1+F9)^((F13-$D$13)+$D$8)) -> 0.6100626581 | G21: 0.5242675783
C22: Midyear adustment factor | D22: =((1+$D$9)^(D8/2)) -> 1.072900462 | E22: =((1+$D$9)^(0.5)) -> 1.104671897 | F22: =((1+$D$9)^(0.5)) -> 1.104671897 | G22: =((1+$D$9)^(0.5)) -> 1.104671897
C23: Present value of free cash flows | D23: =D20*D21*D22 -> 1221032.347 | E23: =E20*E21*E22 -> 1799714.683 | F23: =F20*F21*F22 -> 2242324.698 | G23: =G20*G21*G22 -> 2262123.158
C24: Sum of present values of FCE | D24: =SUM(D23:G23) -> 7525194.886
C26: Terminal value | E26: Equity value calculations
C28: Exit multiple method | F28: Equity Value | G28: =D45 -> 30050756.37
C29: Exit price to earning multiple | D29: ='dash board'!Y9 -> 11 | F29: NO. of Shares | G29: 803993
C30: LTM Earning at end of projection | D30: =OFFSET(D20,0,('dash board'!Y14-valuation!D13)) -> 3905979.316 | F30: Equity value / share | G30: =G28/G29 -> 37.37688807
C31: Terminal value | D31: =D30*D29 -> 42965772.48
C32: Present value of terminal value | D32: =D31*G21 -> 22525561.49
C33: Equity Value | D33: =D32+D24 -> 30050756.37
C36: Exit multiple method
C37: Exit Price to Book Value Multiple | D37: ='dash board'!Y8 -> 1.2
C38: LTM EBITDA at end of projection | D38: =OFFSET('financial statements'!I118,0,('dash board'!Y14-'financial statements'!I87)) -> 27468041.31
C39: Terminal value | D39: =D38*D37 -> 32961649.57
C40: Present value of terminal value | D40: =D39+D24 -> 40486844.46
C41: Equity Value | D41: =D40+D24 -> 48012039.35
C43: Select a terminal value method
C44: Price to earning = 1 boook value multiple = 2 | D44: ='dash board'!Y10 -> 1
C45: Equity Value | D45: =IF(D44=1,D33,D41) -> 30050756.37
C46: Terminal value as a percent of total value | D46: =IF(D44=1,D32, D39)/D45 -> 0.7495838443
C48: Analysis of Cost of Equity
C49: Cost of equity
C50: Risk-free rate (rf) | D50: ='dash board'!Q3 -> 0.13 | E50: ='dash board'!R3 -> 0.12 | F50: ='dash board'!S3 -> 0.11 | G50: ='dash board'!T3 -> 0.1
C51: Market Risk Premium (rm - rf) | D51: 0.07 | E51: 0.07 | F51: 0.07 | G51: 0.07
C52: Beta | D52: 1.29 | E52: 1.29 | F52: 1.29 | G52: 1.29
C53: Cost of equity | D53: =D50+(D51*D52) -> 0.2203 | E53: =E50+(E51*E52) -> 0.2103 | F53: 0.2003 | G53: 0.1903

Sheet comparables
D7: Askari Bank | E7: Bank Al Habib | F7: Bank Alfalah | G7: Soneri Bank | H7: Meezan Bank
D8: 2010-09-30 | E8: 2010-09-30 | F8: 2010-09-30 | G8: 2010-09-30 | H8: 2010-09-30
C10: Cash & Treasury Balance | D10: 20318.898 | E10: 18041.767 | F10: 36647.976 | G10: 6449.805 | H10: 9731.319
C11: Deposits with Banks | D11: 9200.625 | E11: 5711.561 | F11: 18032.387 | G11: 1698.142 | H11: 15821.165
C12: Lending to FIs | D12: 6702.653 | E12: 2760.831 | F12: 3725.17 | G12: 1564.214 | H12: 37158.5
C13: Investments | D13: 81053.725 | E13: 124998.652 | F13: 98900.363 | G13: 35088.227 | H13: 26645.17
C14: Advances | D14: 148111.638 | E14: 111719.563 | F14: 199335.086 | G14: 49164.43 | H14: 43171.335
C15: Operating Fixed Assets | D15: 10284.637 | E15: 10024.381 | F15: 14366.739 | G15: 3369.45 | H15: 2839.912
C16: Good Will | D16: 0 | E16: 0 | F16: 0 | H16: 0
C17: Deferred Tax Assets | D17: 33.454 | E17: 0 | F17: 0 | G17: 448.327 | H17: 331.45
C18: Other Assets | D18: 13922.424 | E18: 5552.942 | F18: 16000.069 | G18: 3331.896 | H18: 9059.395
C20: TOTAL ASSETS | D20: =SUM(D10:D18) -> 289628.054 | E20: =SUM(E10:E18) -> 278809.697 | F20: =SUM(F10:F18) -> 387007.79 | G20: =SUM(G10:G18) -> 101114.491 | H20: =SUM(H10:H18) -> 144758.246
C22: Bills Payable | D22: 3065.685 | E22: 4220.906 | F22: 5982.236 | G22: 2329.693 | H22: 2226.987
C23: Borrowings from FIs | D23: 25210.956 | E23: 17724.941 | F23: 32515.266 | G23: 8850.554 | H23: 5382.936
C24: Deposits & other Accounts | D24: 229934.821 | E24: 231802.337 | F24: 308081.734 | G24: 78332.488 | H24: 118998.181
C25: Sub-Ordinated Loans | D25: 5993.4 | E25: 4842.66 | F25: 7568.686 | G25: 1197.6
C26: Liability against Financial Lease | D26: 5.93 | E26: 0.572 | F26: 8.843 | G26: 0
C27: Deferred tax Liabilities | E27: 718.685 | F27: 951.604 | G27: 0
C28: Other Liabilities | D28: 9479.379 | E28: 4566.326 | F28: 10245.377 | G28: 1638.181 | H28: 6792.522
H29: 0
C30: TOTAL LIABILITIES | D30: =SUM(D22:D28) -> 273690.171 | E30: =SUM(E22:E28) -> 263876.427 | F30: =SUM(F22:F28) -> 365353.746 | G30: =SUM(G22:G28) -> 92348.516 | H30: =SUM(H22:H28) -> 133400.626
C32: Paid-up Capital/HO Balance | D32: 6427.44 | E32: 7321.643 | F32: 13491.563 | G32: 6023.221 | H32: 6982.55
C33: Reserves/Retained Profit | D33: 7485.499 | E33: 4151.362 | F33: 4036.006 | G33: 2003.948 | H33: 1273.356
C34: Accumulated Loss | D34: 932.469 | E34: 1890.229 | F34: 21.359 | G34: 193.534 | H34: 2635.498
C35: Share in share premium of associates | F35: 1615.473
C36: Revaluation Surplus | D36: 1063.643 | E36: 1459.68 | F36: 2489.643 | G36: 545.272 | H36: 130.273
C37: Minority Interset | D37: 28.832 | E37: 110.356 | F37: 0 | H37: 335.943
C39: TOTAL EQUITY | D39: =SUM(D32:D37) -> 15937.883 | E39: =SUM(E32:E37) -> 14933.27 | F39: =SUM(F32:F37) -> 21654.044 | G39: =SUM(G32:G37) -> 8765.975 | H39: =SUM(H32:H37) -> 11357.62
C41: MINORITY INTEREST
C43: Check | D43: =D39+D30-D20 -> 0 | E43: =E39+E30-E20 -> 0 | F43: =F39+F30-F20 -> 0 | G43: =G39+G30-G20 -> 0 | H43: =H39+H30-H20 -> 0
C45: Other Information
C46: Shares outstanding | D46: 642.77 | E46: 732.16 | F46: 1349.136 | G46: 602.33 | H46: 698.255
C47: BVPS | D47: =D39/D46 -> 24.79562363 | E47: =E39/E46 -> 20.39618389 | F47: =F39/F46 -> 16.05030479 | G47: =G39/G46 -> 14.55344247 | H47: =H39/H46 -> 16.26571954
C48: Beta | D48: 1.29 | E48: 0.774 | F48: 1.35 | G48: 0.95 | H48: 1.29
C49: Purchsed price
C51: Per Share Price
C52: Earning Assets | D52: =D13+D12+D11+D14 -> 245068.641 | E52: =E13+E12+E11+E14 -> 245190.607 | F52: =F13+F12+F11+F14 -> 319993.006 | G52: =G13+G12+G11+G14 -> 87515.013 | H52: =H13+H12+H11+H14 -> 122796.17
C53: Provision for NPL general/ specific | D53: =13874.861+622.133+318.264 -> 14815.258 | E53: 3097.967 | F53: 9926.792 | G53: 4398.713 | H53: 2848.14
C54: Gross Loans (FN) | D54: 162926.896 | E54: 114817.53 | F54: 209261.878 | G54: 53563.143 | H54: 96151
C55: NPL for the year classified accounts (FN) | D55: 17725.451 | E55: 1685.004 | F55: 18390.481 | G55: 6707.819 | H55: 3984.82
C56: Net NPLs | D56: =D55-D53 -> 2910.193 | E56: =E55-E53 -> -1412.963 | F56: =F55-F53 -> 8463.689 | G56: =G55-G53 -> 2309.106 | H56: =H55-H53 -> 1136.68
C57: Net Loans | D57: =D54-D53 -> 148111.638 | E57: =E54-E53 -> 111719.563 | F57: =F54-F53 -> 199335.086 | G57: =G54-G53 -> 49164.43 | H57: =H54-H53 -> 93302.86
D59: Askari Bank | E59: Bank Al-Habib | F59: Bank Alfalah | G59: Soneri Bank | H59: Meezan Bank
D60: 2010-09-30 | E60: 2010-09-30 | F60: 2010-09-30 | G60: 2010-09-30 | H60: 2010-09-30
C62: Interest Revenue | D62: 20521.686 | E62: 19910.972 | F62: 27930.516 | G62: 7518.986 | H62: 9037.744
C63: Interest Expense | D63: 13001.816 | E63: 12138.334 | F63: 17981.311 | G63: 5373.87 | H63: 4695.621
C65: Net Interest Income | D65: =D62-D63 -> 7519.87 | E65: =E62-E63 -> 7772.638 | F65: =F62-F63 -> 9949.205 | G65: =G62-G63 -> 2145.116 | H65: =H62-H63 -> 4342.123
C67: Provision against NPL | D67: 1464.416 | E67: 732.497 | F67: 1296.616 | G67: 1188.821 | H67: 815.843
C68: impairment on AFS | D68: 229.796 | E68: 0 | H68: 32.083
C69: Reversals | D69: 0 | G69: -2.446
C70: Provision for diminution of investments | D70: 90 | E70: 0.229 | F70: 111.064 | G70: 74.204
C71: Provision against off B/S items
C72: Provision against REPO lending | D72: 65.808 | E72: 0
C73: Bad debts written of directly | D73: 0 | E73: 0 | F73: 21.292 | G73: 0.015
C74: Total Provision for NPLs/Write Offs | D74: =-SUM(D67:D73) -> -1850.02 | E74: =-SUM(E67:E73) -> -732.726 | F74: =-SUM(F67:F73) -> -1428.972 | G74: =-SUM(G67:G73) -> -1260.594 | H74: =-SUM(H67:H73) -> -847.926
C76: Net Int Income After Provisions | D76: =D74+D65 -> 5669.85 | E76: =E74+E65 -> 7039.912 | F76: =F74+F65 -> 8520.233 | G76: =G74+G65 -> 884.522 | H76: =H74+H65 -> 3494.197
C78: Fee Commisions etc | D78: 987.65 | E78: 881.406 | F78: 1487.845 | G78: 285.859 | H78: 675.411
C79: Dividend Income | D79: 199.455 | E79: 151.158 | F79: 117.364 | G79: 97.139 | H79: 61.591
C80: Fx Gain/(Loss) | D80: 69.857 | E80: 158.726 | F80: 760.392 | G80: 144.745 | H80: 812.814
C81: Capital Gains | D81: =240.782-5.213 -> 235.569 | E81: 62.505 | F81: =103.026-0.622 -> 102.404 | H81: 118.932
C82: share of profit from associate | D82: 0 | E82: 77.805 | F82: 0
C83: Other Income | D83: 361.434 | E83: 228.852 | F83: 936.2 | G83: 396.253 | H83: 47.001
C85: Non Interest Income | D85: =SUM(D78:D83) -> 1853.965 | E85: =SUM(E78:E83) -> 1560.452 | F85: =SUM(F78:F83) -> 3404.205 | G85: =SUM(G78:G83) -> 923.996 | H85: =SUM(H78:H83) -> 1715.749
C87: Non Interest Expenses | D87: 6195.204 | E87: 4772.105 | F87: 9174.546 | G87: 1886.365 | H87: 3500.831
C89: Share of net assests of associates | D89: 38.014 | E89: 0 | F89: -397.509 | G89: 0 | H89: 75.205
C90: Profit Before Taxation | D90: =D76+D85-D87+D89 -> 1366.625 | E90: =E76+E85-E87+E89 -> 3828.259 | F90: =F76+F85-F87+F89 -> 2352.383 | G90: =G76+G85-G87+G89 -> -77.847 | H90: =H76+H85-H87+H89 -> 1784.32
C92: Current Taxes | D92: 377.578 | E92: 1496.764 | F92: 817.758 | G92: 267
C93: Prior Taxes | D93: 25.454 | E93: 0 | F93: -12 | G93: 0
C94: taxes of associate | F94: 13.124
C95: Deferred Taxes | D95: 32.555 | E95: 61.898 | F95: 130.86 | G95: -327.247
C96: Total Taxes | D96: =-SUM(D92:D95) -> -435.587 | E96: =-SUM(E92:E95) -> -1558.662 | F96: =-SUM(F92:F95) -> -949.742 | G96: =-SUM(G92:G95) -> 60.247 | H96: -674.372
C98: Profit After Tax | D98: =D90+D96 -> 931.038 | E98: =E90+E96 -> 2269.597 | F98: =F90+F96 -> 1402.641 | G98: =G90+G96 -> -17.6 | H98: =H90+H96 -> 1109.948
C99: Minority Interst | D99: 1.431 | E99: 3.673 | F99: 0 | H99: -32.956
C100: Profit After Tax & MI | D100: =D98+D99 -> 932.469 | E100: =E98 -> 2269.597 | F100: =F98+F99 -> 1402.641 | G100: =G98+G99 -> -17.6 | H100: =H98+H99 -> 1076.992
C101: Accumulated loss brought forward | D101: 0 | E101: 0 | F101: 0 | G101: 0
C102: Surplas on Revaluation | D102: 0 | E102: 0 | F102: 0 | G102: 0
C105: EPS TRALING EPS | D105: 2.13 | E105: 4.68 | F105: 0.71 | G105: 0.29 | H105: 2.63
C107: Other Information
C108: Administrative expences | D108: 6194.726 | E108: 4657.62 | F108: 9116.953 | G108: 1865.843 | H108: 3458.3
C116: Price Multiples
C118: Current Price | D118: 18.6 | E118: 37.6 | F118: 11.7 | G118: 7.4 | H118: 19
C119: P/BVPS | D119: =D118/D47 -> 0.7501323733 | E119: =E118/E47 -> 1.843482104 | F119: =F118/F47 -> 0.7289581198 | G119: =G118/G47 -> 0.5084707634 | H119: =H118/H47 -> 1.168100799
C120: P/EPS TRALING TTM | D120: =D118/D105 -> 8.732394366 | E120: =E118/E105 -> 8.034188034 | F120: =F118/F105 -> 16.47887324 | G120: =G118/G105 -> 25.51724138 | H120: =H118/H105 -> 7.224334601
C121: Tier 1 | D121: =D39 -> 15937.883 | E121: =E39 -> 14933.27 | F121: =F39 -> 21654.044 | G121: =G39 -> 8765.975 | H121: =H39 -> 11357.62
C122: Tier 2 | D122: =D25+D39 -> 21931.283 | E122: =E25+E39 -> 19775.93 | F122: =F25+F39 -> 29222.73 | G122: =G25+G39 -> 9963.575 | H122: =H25+H39 -> 11357.62
C124: Ratios
C126: ROE | D126: =D98/D39 -> 0.05841666676 | E126: =E98/E39 -> 0.1519825865 | F126: =F98/F39 -> 0.06477501385 | G126: =G98/G39 -> -0.00200776297 | H126: =H98/H39 -> 0.09772716467
C127: ROA | D127: =D98/D20 -> 0.003214598818 | E127: =E98/E20 -> 0.008140308692 | F127: =F98/F20 -> 0.003624322394 | G127: =G98/G20 -> -0.0001740601157 | H127: =H98/H20 -> 0.007667597741
C128: Pre-provisions Operating Profit / Equity | D128: =(D65+D85-D87)/(D39) -> 0.1994387209 | E128: =(E65+E85-E87)/(E39) -> 0.305424398 | F128: =(F65+F85-F87)/(F39) -> 0.1929830751 | G128: =(G65+G85-G87)/(G39) -> 0.1349247517 | H128: =(H65+H85-H87)/(H39) -> 0.2251388055
C129: Pre-provisions Operating Profit / Assets | D129: =(D65+D85-D87)/D20 -> 0.01097487262 | E129: =(E65+E85-E87)/E20 -> 0.01635877464 | F129: =(F65+F85-F87)/F20 -> 0.01079788084 | G129: =(G65+G85-G87)/G20 -> 0.0116971068 | H129: =(H65+H85-H87)/H20 -> 0.01766421652
C130: Equity / Total Assets | D130: =D39/D20 -> 0.05502879566 | E130: =E39/E20 -> 0.0535607985 | F130: =F39/F20 -> 0.05595247579 | G130: =G39/G20 -> 0.0866935581 | H130: =H39/H20 -> 0.07845922643
C131: Cost of funds | D131: =D63/(D24+D23) -> 0.05095838212 | E131: =E63/(E24+E23) -> 0.04864531885 | F131: =F63/(F24+F23) -> 0.05279350963 | G131: =G63/(G24+G23) -> 0.06163893662 | H131: =H63/(H24+H23) -> 0.03775187997
C132: NPL/Advances | D132: =D55/D54 -> 0.1087938912 | E132: =E55/E54 -> 0.01467549424 | F132: =F55/F54 -> 0.08788261472 | G132: =G55/G54 -> 0.1252319902 | H132: =H55/H54 -> 0.04144335472
C133: Net NPL/Net Advances | D133: =D56/D57 -> 0.01964864503 | E133: =E56/E57 -> -0.01264740894 | F133: =F56/F57 -> 0.04245960493 | G133: =G56/G57 -> 0.0469670044 | H133: =H56/H57 -> 0.01218269193
C134: Provision to NPL | D134: =D53/D55 -> 0.8358183947 | E134: =E53/E55 -> 1.838551719 | F134: =F53/F55 -> 0.5397788127 | G134: =G53/G55 -> 0.6557590478 | H134: =H53/H55 -> 0.7147474666
C135: Net NPL to Capital | D135: =D56/D39 -> 0.1825959571 | E135: =E56/E39 -> -0.09461845932 | F135: =F56/F39 -> 0.3908595087 | G135: =G56/G39 -> 0.2634169046 | H135: =H56/H39 -> 0.1000808268
C136: Adjusted Capital to Assets | D136: =(D39-D56)/D20 -> 0.04498076005 | E136: =(E39-E56)/E20 -> 0.05862863873 | F136: =(F39-F56)/F20 -> 0.03408291859 | G136: =(G39-G56)/G20 -> 0.06385700938 | H136: =(H39-H56)/H20 -> 0.07060696218
C137: Cost to Income Ratio | D137: =D108/(D85+D65) -> 0.6608528953 | E137: =E108/(E85+E65) -> 0.4990437251 | F137: =F108/(F85+F65) -> 0.6827434341 | G137: =G108/(G85+G65) -> 0.6079422973 | H137: =H108/(H85+H65) -> 0.570877034
C138: Operating Profit Margin | D138: =(D65+D85-D87)/(D65+D85) -> 0.3390961117 | E138: =(E65+E85-E87)/(E65+E85) -> 0.4886897051 | F138: =(F65+F85-F87)/(F65+F85) -> 0.3129435852 | G138: =(G65+G85-G87)/(G65+G85) -> 0.385371078 | H138: =(H65+H85-H87)/(H65+H85) -> 0.4221021837
C139: NPL Coverage | D139: =D53/D55 -> 0.8358183947 | E139: =E53/E55 -> 1.838551719 | F139: =F53/F55 -> 0.5397788127 | G139: =G53/G55 -> 0.6557590478 | H139: =H53/H55 -> 0.7147474666
C140: NPL/Assets | D140: =D55/D20 -> 0.06120073921 | E140: =E55/E20 -> 0.006043563112 | F140: =F55/F20 -> 0.04751966621 | G140: =G55/G20 -> 0.06633884949 | H140: =H55/H20 -> 0.02752741284
C141: Advances/Deposits | D141: =D14/D24 -> 0.6441461861 | E141: =E14/E24 -> 0.4819604688 | F141: =F14/F24 -> 0.6470201378 | G141: =G14/G24 -> 0.6276377944 | H141: =H14/H24 -> 0.3627898732
C142: Investments/Deposits | D142: =D13/D24 -> 0.352507396 | E142: =E13/E24 -> 0.539246729 | F142: =F13/F24 -> 0.3210198856 | G142: =G13/G24 -> 0.4479396467 | H142: =H13/H24 -> 0.2239124143
C143: Net Interest Income to Gross interest Income | D143: =D65/D62 -> 0.3664352919 | E143: =E65/E62 -> 0.3903695912 | F143: =F65/F62 -> 0.3562127173 | G143: =G65/G62 -> 0.2852932563 | H143: =H65/H62 -> 0.4804432389
C145: Meezan Bank
D146: 2007 | E146: =D146+1 -> 2008 | F146: =E146+1 -> 2009
C147: Agriculture | D147: 0.0001 | E147: 0.0018 | F147: 0.0047
C148: textile | D148: 0.3109 | E148: 0.2634 | F148: 0.3021
C149: individuals | D149: 0.2091 | E149: 0.1873 | F149: 0.1418
C150: whole sale and retail trade | D150: 0.0677 | E150: 0.1152 | F150: 0.0615
C151: chemical and pharmaceuticals | D151: 0.0766 | E151: 0.0705 | F151: 0.0788
C152: 0thers | D152: 0.3356 | E152: 0.3618 | F152: 0.4111
C154: Askari Bank
D155: 2007 | E155: =D155+1 -> 2008 | F155: =E155+1 -> 2009
C156: Agriculture | D156: 0.0436 | E156: 0.0444 | F156: 0.067
C157: textile | D157: 0.2426 | E157: 0.2047 | F157: 0.191
C158: individuals | D158: 0.1284 | E158: 0.1219 | F158: 0.13
C159: cement and construction | D159: 0.0119 | E159: 0.0291 | F159: 0.096
C160: chemical and pharmaceuticals | D160: 0.0314 | E160: 0.0378 | F160: 0.047
C161: 0thers | D161: 0.5421 | E161: 0.5621 | F161: 0.469
C163: Bank Al-Habib
D164: ='financial statements'!E13 -> 2007 | E164: ='financial statements'!F13 -> 2008 | F164: ='financial statements'!G13 -> 2009
C165: Agriculture | D165: 0.024 | E165: 0.023 | F165: 0.011
C166: textile | D166: 0.3925 | E166: 0.406 | F166: 0.3985
C167: individuals | D167: 0.0324 | E167: 0.0281 | F167: 0.0227
C168: cement and construction | D168: 0.0235 | E168: 0.0241 | F168: 0.0289
C169: chemical and pharmaceuticals | D169: 0.0238 | E169: 0.0307 | F169: 0.025
C170: 0thers | D170: 0.5038 | E170: 0.4881 | F170: 0.5139

Sheet Ratio Analysis
C2: ="Ratio Analysis of " &'dash board'!Y2 -> Ratio Analysis of Meezan Bank
C3: Company Name | D3: ='dash board'!Y2 -> Meezan Bank
C4: Last Fiscal Year End (dd/mm/yy) | D4: ='dash board'!Y3 -> 2010-12-31
C5: Current Share Price | D5: ='dash board'!Y4 -> 18.64
C6: Current Date | D6: ='dash board'!Y5 -> 2011-04-17
B8: Risk Management Ratios | E8: Unit | F8: =G8-1 -> 2007 | G8: =H8-1 -> 2008 | H8: =I8-1 -> 2009 | I8: ='dash board'!P2 -> 2010 | J8: =I8+1 -> 2011 | K8: =J8+1 -> 2012 | L8: =K8+1 -> 2013 | M8: =L8+1 -> 2014
B9: Total Assets | E9: PKR MM | F9: ='financial statements'!E99-'financial statements'!E90-'financial statements'!E96 -> 61567674 | G9: ='financial statements'!F99-'financial statements'!F90-'financial statements'!F96 -> 78142612 | H9: ='financial statements'!G99-'financial statements'!G90-'financial statements'!G96 -> 114689666 | I9: ='financial statements'!H99-('Assumption Sheet'!L61*1000)-'financial statements'!H96 -> 147795995.1 | J9: ='financial statements'!I99-('Assumption Sheet'!M61*1000)-'financial statements'!I96 -> 175687306.3 | K9: ='financial statements'!J99-('Assumption Sheet'!N61*1000)-'financial statements'!J96 -> 210009573.8 | L9: ='financial statements'!K99-('Assumption Sheet'!O61*1000)-'financial statements'!K96 -> 248179873.3 | M9: ='financial statements'!L99-('Assumption Sheet'!P61*1000)-'financial statements'!L96 -> 290059346.3
B10: Total Risk Weighted Assets | E10: PKR MM | F10: 56511241 | G10: 62337045 | H10: 71913815 | I10: =I9*65% -> 96067396.81 | J10: =J9*65% -> 114196749.1 | K10: =K9*65% -> 136506223 | L10: =L9*65% -> 161316917.7 | M10: =M9*65% -> 188538575.1
B11: Total Regulatory Capital Base | E11: PKR MM | F11: 6572524 | G11: 6321809 | H11: 10051230 | I11: =SUM('financial statements'!G111:G113,'financial statements'!G115) -> 10117399 | J11: =SUM('financial statements'!I111:I113,'financial statements'!I115) -> 14391117.17 | K11: =SUM('financial statements'!J111:J113,'financial statements'!J115) -> 17797652.93 | L11: =SUM('financial statements'!K111:K113,'financial statements'!K115) -> 22218436.51 | M11: =SUM('financial statements'!L111:L113,'financial statements'!L115) -> 27128173.31
B12: Capital Adequacy Ratio | E12: % | F12: =F11/F10 -> 0.1163047189 | G12: =G11/G10 -> 0.101413357 | H12: 0.1397677206 | I12: 0.1053156361 | J12: 0.1260203752 | K12: 0.1303797918 | L12: 0.1377315959 | M12: 0.1438865935
B14: Risk Management Ratios | E14: Unit | F14: =G14-1 -> 2007 | G14: =H14-1 -> 2008 | H14: =I14-1 -> 2009 | I14: ='dash board'!P2 -> 2010 | J14: =I14+1 -> 2011 | K14: =J14+1 -> 2012 | L14: =K14+1 -> 2013 | M14: =L14+1 -> 2014
B15: ROA | E15: % | F15: ='financial statements'!E53/AVERAGE('financial statements'!E99:E99) -> 0.01536496868 | G15: ='financial statements'!F53/AVERAGE('financial statements'!F99:G99) -> 0.002015877903 | H15: ='financial statements'!G53/AVERAGE('financial statements'!G99:H99) -> 0.01110740964 | I15: ='financial statements'!H53/AVERAGE('financial statements'!H99:I99) -> 0.009138214691 | J15: ='financial statements'!I53/AVERAGE('financial statements'!I99:J99) -> 0.0122425242 | K15: ='financial statements'!J53/AVERAGE('financial statements'!J99:K99) -> 0.01352322158 | L15: ='financial statements'!K53/AVERAGE('financial statements'!K99:L99) -> 0.01501806097 | M15: ='financial statements'!L53/AVERAGE('financial statements'!L99:M99) -> 0.01549557539
B16: ROE | E16: % | F16: ='financial statements'!E53/AVERAGE('financial statements'!F118:F118) -> 0.1651455034 | G16: ='financial statements'!F53/AVERAGE('financial statements'!F118:G118) -> 0.02572074342 | H16: ='financial statements'!G53/AVERAGE('financial statements'!G118:H118) -> 0.1412807627 | I16: ='financial statements'!H53/AVERAGE('financial statements'!H118:I118) -> 0.1181850436 | J16: ='financial statements'!I53/AVERAGE('financial statements'!I118:J118) -> 0.15427515 | K16: ='financial statements'!J53/AVERAGE('financial statements'!J118:K118) -> 0.1634035411 | L16: ='financial statements'!K53/AVERAGE('financial statements'!K118:L118) -> 0.1733122019 | M16: ='financial statements'!L53/AVERAGE('financial statements'!L118:M118) -> 0.1754677906
B17: ROE (Excluding surplus) | E17: % | F17: ='financial statements'!E53/AVERAGE('financial statements'!E116:E116) -> 0.1598567002 | G17: ='financial statements'!F53/AVERAGE('financial statements'!F116:G116) -> 0.02530486706 | H17: ='financial statements'!G53/AVERAGE('financial statements'!G116:H116) -> 0.1440798205 | I17: ='financial statements'!H53/AVERAGE('financial statements'!H116:I116) -> 0.1212548702 | J17: ='financial statements'!I53/AVERAGE('financial statements'!I116:J116) -> 0.1575330059 | K17: ='financial statements'!J53/AVERAGE('financial statements'!J116:K116) -> 0.1661792063 | L17: ='financial statements'!K53/AVERAGE('financial statements'!K116:L116) -> 0.1756995299 | M17: ='financial statements'!L53/AVERAGE('financial statements'!L116:M116) -> 0.1776660915
B19: Risk Management Ratios | E19: Unit | F19: =G19-1 -> 2007 | G19: =H19-1 -> 2008 | H19: =I19-1 -> 2009 | I19: ='dash board'!P2 -> 2010 | J19: =I19+1 -> 2011 | K19: =J19+1 -> 2012 | L19: =K19+1 -> 2013 | M19: =L19+1 -> 2014
B20: Advance to Deposit | E20: % | F20: ='financial statements'!E95/'financial statements'!E104 -> 0.6334810126 | G20: ='financial statements'!F95/'financial statements'!F104 -> 0.5628311758 | H20: ='financial statements'!G95/'financial statements'!G104 -> 0.4404208938 | I20: ='financial statements'!H95/'financial statements'!H104 -> 0.411962986 | J20: ='financial statements'!I95/'financial statements'!I104 -> 0.411962986 | K20: ='financial statements'!J95/'financial statements'!J104 -> 0.411962986 | L20: ='financial statements'!K95/'financial statements'!K104 -> 0.411962986 | M20: ='financial statements'!L95/'financial statements'!L104 -> 0.411962986
B21: Investments to Deposit Ratio | E21: % | F21: ='financial statements'!E93/'financial statements'!E104 -> 0.2081666528 | G21: ='financial statements'!F93/'financial statements'!F104 -> 0.2108679597 | H21: ='financial statements'!G93/'financial statements'!G104 -> 0.2428968233 | I21: ='financial statements'!H93/'financial statements'!H104 -> 0.3854441019 | J21: ='financial statements'!I93/'financial statements'!I104 -> 0.3854441019 | K21: ='financial statements'!J93/'financial statements'!J104 -> 0.3854441019 | L21: ='financial statements'!K93/'financial statements'!K104 -> 0.3854441019 | M21: ='financial statements'!L93/'financial statements'!L104 -> 0.3854441019
B22: Capital to total assets | E22: % | F22: ='financial statements'!E118/'financial statements'!E99 -> 0.09592297304 | G22: ='financial statements'!F118/'financial statements'!F99 -> 0.07401615502 | H22: ='financial statements'!G118/'financial statements'!G99 -> 0.08135577829 | I22: ='financial statements'!H118/'financial statements'!H99 -> 0.07645252674 | J22: ='financial statements'!I118/'financial statements'!I99 -> 0.07805080069 | K22: ='financial statements'!J118/'financial statements'!J99 -> 0.08044700214 | L22: ='financial statements'!K118/'financial statements'!K99 -> 0.084717819 | M22: ='financial statements'!L118/'financial statements'!L99 -> 0.08831008438
B23: Adjusted capital to total assets | E23: % | F23: =('financial statements'!E118-'financial statements'!E66)/'financial statements'!E99 -> 0.08955012751 | G23: =('financial statements'!F118-'financial statements'!F66)/'financial statements'!F99 -> 0.06906403863 | H23: =('financial statements'!G118-'financial statements'!G66)/'financial statements'!G99 -> 0.06995983633 | I23: =('financial statements'!H118-'financial statements'!H66)/'financial statements'!H99 -> 0.06806109305 | J23: =('financial statements'!I118-'financial statements'!I66)/'financial statements'!I99 -> 0.06862528053 | K23: =('financial statements'!J118-'financial statements'!J66)/'financial statements'!J99 -> 0.07053026137 | L23: =('financial statements'!K118-'financial statements'!K66)/'financial statements'!K99 -> 0.07438184474 | M23: =('financial statements'!L118-'financial statements'!L66)/'financial statements'!L99 -> 0.07759446021
B24: NPLs to advances | E24: % | F24: ='financial statements'!E66/'financial statements'!E95 -> 0.01258161806 | G24: ='financial statements'!F66/'financial statements'!F95 -> 0.01074954822 | H24: ='financial statements'!G66/'financial statements'!G95 -> 0.03236971267 | I24: ='financial statements'!H66/'financial statements'!H95 -> 0.02463289165 | J24: ='financial statements'!I66/'financial statements'!I95 -> 0.02654468543 | K24: ='financial statements'!J66/'financial statements'!J95 -> 0.02743285729 | L24: ='financial statements'!K66/'financial statements'!K95 -> 0.02821239075 | M24: ='financial statements'!L66/'financial statements'!L95 -> 0.0288733747
B25: Net NPLs to net advances | E25: % | F25: ='financial statements'!E66/'financial statements'!E72 -> 0.01258161806 | G25: ='financial statements'!F66/'financial statements'!F72 -> 0.01074954822 | H25: ='financial statements'!G66/'financial statements'!G72 -> 0.03236971267 | I25: ='financial statements'!H66/'financial statements'!H72 -> 0.02463289165 | J25: ='financial statements'!I66/'financial statements'!I72 -> 0.02654468543 | K25: ='financial statements'!J66/'financial statements'!J72 -> 0.02743285729 | L25: ='financial statements'!K66/'financial statements'!K72 -> 0.02821239075 | M25: ='financial statements'!L66/'financial statements'!L72 -> 0.0288733747
B26: Net NPLs to capital | E26: % | F26: ='financial statements'!E66/'financial statements'!E118 -> 0.0664371143 | G26: ='financial statements'!F66/'financial statements'!F118 -> 0.06690588543 | H26: ='financial statements'!G66/'financial statements'!G118 -> 0.1400753849 | I26: ='financial statements'!H66/'financial statements'!H118 -> 0.109760057 | J26: ='financial statements'!I66/'financial statements'!I118 -> 0.1207613513 | K26: ='financial statements'!J66/'financial statements'!J118 -> 0.1232704825 | L26: ='financial statements'!K66/'financial statements'!K118 -> 0.1220047256 | M26: ='financial statements'!L66/'financial statements'!L118 -> 0.1213408893
B27: Cost/Income ratio | E27: % | F27: ='financial statements'!E42/('financial statements'!E20+'financial statements'!E39) -> 0.3014878115 | G27: ='financial statements'!F42/('financial statements'!F20+'financial statements'!F39) -> 0.3559056612 | H27: ='financial statements'!G42/('financial statements'!G20+'financial statements'!G39) -> 0.3116130436 | I27: ='financial statements'!H42/('financial statements'!H20+'financial statements'!H39) -> 0.2708485218 | J27: ='financial statements'!I42/('financial statements'!I20+'financial statements'!I39) -> 0.2807691565 | K27: ='financial statements'!J42/('financial statements'!J20+'financial statements'!J39) -> 0.3057103206 | L27: ='financial statements'!K42/('financial statements'!K20+'financial statements'!K39) -> 0.3328698794 | M27: ='financial statements'!L42/('financial statements'!L20+'financial statements'!L39) -> 0.3654090277
B28: Operating Profit Margin | E28: % | F28: =('financial statements'!E20+'financial statements'!E39-'financial statements'!E46)/('financial statements'!E20+'financial statements'!E39) -> 0.6970915178 | G28: =('financial statements'!F20+'financial statements'!F39-'financial statements'!F46)/('financial statements'!F20+'financial statements'!F39) -> 0.6302985618 | H28: =('financial statements'!G20+'financial statements'!G39-'financial statements'!G46)/('financial statements'!G20+'financial statements'!G39) -> 0.6919225498 | I28: =('financial statements'!H20+'financial statements'!H39-'financial statements'!H46)/('financial statements'!H20+'financial statements'!H39) -> 0.6653551746 | J28: =('financial statements'!I20+'financial statements'!I39-'financial statements'!I46)/('financial statements'!I20+'financial statements'!I39) -> 0.6534717406 | K28: =('financial statements'!J20+'financial statements'!J39-'financial statements'!J46)/('financial statements'!J20+'financial statements'!J39) -> 0.6218374883 | L28: =('financial statements'!K20+'financial statements'!K39-'financial statements'!K46)/('financial statements'!K20+'financial statements'!K39) -> 0.586374647 | M28: =('financial statements'!L20+'financial statements'!L39-'financial statements'!L46)/('financial statements'!L20+'financial statements'!L39) -> 0.5443610231
B29: Investment to deposit ratio | E29: % | F29: ='financial statements'!E93/'financial statements'!E104 -> 0.2081666528 | G29: ='financial statements'!F93/'financial statements'!F104 -> 0.2108679597 | H29: ='financial statements'!G93/'financial statements'!G104 -> 0.2428968233 | I29: ='financial statements'!H93/'financial statements'!H104 -> 0.3854441019 | J29: ='financial statements'!I93/'financial statements'!I104 -> 0.3854441019 | K29: ='financial statements'!J93/'financial statements'!J104 -> 0.3854441019 | L29: ='financial statements'!K93/'financial statements'!K104 -> 0.3854441019 | M29: ='financial statements'!L93/'financial statements'!L104 -> 0.3854441019
B30: Advances to total assets ratio | E30: % | F30: ='financial statements'!E95/'financial statements'!E99 -> 0.5065203452 | G30: ='financial statements'!F95/'financial statements'!F99 -> 0.4606813501 | H30: ='financial statements'!G95/'financial statements'!G99 -> 0.3520557033 | I30: ='financial statements'!H95/'financial statements'!H99 -> 0.3406597085 | J30: ='financial statements'!I95/'financial statements'!I99 -> 0.3550812529 | K30: ='financial statements'!J95/'financial statements'!J99 -> 0.3614913557 | L30: ='financial statements'!K95/'financial statements'!K99 -> 0.3663629343 | M30: ='financial statements'!L95/'financial statements'!L99 -> 0.3711247571
B31: Net Interest Income to Gross interest Income | E31: % | F31: ='financial statements'!E25/'financial statements'!E20 -> 0.4640988063 | G31: ='financial statements'!F25/'financial statements'!F20 -> 0.5463533213 | H31: ='financial statements'!G25/'financial statements'!G20 -> 0.5082050222 | I31: ='financial statements'!H25/'financial statements'!H20 -> 0.4658753802 | J31: ='financial statements'!I25/'financial statements'!I20 -> 0.5884697211 | K31: ='financial statements'!J25/'financial statements'!J20 -> 0.6846776255 | L31: ='financial statements'!K25/'financial statements'!K20 -> 0.7949784719 | M31: ='financial statements'!L25/'financial statements'!L20 -> 0.8722474034

Sheet projected financials statements
C6: Income Statement | D6: ='[2]financial statements'!I13 -> 2011 | E6: ='[2]financial statements'!J13 -> 2012 | F6: ='[2]financial statements'!K13 -> 2013 | G6: ='[2]financial statements'!L13 -> 2014
C8: On Financing to Customers | D8: ='[2]financial statements'!I16 -> 5432861.633 | E8: ='[2]financial statements'!J16 -> 5250830.48 | F8: ='[2]financial statements'!K16 -> 5425799.346 | G8: ='[2]financial statements'!L16 -> 6225250.515
C9: Interest Earned on Investments | D9: ='[2]financial statements'!I17 -> 2745842.9 | E9: ='[2]financial statements'!J17 -> 2653841.855 | F9: ='[2]financial statements'!K17 -> 2742273.524 | G9: ='[2]financial statements'!L17 -> 3146327.126
C10: On Deposits/Placements with Financial Institutions | D10: ='[2]financial statements'!I18 -> 3518929.546 | E10: ='[2]financial statements'!J18 -> 3401025.789 | F10: ='[2]financial statements'!K18 -> 3514355.219 | G10: ='[2]financial statements'!L18 -> 4032169.315
C11: Return Earned on Cash | D11: ='[2]financial statements'!I19 -> 567385.6356 | E11: ='[2]financial statements'!J19 -> 710081.7654 | F11: ='[2]financial statements'!K19 -> 687141.1175 | G11: ='[2]financial statements'!L19 -> 714130.1869
C12: Profit /return on financings, investments and placements | D12: ='[2]financial statements'!I20 -> 12265019.71 | E12: ='[2]financial statements'!J20 -> 12015779.89 | F12: ='[2]financial statements'!K20 -> 12369569.21 | G12: ='[2]financial statements'!L20 -> 14117877.14
C13: Deposits and Other Accounts | D13: ='[2]financial statements'!I21 -> 4818319.001 | E13: ='[2]financial statements'!J21 -> 3095830.435 | F13: ='[2]financial statements'!K21 -> 1768044.935 | G13: ='[2]financial statements'!L21 -> 2028553.203
C14: Other Short Term Borrowings | D14: ='[2]financial statements'!I22 -> 239366.4844 | E14: ='[2]financial statements'!J22 -> 192015.3661 | F14: ='[2]financial statements'!K22 -> 158752.1241 | G14: ='[2]financial statements'!L22 -> 134811.5876
C15: Return on deposits and other dues expensed | D15: ='[2]financial statements'!I23 -> 5057685.485 | E15: ='[2]financial statements'!J23 -> 3287845.802 | F15: ='[2]financial statements'!K23 -> 1926797.059 | G15: ='[2]financial statements'!L23 -> 2163364.79
C17: Net spread earned | D17: ='[2]financial statements'!I25 -> 7207334.23 | E17: ='[2]financial statements'!J25 -> 8727934.089 | F17: ='[2]financial statements'!K25 -> 10442772.15 | G17: ='[2]financial statements'!L25 -> 11954512.35
C18: Provision against non- performing financings (net) | D18: ='[2]financial statements'!I26 -> 1818509.084 | E18: ='[2]financial statements'!J26 -> 2168865.161 | F18: ='[2]financial statements'!K26 -> 2602353.021 | G18: ='[2]financial statements'!L26 -> 3072741.838
C19: Provision for impairment in value of available for sale investments | D19: ='[2]financial statements'!I27 -> 0 | E19: ='[2]financial statements'!J27 -> 0 | F19: ='[2]financial statements'!K27 -> 0 | G19: ='[2]financial statements'!L27 -> 0
D20: ='[2]financial statements'!I28 -> 1818509.084 | E20: ='[2]financial statements'!J28 -> 2168865.161 | F20: ='[2]financial statements'!K28 -> 2602353.021 | G20: ='[2]financial statements'!L28 -> 3072741.838
C21: Net spread after provisions | D21: ='[2]financial statements'!I29 -> 5388825.146 | E21: ='[2]financial statements'!J29 -> 6559068.928 | F21: ='[2]financial statements'!K29 -> 7840419.126 | G21: ='[2]financial statements'!L29 -> 8881770.515
C22: OTHER INCOME
C23: Fee, commission and brokerage income | D23: ='[2]financial statements'!I31 -> 824607.1575 | E23: ='[2]financial statements'!J31 -> 865837.5154 | F23: ='[2]financial statements'!K31 -> 909129.3911 | G23: ='[2]financial statements'!L31 -> 954585.8607
C24: Dividend income | D24: ='[2]financial statements'!I32 -> 0 | E24: ='[2]financial statements'!J32 -> 0 | F24: ='[2]financial statements'!K32 -> 0 | G24: ='[2]financial statements'!L32 -> 0
C25: Income from dealing in foreign currencies | D25: ='[2]financial statements'!I33 -> 602895.7101 | E25: ='[2]financial statements'!J33 -> 712183.1967 | F25: ='[2]financial statements'!K33 -> 827903.9915 | G25: ='[2]financial statements'!L33 -> 949889.4855
C26: Capital gain/(loss) on sale of investments | D26: ='[2]financial statements'!I34 -> 0 | E26: ='[2]financial statements'!J34 -> 0 | F26: ='[2]financial statements'!K34 -> 0 | G26: ='[2]financial statements'!L34 -> 0
C27: Un-Realised Loss on Held for Trading | D27: ='[2]financial statements'!I35 -> -1315 | E27: ='[2]financial statements'!J35 -> -1315 | F27: ='[2]financial statements'!K35 -> -1315 | G27: ='[2]financial statements'!L35 -> -1315
C28: Income on Equity Investment | D28: ='[2]financial statements'!I36 -> 562702.6628 | E28: ='[2]financial statements'!J36 -> 664704.3169 | F28: ='[2]financial statements'!K36 -> 772710.392 | G28: ='[2]financial statements'!L36 -> 886563.5198
C29: Impairment on Reclassification from HTM to AVS
C30: Other income | D30: ='[2]financial statements'!I38 -> 60993.4026 | E30: ='[2]financial statements'!J38 -> 65262.94078 | F30: ='[2]financial statements'!K38 -> 69831.34664 | G30: ='[2]financial statements'!L38 -> 74719.5409
C31: Total other income | D31: ='[2]financial statements'!I39 -> 2051198.933 | E31: ='[2]financial statements'!J39 -> 2307987.97 | F31: ='[2]financial statements'!K39 -> 2579575.121 | G31: ='[2]financial statements'!L39 -> 2865758.407
C32: Earning Before Expenses and Taxes | D32: ='[2]financial statements'!I40 -> 7440024.079 | E32: ='[2]financial statements'!J40 -> 8867056.897 | F32: ='[2]financial statements'!K40 -> 10419994.25 | G32: ='[2]financial statements'!L40 -> 11747528.92
C33: Other Expenses
C34: Administrative expenses | D34: ='[2]financial statements'!I42 -> 4722750.136 | E34: ='[2]financial statements'!J42 -> 5540425.758 | F34: ='[2]financial statements'!K42 -> 6364529.18 | G34: ='[2]financial statements'!L42 -> 7167549.975
C35: Depriciation Expense | D35: ='[2]financial statements'!I43 -> 429144.2005 | E35: ='[2]financial statements'!J43 -> 506195.8972 | F35: ='[2]financial statements'!K43 -> 590405.2308 | G35: ='[2]financial statements'!L43 -> 678605.4998
C36: Provisions/ Write Offs/( Reversals) | D36: ='[2]financial statements'!I44 -> 66988.41224 | E36: ='[2]financial statements'!J44 -> 79131.4663 | F36: ='[2]financial statements'!K44 -> 91989.33238 | G36: ='[2]financial statements'!L44 -> 105543.2762
C37: Other charges
C38: Total other expenses | D38: ='[2]financial statements'!I46 -> 5218882.749 | E38: ='[2]financial statements'!J46 -> 6125753.121 | F38: ='[2]financial statements'!K46 -> 7046923.743 | G38: ='[2]financial statements'!L46 -> 7951698.751
C39: Earning after Expenses and Before Taxes | D39: ='[2]financial statements'!I47 -> 2221141.33 | E39: ='[2]financial statements'!J47 -> 2741303.776 | F39: ='[2]financial statements'!K47 -> 3373070.504 | G39: ='[2]financial statements'!L47 -> 3795830.171
C40: Share of results of associates before taxation | D40: ='[2]financial statements'!I48 -> 929392.065 | E40: ='[2]financial statements'!J48 -> 975861.6683 | F40: ='[2]financial statements'!K48 -> 1024654.752 | G40: ='[2]financial statements'!L48 -> 1075887.489
C41: PROFIT BEFORE TAXATION | D41: ='[2]financial statements'!I49 -> 3150533.395 | E41: ='[2]financial statements'!J49 -> 3717165.445 | F41: ='[2]financial statements'!K49 -> 4397725.256 | G41: ='[2]financial statements'!L49 -> 4871717.66
C42: Taxes | D42: ='[2]financial statements'!I50 -> 945160.0186 | E42: ='[2]financial statements'!J50 -> 1115149.633 | F42: ='[2]financial statements'!K50 -> 1319317.577 | G42: ='[2]financial statements'!L50 -> 1461515.298
C43: PROFIT AFTER TAXATION | D43: ='[2]financial statements'!I51 -> 2205373.377 | E43: ='[2]financial statements'!J51 -> 2602015.811 | F43: ='[2]financial statements'!K51 -> 3078407.679 | G43: ='[2]financial statements'!L51 -> 3410202.362
C44: Share of profit attributable to non controlling interest | D44: ='[2]financial statements'!I52 -> -109037.25 | E44: ='[2]financial statements'!J52 -> -114489.1125 | F44: ='[2]financial statements'!K52 -> -120213.5681 | G44: ='[2]financial statements'!L52 -> -126224.2465
C45: PROFIT ATTRIBUTABLE TO SHAREHOLDERS | D45: ='[2]financial statements'!I53 -> 2096336.127 | E45: ='[2]financial statements'!J53 -> 2487526.699 | F45: ='[2]financial statements'!K53 -> 2958194.111 | G45: ='[2]financial statements'!L53 -> 3283978.116
C48: Balance Sheet | D48: ='financial statements'!I87 -> 2011 | E48: ='financial statements'!J87 -> 2012 | F48: ='financial statements'!K87 -> 2013 | G48: ='financial statements'!L87 -> 2014
C50: ASSETS
C51: Cash and balances with treasury banks | D51: ='financial statements'!I90 -> 12915221.48 | E51: ='financial statements'!J90 -> 16105279.82 | F51: ='financial statements'!K90 -> 19773993.82 | G51: ='financial statements'!L90 -> 23190031.9
C52: Balances with other banks | D52: ='financial statements'!I91 -> 12359156.76 | E52: ='financial statements'!J91 -> 15030472.93 | F52: ='financial statements'!K91 -> 17990775.5 | G52: ='financial statements'!L91 -> 21288447.26
C53: Due from financial institutions | D53: ='financial statements'!I92 -> 13046880.31 | E53: ='financial statements'!J92 -> 15866841.5 | F53: ='financial statements'!K92 -> 18991869.7 | G53: ='financial statements'!L92 -> 22473039.94
C54: Investments | D54: ='financial statements'!I93 -> 62702575.57 | E54: ='financial statements'!J93 -> 76255150.99 | F54: ='financial statements'!K93 -> 91273861.39 | G54: ='financial statements'!L93 -> 108004170.5
C55: Investment In Associates | D55: ='financial statements'!I94 -> 183343.4013 | E55: ='financial statements'!J94 -> 315350.6502 | F55: ='financial statements'!K94 -> 473759.349 | G55: ='financial statements'!L94 -> 663849.7874
C56: Financings | D56: ='financial statements'!I95 -> 67016566.44 | E56: ='financial statements'!J95 -> 81501570.65 | F56: ='financial statements'!K95 -> 97553581.18 | G56: ='financial statements'!L95 -> 115434949.8
C57: Operating fixed assets | D57: ='financial statements'!I96 -> 2563116.316 | E57: ='financial statements'!J96 -> 2435583.47 | F57: ='financial statements'!K96 -> 2268950.938 | G57: ='financial statements'!L96 -> 2037331.669
C58: Deferred tax assets | D58: ='financial statements'!I97 -> 241746 | E58: ='financial statements'!J97 -> 241746 | F58: ='financial statements'!K97 -> 241746 | G58: ='financial statements'!L97 -> 241746
C59: Other assets | D59: ='financial statements'!I98 -> 17707256 | E59: ='financial statements'!J98 -> 17707256 | F59: ='financial statements'!K98 -> 17707256 | G59: ='financial statements'!L98 -> 17707256
C60: Total Asset | D60: ='financial statements'!I99 -> 188735862.3 | E60: ='financial statements'!J99 -> 225459252 | F60: ='financial statements'!K99 -> 266275793.9 | G60: ='financial statements'!L99 -> 311040822.8
C62: Liabilities | D62: ='financial statements'!I101 -> 0 | E62: ='financial statements'!J101 -> 0 | F62: ='financial statements'!K101 -> 0 | G62: ='financial statements'!L101 -> 0
C63: Bills payable | D63: ='financial statements'!I102 -> 2193586.656 | E63: ='financial statements'!J102 -> 2667709.901 | F63: ='financial statements'!K102 -> 3193124.406 | G63: ='financial statements'!L102 -> 3778417.472
C64: Due to financial institutions | D64: ='financial statements'!I103 -> -445691.5575 | E64: ='financial statements'!J103 -> -4834696.843 | F64: ='financial statements'!K103 -> -10223865.97 | G64: ='financial statements'!L103 -> -16915496.39
C65: Deposits and other accounts | D65: ='financial statements'!I104 -> 162676183.8 | E65: ='financial statements'!J104 -> 197837119.9 | F65: ='financial statements'!K104 -> 236801811.1 | G65: ='financial statements'!L104 -> 280207090.8
C66: Sub-ordinated loan | D66: ='financial statements'!I105 -> 0 | E66: ='financial statements'!J105 -> 0 | F66: ='financial statements'!K105 -> 0 | G66: ='financial statements'!L105 -> 0
C67: Liabilities against assets subject to finance leases | D67: ='financial statements'!I106 -> 0 | E67: ='financial statements'!J106 -> 0 | F67: ='financial statements'!K106 -> 0 | G67: ='financial statements'!L106 -> 0
C68: Deferred tax liabilities | D68: ='financial statements'!I107 -> 0 | E68: ='financial statements'!J107 -> 0 | F68: ='financial statements'!K107 -> 0 | G68: ='financial statements'!L107 -> 0
C69: Other liabilities | D69: ='financial statements'!I108 -> 9580798.178 | E69: ='financial statements'!J108 -> 11651598.12 | F69: ='financial statements'!K108 -> 13946419.85 | G69: ='financial statements'!L108 -> 16502769.63
C70: Total Liabilities | D70: ='financial statements'!I109 -> 174004877.1 | E70: ='financial statements'!J109 -> 207321731.1 | F70: ='financial statements'!K109 -> 243717489.4 | G70: ='financial statements'!L109 -> 283572781.5
C71: Net Assets | D71: ='financial statements'!I110 -> 14730985.17 | E71: ='financial statements'!J110 -> 18137520.93 | F71: ='financial statements'!K110 -> 22558304.51 | G71: ='financial statements'!L110 -> 27468041.31
C72: Share capital | D72: ='financial statements'!I111 -> 7607654.251 | E72: ='financial statements'!J111 -> 8368419.217 | F72: ='financial statements'!K111 -> 9205260.68 | G72: ='financial statements'!L111 -> 10125786.29
C73: Reserves | D73: ='financial statements'!I112 -> 1929151.634 | E73: ='financial statements'!J112 -> 2610458.786 | F73: ='financial statements'!K112 -> 3494615.502 | G73: ='financial statements'!L112 -> 4476562.862
C74: Unappropriated profit | D74: ='financial statements'!I113 -> 4399568.935 | E74: ='financial statements'!J113 -> 6282417.809 | F74: ='financial statements'!K113 -> 8896507.704 | G74: ='financial statements'!L113 -> 11813791.26
D75: ='financial statements'!I114 -> 13936374.82 | E75: ='financial statements'!J114 -> 17261295.81 | F75: ='financial statements'!K114 -> 21596383.89 | G75: ='financial statements'!L114 -> 26416140.41
C76: NON CONTROLLING INTEREST | D76: ='financial statements'!I115 -> 454742.35 | E76: ='financial statements'!J115 -> 536357.1175 | F76: ='financial statements'!K115 -> 622052.6234 | G76: ='financial statements'!L115 -> 712032.9045
D77: ='financial statements'!I116 -> 14391117.17 | E77: ='financial statements'!J116 -> 17797652.93 | F77: ='financial statements'!K116 -> 22218436.51 | G77: ='financial statements'!L116 -> 27128173.31
C78: Surplus on revaluation of investments | D78: ='financial statements'!I117 -> 339868 | E78: ='financial statements'!J117 -> 339868 | F78: ='financial statements'!K117 -> 339868 | G78: ='financial statements'!L117 -> 339868
C79: Total Equity | D79: ='financial statements'!I118 -> 14730985.17 | E79: ='financial statements'!J118 -> 18137520.93 | F79: ='financial statements'!K118 -> 22558304.51 | G79: ='financial statements'!L118 -> 27468041.31
C81: Cash Flow Statement | D81: ='financial statements'!I153 -> 2011 | E81: ='financial statements'!J153 -> 2012 | F81: ='financial statements'!K153 -> 2013 | G81: ='financial statements'!L153 -> 2014
C83: Cash Flows From Operations
C84: Net Income | D84: ='financial statements'!I156 -> 2535396.855 | E84: ='financial statements'!J156 -> 3324920.992 | F84: ='financial statements'!K156 -> 4335088.074 | G84: ='financial statements'!L156 -> 4819756.521
C85: Share of Associate | D85: ='financial statements'!I157 -> -110006.0408 | E85: ='financial statements'!J157 -> -132007.2489 | F85: ='financial statements'!K157 -> -158408.6987 | G85: ='financial statements'!L157 -> -190090.4385
C86: Dep and Ammortization | D86: ='financial statements'!I158 -> 1069751.768 | E86: ='financial statements'!J158 -> 1305306.499 | F86: ='financial statements'!K158 -> 1589974.991 | G86: ='financial statements'!L158 -> 1929563.921
C87: Balances with other banks | D87: ='financial statements'!I159 -> -2401399.757 | E87: ='financial statements'!J159 -> -2671316.171 | F87: ='financial statements'!K159 -> -2960302.577 | G87: ='financial statements'!L159 -> -3297671.755
C88: Due from financial institutions | D88: ='financial statements'!I160 -> -2535025.311 | E88: ='financial statements'!J160 -> -2819961.187 | F88: ='financial statements'!K160 -> -3125028.201 | G88: ='financial statements'!L160 -> -3481170.24
C89: Financings | D89: ='financial statements'!I161 -> -13021403.44 | E89: ='financial statements'!J161 -> -14485004.21 | F89: ='financial statements'!K161 -> -16052010.52 | G89: ='financial statements'!L161 -> -17881368.66
C90: Deferred tax assets | D90: ='financial statements'!I162 -> 0 | E90: ='financial statements'!J162 -> 0 | F90: ='financial statements'!K162 -> 0 | G90: ='financial statements'!L162 -> 0
C91: Other assets | D91: ='financial statements'!I163 -> 0 | E91: ='financial statements'!J163 -> 0 | F91: ='financial statements'!K163 -> 0 | G91: ='financial statements'!L163 -> 0
C92: Bills payable | D92: ='financial statements'!I164 -> 426216.6558 | E92: ='financial statements'!J164 -> 474123.2449 | F92: ='financial statements'!K164 -> 525414.505 | G92: ='financial statements'!L164 -> 585293.0664
C93: Due to financial institutions | D93: ='financial statements'!I165 -> -6274987.557 | E93: ='financial statements'!J165 -> -4389005.285 | F93: ='financial statements'!K165 -> -5389169.123 | G93: ='financial statements'!L165 -> -6691630.427
C94: Deposits and other accounts | D94: ='financial statements'!I166 -> 31608187.84 | E94: ='financial statements'!J166 -> 35160936.06 | F94: ='financial statements'!K166 -> 38964691.17 | G94: ='financial statements'!L166 -> 43405279.76
C95: Sub-ordinated loan | D95: ='financial statements'!I167 -> 0 | E95: ='financial statements'!J167 -> 0 | F95: ='financial statements'!K167 -> 0 | G95: ='financial statements'!L167 -> 0
C96: Liabilities against assets subject to finance leases | D96: ='financial statements'!I168 -> 0 | E96: ='financial statements'!J168 -> 0 | F96: ='financial statements'!K168 -> 0 | G96: ='financial statements'!L168 -> 0
C97: Deferred tax liabilities | D97: ='financial statements'!I169 -> 0 | E97: ='financial statements'!J169 -> 0 | F97: ='financial statements'!K169 -> 0 | G97: ='financial statements'!L169 -> 0
C98: Other liabilities | D98: ='financial statements'!I170 -> 1861561.178 | E98: ='financial statements'!J170 -> 2070799.943 | F98: ='financial statements'!K170 -> 2294821.734 | G98: ='financial statements'!L170 -> 2556349.77
C99: Share of Associate | D99: ='financial statements'!I171 -> 77728.35 | E99: ='financial statements'!J171 -> 81614.7675 | F99: ='financial statements'!K171 -> 85695.50588 | G99: ='financial statements'!L171 -> 89980.28117
C100: Net Cash Flows from Operations | D100: ='financial statements'!I172 -> 13236020.53 | E100: ='financial statements'!J172 -> 17920407.41 | F100: ='financial statements'!K172 -> 20110766.86 | G100: ='financial statements'!L172 -> 21844291.8
C102: Cash Flows from Investing
C103: Investments | D103: ='financial statements'!I175 -> -12183189.57 | E103: ='financial statements'!J175 -> -13552575.42 | F103: ='financial statements'!K175 -> -15018710.39 | G103: ='financial statements'!L175 -> -16730309.07
C104: Fixed Capital Investments | D104: ='financial statements'!I176 -> -953620.0551 | E104: ='financial statements'!J176 -> -1177773.652 | F104: ='financial statements'!K176 -> -1423342.459 | G104: ='financial statements'!L176 -> -1697944.652
C105: Net Cash Flows From Investing | D105: ='financial statements'!I177 -> -13136809.63 | E105: ='financial statements'!J177 -> -14730349.07 | F105: ='financial statements'!K177 -> -16442052.85 | G105: ='financial statements'!L177 -> -18428253.72
C107: Cash Flows from Financing
C108: Amount received against issue of right shares | D108: ='financial statements'!I180 -> 0 | E108: ='financial statements'!J180 -> 0 | F108: ='financial statements'!K180 -> 0 | G108: ='financial statements'!L180 -> 0
C109: Dividend paid | D109: ='financial statements'!I181 -> 0 | E109: ='financial statements'!J181 -> 0 | F109: ='financial statements'!K181 -> 0 | G109: ='financial statements'!L181 -> 0
C110: Net Cash Flows from Financing | D110: ='financial statements'!I182 -> 0 | E110: ='financial statements'!J182 -> 0 | F110: ='financial statements'!K182 -> 0 | G110: ='financial statements'!L182 -> 0
C112: Operning Cash & Cash Equivalents | D112: ='financial statements'!I184 -> 12816010.58 | E112: ='financial statements'!J184 -> 12915221.48 | F112: ='financial statements'!K184 -> 16105279.82 | G112: ='financial statements'!L184 -> 19773993.82
C113: Net Increase / (Decrease) in C&C Equivalents | D113: ='financial statements'!I185 -> 99210.90761 | E113: ='financial statements'!J185 -> 3190058.332 | F113: ='financial statements'!K185 -> 3668714.007 | G113: ='financial statements'!L185 -> 3416038.077
C114: Closing Cash & Cash Equivalents | D114: ='financial statements'!I186 -> 12915221.48 | E114: ='financial statements'!J186 -> 16105279.82 | F114: ='financial statements'!K186 -> 19773993.82 | G114: ='financial statements'!L186 -> 23190031.9

Sheet Graphs Data
B2: 2011 | C2: =B2+1 -> 2012 | D2: =C2+1 -> 2013 | E2: 2014
A3: EPS | B3: ='financial statements'!I63 -> 3.665963424 | C3: ='financial statements'!J63 -> 4.807546685 | D3: ='financial statements'!K63 -> 6.268160462 | E3: ='financial statements'!L63 -> 6.968948899
A4: FCFE / Share | B4: =valuation!D20/valuation!$G$29 -> 1.629424845 | C4: =valuation!E20/valuation!$G$29 -> 2.806751761 | D4: =valuation!F20/valuation!$G$29 -> 4.138457357 | E4: =valuation!G20/valuation!$G$29 -> 4.858225527
A5: Capital Adequacy Ratio | B5: ='Ratio Analysis'!J12 -> 0.1260203752 | C5: ='Ratio Analysis'!K12 -> 0.1303797918 | D5: ='Ratio Analysis'!L12 -> 0.1377315959 | E5: ='Ratio Analysis'!M12 -> 0.1438865935

Sheet strategey
C2: Investment Strategy
C3: As on Dec,31st 2010 Rupees in 000
C4: Equity Investments | D4: Investment | E4: Sector | F4: Weights | G4: Beta | H4: weighted average beta | J4: Future Avaiable | K4: Beta | L4: weight | R4: Future Avaiable | S4: OGDC | T4: PTC | U4: PPL | V4: POL | W4: NML | X4: FFC | Y4: FFBL | Z4: LUCK | AA4: ENGRO
C5: Held for Trading | J5: =TRANSPOSE(S4:AA5) -> OGDC | K5: 1.066 | L5: 0.05 | R5: Beta | S5: =Sheet1!E203 -> 1.066 | T5: =Sheet1!E508 -> 1.034 | U5: =Sheet1!P203 -> 0.896 | V5: =Sheet1!P508 -> 1.082 | W5: =Sheet1!AA203 -> 1.259 | X5: =Sheet1!AA508 -> 0.795 | Y5: =Sheet1!E813 -> 0.798 | Z5: =Sheet1!P813 -> 1.175 | AA5: =Sheet1!AA812 -> 1.183
C6: PSO | D6: 0 | E6: Oil and Gas | F6: =D6/$D$30 -> 0 | G6: 1.12 | H6: =G6*F6 -> 0 | J6: PTC | K6: 1.034 | L6: 0.05 | R6: weight | S6: 0 | T6: 0 | U6: 0 | V6: 0 | W6: 0 | X6: 0 | Y6: 0 | Z6: 0 | AA6: 0
C7: OGDCL | D7: 0 | E7: Oil and Gas | F7: =D7/$D$30 -> 0 | G7: 1.07 | H7: =G7*F7 -> 0 | J7: PPL | K7: 0.896 | L7: 0.05 | R7: weighted average beta
C8: FFBL | D8: 0 | E8: Fertilizer | F8: 0 | G8: 0.809 | H8: 0 | J8: POL | K8: 1.082 | L8: 0.05 | R8: Meezan Beta | S8: 1.29
C9: Avaiablble for sale | J9: NML | K9: 1.259 | L9: 0.05 | R9: weighted average beta Equity | S9: =D37 -> 0.1326306258
C10: Agriauto industries | D10: 19521 | E10: Automobile | F10: 0.01105112184 | G10: 1.09 | H10: 0.01204572281 | J10: FFC | K10: 0.795 | L10: 0.05 | R10: Total Beta | S10: =SUM(S8:S9) -> 1.422630626
C11: Indus motor | D11: 7023 | E11: Automobile | F11: 0.00397582238 | G11: 0.885 | H11: 0.003518602807 | J11: FFBL | K11: 0.798 | L11: 0.05
C12: Pak suzuki motors | D12: 8024 | E12: Automobile | F12: 0.00454250303 | G12: 1.186 | H12: 0.005387408594 | J12: LUCK | K12: 1.175 | L12: 0.05
C13: Attock cement | D13: 7838 | E13: Cement | F13: 0.004437205727 | G13: 1.16 | H13: 0.005147158643 | J13: ENGRO | K13: 1.183 | L13: 0.05
C14: Lucky cement | D14: 1987 | E14: Cement | F14: 0.001124869581 | G14: 1.19 | H14: 0.001338594802 | J14: MCB | K14: =Sheet1!AG203 -> 1.256 | L14: 0.05
C15: Pakistan state oil | D15: 888818 | E15: Oil and Gas | F15: 0.5031727889 | G15: 1.12 | H15: 0.5635535236 | J15: AICL | K15: =Sheet1!AG508 -> 1.637 | L15: 0.15
C16: Shell | D16: 70 | E16: Oil and Gas | F16: 3.962801746e-05 | G16: 0.905 | H16: 3.58633558e-05 | J16: DGKC | K16: =Sheet1!AG812 -> 1.364 | L16: 0.05
C17: Hub power | D17: 119440 | E17: Power | F17: 0.06761672008 | G17: 0.6369 | H17: 0.04306508902 | J17: BOP | K17: =Sheet1!E1118 -> 1.517 | L17: 0.15
C18: POL | D18: 107414 | E18: Oil and Gas | F18: 0.06080862668 | G18: 1.099 | H18: 0.06682868072 | J18: UBL | K18: =Sheet1!P1118 -> 1.108 | L18: 0.05
C19: OGDCL | D19: 58258 | E19: Oil and Gas | F19: 0.03298070059 | G19: 1.07 | H19: 0.03528934963 | J19: ANL | K19: =Sheet1!AA1115 -> 1.467 | L19: 0.1132242672
C20: PPL | D20: 141196 | E20: Oil and Gas | F20: 0.07993310791 | G20: 0.888 | H20: 0.07098059982
C21: FFBL | D21: 79762 | E21: Fertilizer | F21: 0.04515442755 | G21: 0.809 | H21: 0.03652993189
C22: FFC | D22: 143643 | E22: Fertilizer | F22: 0.08131839017 | G22: 0.8323 | H22: 0.06768129614 | J22: Weighted Average Beta | K22: =SUMPRODUCT(K5:K19,L5:L19) -> 1.29
C23: century paper | D23: 37905 | E23: paper and board | F23: 0.02145857146 | G23: 0.818 | H23: 0.01755311145 | J23: Net Exposure | K23: =K22-S8 -> -3.852917985e-12
C24: ICI | D24: 54896 | E24: Chemical | F24: 0.03107742352 | G24: 1.23 | H24: 0.03822523093
C25: Nishat mills | D25: 24192 | E25: Textile | F25: 0.01369544283 | G25: 1.24 | H25: 0.01698234911
C26: PTC | D26: 43703 | E26: Telecom | F26: 0.02474090353 | G26: 1.013 | H26: 0.02506253528
C27: PRL | D27: 1207 | E27: Refinary | F27: 0.0006833002439 | G27: 1.23 | H27: 0.0008404593
C28: Thal limited | D28: 3565 | E28: Jute | F28: 0.002018198318 | G28: 0.347 | H28: 0.0007003148163
C29: Tri pack | D29: 17965 | E29: Miscleneous | G29: 0.772
C30: Total equity investments listed | D30: =SUM(D6:D29) -> 1766427
C31: Total weighted average beta | H31: =SUM(H6:H28) -> 1.010765823
C32: Total investments | D32: 24370190
C33: Total no of shares | D33: 698225
C34: per share equity | D34: =D30/D33 -> 2.529882201
C35: Meezan Per Share Price | D35: 19.28
C36: Weight of Equity | D36: =D34/D35 -> 0.1312179565
C37: Weighted Average Beta | D37: =D36*H31 -> 0.1326306258

Sheet Sheet1
A1: Home | L1: Home | W1: Home | AC1: Home
A2: News | L2: News | W2: News | AC2: News
A5: Top Headlines | L5: Top Headlines | W5: Top Headlines | AC5: Top Headlines
A6: Most Popular | L6: Most Popular | W6: Most Popular | AC6: Most Popular
A7: Exclusive | L7: Exclusive | W7: Exclusive | AC7: Exclusive
A8: Worldwide | L8: Worldwide | W8: Worldwide | AC8: Worldwide
A9: Regions | L9: Regions | W9: Regions | AC9: Regions
A10: Markets | L10: Markets | W10: Markets | AC10: Markets
A11: Industries | L11: Industries | W11: Industries | AC11: Industries
A12: Economy | L12: Economy | W12: Economy | AC12: Economy
A13: Politics | L13: Politics | W13: Politics | AC13: Politics
A14: Law | L14: Law | W14: Law | AC14: Law
A15: Environment | L15: Environment | W15: Environment | AC15: Environment
A16: Science | L16: Science | W16: Science | AC16: Science
A17: Opinion | L17: Opinion | W17: Opinion | AC17: Opinion
A18: Muse: Arts, Culture & Spend | L18: Muse: Arts, Culture & Spend | W18: Muse: Arts, Culture & Spend | AC18: Muse: Arts, Culture & Spend
A19: Sports | L19: Sports | W19: Sports | AC19: Sports
A20: Bloomberg Markets Magazine | L20: Bloomberg Markets Magazine | W20: Bloomberg Markets Magazine | AC20: Bloomberg Markets Magazine
A21: Leaders | L21: Leaders | W21: Leaders | AC21: Leaders
A22: Entrepreneurs | L22: Entrepreneurs | W22: Entrepreneurs | AC22: Entrepreneurs
A23: Market Data | L23: Market Data | W23: Market Data | AC23: Market Data
A26: Overview | L26: Overview | W26: Overview | AC26: Overview
A27: Stocks | L27: Stocks | W27: Stocks | AC27: Stocks
A28: Stock Futures | L28: Stock Futures | W28: Stock Futures | AC28: Stock Futures
A29: Currencies | L29: Currencies | W29: Currencies | AC29: Currencies
A30: Commodities | L30: Commodities | W30: Commodities | AC30: Commodities
A31: Rates & Bonds | L31: Rates & Bonds | W31: Rates & Bonds | AC31: Rates & Bonds
A32: ETFs | L32: ETFs | W32: ETFs | AC32: ETFs
A33: Mutual Funds | L33: Mutual Funds | W33: Mutual Funds | AC33: Mutual Funds
A34: Economic Calendar | L34: Economic Calendar | W34: Economic Calendar | AC34: Economic Calendar
A36: Forex Trading Videos | L36: Forex Trading Videos | W36: Forex Trading Videos | AC36: Forex Trading Videos
A37: Personal Finance | L37: Personal Finance | W37: Personal Finance | AC37: Personal Finance
A40: News & Videos | L40: News & Videos | W40: News & Videos | AC40: News & Videos
A41: Calculators | L41: Calculators | W41: Calculators | AC41: Calculators
A42: Portfolios | L42: Portfolios | W42: Portfolios | AC42: Portfolios
A43: TV | L43: TV | W43: TV | AC43: TV
A46: Live TV | L46: Live TV | W46: Live TV | AC46: Live TV
A47: Shows | L47: Shows | W47: Shows | AC47: Shows
A48: Schedules | L48: Schedules | W48: Schedules | AC48: Schedules
A49: Channel Finder | L49: Channel Finder | W49: Channel Finder | AC49: Channel Finder
A51: The Mentor | L51: The Mentor | W51: The Mentor | AC51: The Mentor
A52: Radio | L52: Radio | W52: Radio | AC52: Radio
A55: Live Radio | L55: Live Radio | W55: Live Radio | AC55: Live Radio
A56: Shows | L56: Shows | W56: Shows | AC56: Shows
A57: Schedule | L57: Schedule | W57: Schedule | AC57: Schedule
A58: More | L58: More | W58: More | AC58: More
A61: Video | L61: Video | W61: Video | AC61: Video
A62: Paul Kedrosky | L62: Paul Kedrosky | W62: Paul Kedrosky | AC62: Paul Kedrosky
A63: Podcasts | L63: Podcasts | W63: Podcasts | AC63: Podcasts
A64: Mobile Apps | L64: Mobile Apps | W64: Mobile Apps | AC64: Mobile Apps
A66: Businessweek.com | L66: Businessweek.com | W66: Businessweek.com | AC66: Businessweek.com
A67: Leadership Connections | L67: Leadership Connections | W67: Leadership Connections | AC67: Leadership Connections
A69: Inside Bloomberg.com | L69: Inside Bloomberg.com | W69: Inside Bloomberg.com | AC69: Inside Bloomberg.com
A70: Feedback | L70: Feedback | W70: Feedback | AC70: Feedback
A72: Bloomberg | L72: Bloomberg | W72: Bloomberg | AC72: Bloomberg
A74: Anywhere | L74: Anywhere | W74: Anywhere | AC74: Anywhere
A75: Professional | L75: Professional | W75: Professional | AC75: Professional
A76: Solutions | L76: Solutions | W76: Solutions | AC76: Solutions
A77: About | L77: About | W77: About | AC77: About
A79: Last Update: 6:11 AM ET, Jan 31 | L79: Last Update: 5:55 AM ET, Jan 31 | W79: Last Update: 6:09 AM ET, Jan 31 | AC79: Last Update: 6:09 AM ET, Jan 31
A80: -0.00647 | L80: -0.0108 | W80: -0.01208 | AC80: -0.02849
A81: PRICE: 171.940 PKR | L81: PRICE: 208.820 PKR | W81: PRICE: 66.240 PKR | AC81: PRICE: 226.780 PKR
A83: Oil & Gas Development Co Ltd (OGDC:PA) | L83: Pakistan Petroleum Ltd (PPL:PA) | W83: Nishat Mills Ltd (NML:PA) | AC83: MCB Bank Ltd (MCB:PA)
A85: Industry: Oil Comp-Explor&Prodtn • Karachi • Currency: PKR | L85: Industry: Oil Comp-Integrated • Karachi • Currency: PKR | W85: Industry: Textile-Products • Karachi • Currency: PKR | AC85: Industry: Commer Banks Non-US • Karachi • Currency: PKR
A87: + Add Security to your Watch List | L87: + Add Security to your Watch List | W87: + Add Security to your Watch List | AC87: + Add Security to your Watch List
A89: Snapshot | L89: Snapshot | W89: Snapshot | AC89: Snapshot
A91: Summary | D91: INTRA-DAY INTERACTIVE CHART | L91: Summary | O91: INTRA-DAY INTERACTIVE CHART | W91: Summary | Z91: INTRA-DAY INTERACTIVE CHART | AC91: Summary | AF91: INTRA-DAY INTERACTIVE CHART
A92: Change | B92: -1.120 (-0.647%) | D92: Intra-Day Chart for Oil & Gas Development Co Ltd (OGDC:PA) | L92: Change | M92: -2.280 (-1.080%) | O92: Intra-Day Chart for Pakistan Petroleum Ltd (PPL:PA) | W92: Change | X92: -0.810 (-1.208%) | Z92: Intra-Day Chart for Nishat Mills Ltd (NML:PA) | AC92: Change | AD92: -6.650 (-2.849%) | AF92: Intra-Day Chart for MCB Bank Ltd (MCB:PA)
A93: Bid | B93: 169.5 | L93: Bid | M93: 207.6 | W93: Bid | X93: 66.25 | AC93: Bid | AD93: 225.6
A94: Ask | B94: 169.95 | L94: Ask | M94: 207.75 | W94: Ask | X94: 66.5 | AC94: Ask | AD94: 226
A95: Open | B95: 173.06 | L95: Open | M95: 210.78 | W95: Open | X95: 67.05 | AC95: Open | AD95: 233.43
A96: High | B96: 175.8 | L96: High | M96: 216 | W96: High | X96: 68.3 | AC96: High | AD96: 237.6
A97: Low | B97: 168.01 | L97: Low | M97: 207 | W97: Low | X97: 66 | AC97: Low | AD97: 225
A98: 52-Week Range | B98: 185.00 - 114.10 | L98: 52-Week Range | M98: 229.75 - 143.38 | W98: 52-Week Range | X98: 71.89 - 40.81 | AC98: 52-Week Range | AD98: 250.48 - 173.04
A99: Volume | B99: 1811682 | L99: Volume | M99: 1481097 | W99: Volume | X99: 3406472 | AC99: Volume | AD99: 2396614
A100: 1-Yr Return | B100: 0.54394 | L100: 1-Yr Return | M100: 0.35588 | W100: 1-Yr Return | X100: 0.24316 | AC100: 1-Yr Return | AD100: 0.2327
A193: Earnings | L193: Earnings | W193: Earnings | AC193: Earnings
A195: Earnings | D195: Fundamentals | L195: Earnings | O195: Fundamentals | W195: Earnings | Z195: Fundamentals | AC195: Earnings | AF195: Fundamentals
A196: Earnings | B196: 13.76 | D196: Shares (Millions) | E196: 4300.928 | L196: Earnings | M196: 19.517 | O196: Shares (Millions) | P196: 1194.978 | W196: Earnings | X196: 29.52 | Z196: Shares (Millions) | AA196: 351.6 | AC196: Earnings | AD196: 20.382 | AF196: Shares (Millions) | AG196: 760.215
A197: Price/Earnings (Trailing) | B197: 12.496 | D197: Market Cap (Millions) | E197: 739501.6 | L197: Price/Earnings (Trailing) | M197: 9.548 | O197: Market Cap (Millions) | P197: 249535.4 | W197: Price/Earnings (Trailing) | X197: N.A. | Z197: Market Cap (Millions) | AA197: 23289.97 | AC197: Price/Earnings (Trailing) | AD197: 10.938 | AF197: Market Cap (Millions) | AG197: 172401.5
A198: Relative P/E | B198: 1.142 | D198: ROE | E198: 41.738 | L198: Relative P/E | M198: 0.872 | O198: ROE | P198: 32.624 | W198: Relative P/E | X198: N.A. | Z198: ROE | AA198: 26.088 | AC198: Relative P/E | AD198: 0.999 | AF198: ROE | AG198: 24.178
D199: Last Dividend Reported | E199: N.A. Interim | O199: Last Dividend Reported | P199: N.A. Interim | Z199: Last Dividend Reported | AA199: 2.500 Regular Cash | AF199: Last Dividend Reported | AG199: 3.000 3rd Interim
D200: Dividend Yield (ttm) | E200: 3.53 | O200: Dividend Yield (ttm) | P200: 3.61 | Z200: Dividend Yield (ttm) | AA200: 3.774 | AF200: Dividend Yield (ttm) | AG200: 5.169
D201: Relative Dividend Yield | E201: 0.774 | O201: Relative Dividend Yield | P201: 0.792 | Z201: Relative Dividend Yield | AA201: 0.828 | AF201: Relative Dividend Yield | AG201: 1.133
D202: 90-Day Volatility | E202: 15.58 | O202: 90-Day Volatility | P202: 20.721 | Z202: 90-Day Volatility | AA202: 30.624 | AF202: 90-Day Volatility | AG202: 22.794
D203: Beta vs. KSE100 | E203: 1.066 | O203: Beta vs. KSE100 | P203: 0.896 | Z203: Beta vs. KSE100 | AA203: 1.259 | AF203: Beta vs. KSE100 | AG203: 1.256
A205: Interactive Chart | L205: Interactive Chart | W205: Interactive Chart | AC205: Interactive Chart
A207: Unless indicated otherwise: intraday data is at least 15 minutes delayed; mutual fund NAVs are updated at the close of every market day; all prices are in the local currency; Time is ET. | L207: Unless indicated otherwise: intraday data is at least 15 minutes delayed; mutual fund NAVs are updated at the close of every market day; all prices are in the local currency; Time is ET. | W207: Unless indicated otherwise: intraday data is at least 15 minutes delayed; mutual fund NAVs are updated at the close of every market day; all prices are in the local currency; Time is ET. | AC207: Unless indicated otherwise: intraday data is at least 15 minutes delayed; mutual fund NAVs are updated at the close of every market day; all prices are in the local currency; Time is ET.
A209: Company News | L209: Company News | W209: Company News | AC209: Company News
A211: BP Sells Pakistan Assets to China UEG for $775 Million | L211: Pakistan Stocks: Habib Bank, MCB Bank, Pakistan Petroleum | W211: Pakistan Floods Limit Possibility of Credit Rating Upgrade, Moody's Says | AC211: Lawai Says Pakistan Central Bank Should Not Raise Key Rate
A212: BP Declines OGDC, PPL Joint Bid for Pakistan Oil Fields | L212: BP Sells Pakistan Assets to China UEG for $775 Million | W212: Toyota, Unilever Pakistan Say Floods May Sap Growth | AC212: Pakistan Stocks: Habib Bank, MCB Bank, Pakistan Petroleum
A213: Russia Approves Extra Spending on Exxon’s Sakhalin-1 | L213: BP Declines OGDC, PPL Joint Bid for Pakistan Oil Fields | W213: Cotton Futures Rise as Pakistan Flood Curbs Output; Orange Juice Advances | AC213: MCB Bank Plans Expansion in Pakistan, Abroad, Ignoring Domestic Slowdown
A214: Pakistan Oil & Gas First-Quarter Profit Rises 39% on Higher Fuel Prices | L214: Pakistan Petroleum Full-Year Profit Falls on Fire, Failed Exploration Well | W214: Taliban's Ties to Times Square Car-Bomb Plot May Spark Wider Pakistan War | AC214: National Bank of Pakistan, Rivals to See Net Fall as Rates Rise, Raza Says
A216: More OGDC News | L216: More PPL News | W216: More NML News | AC216: More MCB News
A218: Advertisement | L218: Advertisement | W218: Advertisement | AC218: Advertisement
A220: Company Profile | L220: Company Profile | W220: Company Profile | AC220: Company Profile
A222: Oil & Gas Development Co. Ltd. explores and develops oil and natural gas properties in Pakistan. | L222: Pakistan Petroleum Ltd. specializes in the exploration and production of crude oil and natural gas. The Company also sells liquefied petroleum gas and condensates. | W222: Nishat Mills Limited is a textile manufacturing company. The Company spins, combs, weaves, bleaches, dyes, prints, and buys and sells yarn, linen, other cloth, and other goods. Nishat Mill's products and fabrics are made from raw cotton and synthetic fiber. The Company also owns a power plant that generates, accumulates, distributes, and supplies electricity. | AC222: MCB Bank Ltd. is a full service commercial bank. The Bank offers a wide range of financial products and advice for personal and corporate customers, including online banking services.
A224: Advertisement | L224: Advertisement | W224: Advertisement | AC224: Advertisement
A226: Advertisement | L226: Advertisement | W226: Advertisement | AC226: Advertisement
A228: Sponsored Links | L228: Sponsored Links | W228: Sponsored Links | AC228: Sponsored Links
A230: Sponsored Links | L230: Sponsored Links | W230: Sponsored Links | AC230: Sponsored Links
A233: Bloomberg | L233: Bloomberg | W233: Bloomberg | AC233: Bloomberg
A234: Rate this Page | L234: Rate this Page | W234: Rate this Page | AC234: Rate this Page
A236: News | L236: News | W236: News | AC236: News
A238: Exclusive | L238: Exclusive | W238: Exclusive | AC238: Exclusive
A239: Worldwide | L239: Worldwide | W239: Worldwide | AC239: Worldwide
A240: Regions | L240: Regions | W240: Regions | AC240: Regions
A241: Markets | L241: Markets | W241: Markets | AC241: Markets
A242: Industries | L242: Industries | W242: Industries | AC242: Industries
A243: Economy | L243: Economy | W243: Economy | AC243: Economy
A244: Politics | L244: Politics | W244: Politics | AC244: Politics
A245: Law | L245: Law | W245: Law | AC245: Law
A246: Environment | L246: Environment | W246: Environment | AC246: Environment
A247: Science | L247: Science | W247: Science | AC247: Science
A248: Opinion | L248: Opinion | W248: Opinion | AC248: Opinion
A249: Muse: Arts, Culture & Spend | L249: Muse: Arts, Culture & Spend | W249: Muse: Arts, Culture & Spend | AC249: Muse: Arts, Culture & Spend
A250: Sports | L250: Sports | W250: Sports | AC250: Sports
A252: Market Data | L252: Market Data | W252: Market Data | AC252: Market Data
A254: Stocks | L254: Stocks | W254: Stocks | AC254: Stocks
A255: Rates & Bonds | L255: Rates & Bonds | W255: Rates & Bonds | AC255: Rates & Bonds
A256: Currencies | L256: Currencies | W256: Currencies | AC256: Currencies
A257: Mutual Funds | L257: Mutual Funds | W257: Mutual Funds | AC257: Mutual Funds
A258: ETFs | L258: ETFs | W258: ETFs | AC258: ETFs
A259: Commodities | L259: Commodities | W259: Commodities | AC259: Commodities
A260: Economic Calendar | L260: Economic Calendar | W260: Economic Calendar | AC260: Economic Calendar
A262: Personal Finance | L262: Personal Finance | W262: Personal Finance | AC262: Personal Finance
A263: TV | L263: TV | W263: TV | AC263: TV
A264: Radio | L264: Radio | W264: Radio | AC264: Radio
A265: Video | L265: Video | W265: Video | AC265: Video
A266: Podcasts | L266: Podcasts | W266: Podcasts | AC266: Podcasts
A267: Personalities | L267: Personalities | W267: Personalities | AC267: Personalities
A268: Keene On Demand | L268: Keene On Demand | W268: Keene On Demand | AC268: Keene On Demand
A269: Mobile | L269: Mobile | W269: Mobile | AC269: Mobile
A270: Leaders | L270: Leaders | W270: Leaders | AC270: Leaders
A271: Technology | L271: Technology | W271: Technology | AC271: Technology
A273: More from Bloomberg | L273: More from Bloomberg | W273: More from Bloomberg | AC273: More from Bloomberg
A275: Bloomberg Businessweek | L275: Bloomberg Businessweek | W275: Bloomberg Businessweek | AC275: Bloomberg Businessweek
A276: Business Exchange | L276: Business Exchange | W276: Business Exchange | AC276: Business Exchange
A277: BloombergNow on Twitter | L277: BloombergNow on Twitter | W277: BloombergNow on Twitter | AC277: BloombergNow on Twitter
A278: BloombergNow on Facebook | L278: BloombergNow on Facebook | W278: BloombergNow on Facebook | AC278: BloombergNow on Facebook
A279: Bloomberg Briefs | L279: Bloomberg Briefs | W279: Bloomberg Briefs | AC279: Bloomberg Briefs
A280: Bloomberg Government | L280: Bloomberg Government | W280: Bloomberg Government | AC280: Bloomberg Government
A281: 日本語サイト | L281: 日本語サイト | W281: 日本語サイト | AC281: 日本語サイト
A282: Bloomberg Law | L282: Bloomberg Law | W282: Bloomberg Law | AC282: Bloomberg Law
A283: Bloomberg Link | L283: Bloomberg Link | W283: Bloomberg Link | AC283: Bloomberg Link
A284: Bloomberg Markets Magazine | L284: Bloomberg Markets Magazine | W284: Bloomberg Markets Magazine | AC284: Bloomberg Markets Magazine
A285: Bloomberg New Energy Finance | L285: Bloomberg New Energy Finance | W285: Bloomberg New Energy Finance | AC285: Bloomberg New Energy Finance
A286: Bloomberg Open Symbology | L286: Bloomberg Open Symbology | W286: Bloomberg Open Symbology | AC286: Bloomberg Open Symbology
A287: Bloomberg Press | L287: Bloomberg Press | W287: Bloomberg Press | AC287: Bloomberg Press
A288: Bloomberg Sports | L288: Bloomberg Sports | W288: Bloomberg Sports | AC288: Bloomberg Sports
A289: Bloomberg UTV | L289: Bloomberg UTV | W289: Bloomberg UTV | AC289: Bloomberg UTV
A291: Company | L291: Company | W291: Company | AC291: Company
A293: About Bloomberg | L293: About Bloomberg | W293: About Bloomberg | AC293: About Bloomberg
A294: Solutions | L294: Solutions | W294: Solutions | AC294: Solutions
A295: Careers | L295: Careers | W295: Careers | AC295: Careers
A296: Contact Us | L296: Contact Us | W296: Contact Us | AC296: Contact Us
A297: Press Room | L297: Press Room | W297: Press Room | AC297: Press Room
A298: Help | L298: Help | W298: Help | AC298: Help
A299: Sitemap | L299: Sitemap | W299: Sitemap | AC299: Sitemap
A300: Trademarks | L300: Trademarks | W300: Trademarks | AC300: Trademarks
A301: Feedback | L301: Feedback | W301: Feedback | AC301: Feedback
A303: ©2011 BLOOMBERG L.P. ALL RIGHTS RESERVED. Terms of Service Privacy Policy Advertising | L303: ©2011 BLOOMBERG L.P. ALL RIGHTS RESERVED. Terms of Service Privacy Policy Advertising | W303: ©2011 BLOOMBERG L.P. ALL RIGHTS RESERVED. Terms of Service Privacy Policy Advertising | AC303: ©2011 BLOOMBERG L.P. ALL RIGHTS RESERVED. Terms of Service Privacy Policy Advertising
A304: Unless indicated otherwise, intraday market data is at least 15 minutes delayed. | L304: Unless indicated otherwise, intraday market data is at least 15 minutes delayed. | W304: Unless indicated otherwise, intraday market data is at least 15 minutes delayed. | AC304: Unless indicated otherwise, intraday market data is at least 15 minutes delayed.
A305: PTC | L305: POL
A306: Home | L306: Home | W306: Home | AC306: Home
A307: News | L307: News | W307: News | AC307: News
A310: Top Headlines | L310: Top Headlines | W310: Top Headlines | AC310: Top Headlines
A311: Most Popular | L311: Most Popular | W311: Most Popular | AC311: Most Popular
A312: Exclusive | L312: Exclusive | W312: Exclusive | AC312: Exclusive
A313: Worldwide | L313: Worldwide | W313: Worldwide | AC313: Worldwide
A314: Regions | L314: Regions | W314: Regions | AC314: Regions
A315: Markets | L315: Markets | W315: Markets | AC315: Markets
A316: Industries | L316: Industries | W316: Industries | AC316: Industries
A317: Economy | L317: Economy | W317: Economy | AC317: Economy
A318: Politics | L318: Politics | W318: Politics | AC318: Politics
A319: Law | L319: Law | W319: Law | AC319: Law
A320: Environment | L320: Environment | W320: Environment | AC320: Environment
A321: Science | L321: Science | W321: Science | AC321: Science
A322: Opinion | L322: Opinion | W322: Opinion | AC322: Opinion
A323: Muse: Arts, Culture & Spend | L323: Muse: Arts, Culture & Spend | W323: Muse: Arts, Culture & Spend | AC323: Muse: Arts, Culture & Spend
A324: Sports | L324: Sports | W324: Sports | AC324: Sports
A325: Bloomberg Markets Magazine | L325: Bloomberg Markets Magazine | W325: Bloomberg Markets Magazine | AC325: Bloomberg Markets Magazine
A326: Leaders | L326: Leaders | W326: Leaders | AC326: Leaders
A327: Entrepreneurs | L327: Entrepreneurs | W327: Entrepreneurs | AC327: Entrepreneurs
A328: Market Data | L328: Market Data | W328: Market Data | AC328: Market Data
A331: Overview | L331: Overview | W331: Overview | AC331: Overview
A332: Stocks | L332: Stocks | W332: Stocks | AC332: Stocks
A333: Stock Futures | L333: Stock Futures | W333: Stock Futures | AC333: Stock Futures
A334: Currencies | L334: Currencies | W334: Currencies | AC334: Currencies
A335: Commodities | L335: Commodities | W335: Commodities | AC335: Commodities
A336: Rates & Bonds | L336: Rates & Bonds | W336: Rates & Bonds | AC336: Rates & Bonds
A337: ETFs | L337: ETFs | W337: ETFs | AC337: ETFs
A338: Mutual Funds | L338: Mutual Funds | W338: Mutual Funds | AC338: Mutual Funds
A339: Economic Calendar | L339: Economic Calendar | W339: Economic Calendar | AC339: Economic Calendar
A341: Forex Trading Videos | L341: Forex Trading Videos | W341: Forex Trading Videos | AC341: Forex Trading Videos
A342: Personal Finance | L342: Personal Finance | W342: Personal Finance | AC342: Personal Finance
A345: News & Videos | L345: News & Videos | W345: News & Videos | AC345: News & Videos
A346: Calculators | L346: Calculators | W346: Calculators | AC346: Calculators
A347: Portfolios | L347: Portfolios | W347: Portfolios | AC347: Portfolios
A348: TV | L348: TV | W348: TV | AC348: TV
... 723 more rows

Sheet Sheet2
